Workbook

Sheet Tabelle1_MPE
A1: Top 100 RNAi target genes | G1: Tc Annotation UniProt) | U1: Dm Annotation (Biomart) | AE1: CPB_RNAseq data
A2: Symbol | B2: iB | C2: Tc gene | D2: found in biomart | E2: Dm gene | F2: Dm gene name | G2: Entry | H2: Entry name | I2: Protein names | J2: Gene names | K2: Gene names (primary ) | L2: Length | M2: Function [CC] | N2: Protein families | O2: Catalytic activity | P2: Gene ontology (biological process) | Q2: Gene ontology (molecular function) | R2: Cross-reference (InterPro) | S2: Cross-reference (Pfam) | T2: Cross-reference (PROSITE) | U2: Gene stable ID | V2: Gene name | W2: Gene description | X2: Additional annotation/function (manual) | Y2: High gene expression in FlyAtlas (manual inspection) | Z2: flybase lethal alleles | AA2: lethal_phenotype_stage in Dm | AB2: CPB_ORTHOLOG_cDNA (blastN nucl) E<E-10 | AC2: CPB_ORTHOLOG (blastN nucl genome) E<E-10 | AD2: CPB_ORTHOLOG (blastP) E<E-10 | AE2: exon reads in H-reared | AF2: exon reads in control-reared | AG2: control-reared RPKM | AH2: PVY-reared RPKM | AI2: healthy-reared RPKM | AJ2: RPKM logFC(H/C) | AK2: RPKM logFC(H/PVY) | AL2: PATENTED CPB SEQUENCE (blastn) | AM2: candidate? | AN2: already described in other literature
A3: L1 | B3: iB_00003 | C3: TC000029 | D3: =VLOOKUP(C3,biomart_FASTA!F:G,1,FALSE) -> TC000029 | E3: CG1212 | F3: p130CAS | G3: D6WE77 | H3: D6WE77_TRICA | I3: Putative uncharacterized protein | J3: TcasGA2_TC000029 | L3: 765 | R3: IPR021901;IPR014928;IPR001452; | S3: PF12026;PF08824;PF14604; | T3: PS50002; | U3: FBgn0035101 | V3: p130CAS | W3: p130CAS [Source:FlyBase gene name;Acc:FBgn0035101] | Y3: CNS, gut | AB3: gb|EB757552.1 | AC3: LDEC021340 | AD3: LDEC021340 | AE3: =VLOOKUP(AD3,[1]logFC_table!$B:$J,9,FALSE) -> 24 | AF3: 6 | AG3: 0.5899552009 | AH3: 1.141256734 | AI3: 1.506945569 | AJ3: =IF(ISERROR(LOG(AI3/AG3,2)),"NA",LOG(AI3/AG3,2)) -> 1.352949997 | AK3: =IF(ISERROR(LOG(AI3/AH3,2)),"NA",LOG(AI3/AH3,2)) -> 0.4010039343
A4: L2 | B4: iB_00004 | C4: TC000040 | D4: =VLOOKUP(C4,biomart_FASTA!F:G,1,FALSE) -> TC000040 | E4: CG42341 | F4: Pka-R1 | G4: D6WDE6 | H4: D6WDE6_TRICA | I4: Putative uncharacterized protein | J4: TcasGA2_TC000040 | L4: 372 | Q4: cAMP-dependent protein kinase regulator activity [GO:0008603] | R4: IPR012198;IPR003117;IPR018490;IPR018488;IPR000595;IPR014710; | S4: PF00027;PF02197; | T4: PS00888;PS00889;PS50042; | U4: FBgn0259243 | V4: Pka-R1 | W4: cAMP-dependent protein kinase R1 [Source:FlyBase gene name;Acc:FBgn0259243] | Y4: CNS | Z4: 31 | AC4: LDEC004542 | AD4: LDEC004542 | AE4: =VLOOKUP(AD4,[1]logFC_table!$B:$J,9,FALSE) -> 6 | AF4: 1 | AG4: 0.2192553812 | AH4: 0.05 | AI4: 0.8400788515 | AJ4: =IF(ISERROR(LOG(AI4/AG4,2)),"NA",LOG(AI4/AG4,2)) -> 1.937912497 | AK4: =IF(ISERROR(LOG(AI4/AH4,2)),"NA",LOG(AI4/AH4,2)) -> 4.070524748
A5: L3 | B5: iB_00011 | C5: TC000069 | D5: =VLOOKUP(C5,biomart_FASTA!F:G,1,FALSE) -> TC000069 | E5: CG4097 | F5: Prosβ6 | G5: D6WD83 | H5: D6WD83_TRICA | I5: Putative uncharacterized protein | J5: TcasGA2_TC000069 | L5: 235 | P5: proteolysis involved in cellular protein catabolic process [GO:0051603] | Q5: threonine-type endopeptidase activity [GO:0004298] | R5: IPR029055;IPR001353;IPR023333; | S5: PF00227; | T5: PS51476; | U5: FBgn0002284 | V5: Prosbeta6 | W5: Proteasome beta6 subunit [Source:FlyBase gene name;Acc:FBgn0002284] | Z5: 18 | AA5: early pupal | AC5: LDEC003296 | AD5: LDEC003296 | AE5: =VLOOKUP(AD5,[1]logFC_table!$B:$J,9,FALSE) -> 6 | AF5: 2 | AG5: 0.4131816209 | AH5: 0.2179886509 | AI5: 0.7915544413 | AJ5: 0.9379124973 | AK5: 1.860435553
A6: L4 | B6: iB_00015 | C6: TC000082 | D6: =VLOOKUP(C6,biomart_FASTA!F:G,1,FALSE) -> TC000082 | E6: CG7506 | F6: - | G6: D6WIQ5 | H6: D6WIQ5_TRICA | I6: Putative uncharacterized protein | J6: TcasGA2_TC000082 | L6: 213 | R6: IPR009724; | S6: PF06979; | U6: FBgn0035805 | V6: CG7506 | X6: TMEM70 family; mitochondrial proton-transporting ATP synthase complex assembly | Y6: CNS, gut, larva, pupa | AC6: LDEC013408 | AD6: LDEC013408 | AE6: =VLOOKUP(AD6,[1]logFC_table!$B:$J,9,FALSE) -> 1 | AF6: 3 | AG6: 0.5437116816 | AH6: 0.05 | AI6: 0.1157353287 | AJ6: -2.232012504 | AK6: 1.210829321
A7: L5 | B7: iB_00029 | C7: TC000161 | D7: =VLOOKUP(C7,biomart_FASTA!F:G,1,FALSE) -> TC000161 | E7: CG6202 | F7: Surf4 | G7: D6WCQ4 | H7: D6WCQ4_TRICA | I7: Putative uncharacterized protein | J7: TcasGA2_TC000161 | L7: 270 | R7: IPR002995; | S7: PF02077; | T7: PS01339; | U7: FBgn0019925 | V7: Surf4 | W7: Surfeit 4 [Source:FlyBase gene name;Acc:FBgn0019925] | Y7: salivary gland, gut, larva | Z7: 7 | AB7: gb|EB760297.1 | AC7: LDEC016690 | AD7: LDEC016690 | AE7: =VLOOKUP(AD7,[1]logFC_table!$B:$J,9,FALSE) -> 102 | AF7: 64 | AG7: 5.967318757 | AH7: 4.230489321 | AI7: 6.073205481 | AJ7: 0.02537533856 | AK7: 0.5216336395
A8: L6 | B8: iB_00031 | C8: TC000165 | D8: =VLOOKUP(C8,biomart_FASTA!F:G,1,FALSE) -> TC000165 | E8: CG40470 | F8: - | G8: D6WCP6 | H8: D6WCP6_TRICA | I8: Aminopeptidase-like protein | J8: TcasGA2_TC000165 | L8: 928 | Q8: aminopeptidase activity [GO:0004177]; metallopeptidase activity [GO:0008237]; zinc ion binding [GO:0008270] | R8: IPR024571;IPR001930;IPR014782; | S8: PF11838;PF01433; | U8: FBgn0058470 | V8: CG40470 | X8: metalloprotease, aminopeptidase | AC8: LDEC019591 | AD8: LDEC019591 | AE8: =VLOOKUP(AD8,[1]logFC_table!$B:$J,9,FALSE) -> 0 | AF8: 0 | AG8: 0.05 | AH8: 0.05 | AI8: 0.05 | AJ8: 0 | AK8: 0
A9: L7 | B9: iB_00053 | C9: TC000258 | D9: =VLOOKUP(C9,biomart_FASTA!F:G,1,FALSE) -> TC000258 | E9: CG4904 | F9: Prosα6 | G9: D6WBQ6 | H9: D6WBQ6_TRICA | I9: Proteasome subunit alpha type (EC 3.4.25.1) | J9: TcasGA2_TC000258 | L9: 277 | M9: FUNCTION: The proteasome is a multicatalytic proteinase complex which is characterized by its ability to cleave peptides with Arg, Phe, Tyr, Leu, and Glu adjacent to the leaving group at neutral or slightly basic pH. {ECO:0000256|RuleBase:RU000551}. | N9: Peptidase T1A family | O9: CATALYTIC ACTIVITY: Cleavage of peptide bonds with very broad specificity. {ECO:0000256|RuleBase:RU000551}. | P9: ubiquitin-dependent protein catabolic process [GO:0006511] | Q9: threonine-type endopeptidase activity [GO:0004298] | R9: IPR029055;IPR000426;IPR023332;IPR001353; | S9: PF00227;PF10584; | T9: PS00388;PS51475; | U9: FBgn0250843 | V9: Prosalpha6 | W9: Proteasome alpha6 subunit [Source:FlyBase gene name;Acc:FBgn0250843] | Z9: 14 | AA9: late larval | AC9: LDEC019981 | AD9: LDEC019981 | AE9: =VLOOKUP(AD9,[1]logFC_table!$B:$J,9,FALSE) -> 30 | AF9: 25 | AG9: 5.87532387 | AH9: 4.959577519 | AI9: 4.502270641 | AJ9: -0.3840155976 | AK9: -0.139564447
A10: L8 | B10: iB_00063 | C10: TC032227 | D10: >TC032227 transcript1 | E10: CG5706 | F10: - | U10: FBgn0039175 | V10: CG5706 | X10: Phe-tRNA synthethase | Z10: 10 | AA10: late larval | AC10: LDEC003557 | AD10: LDEC003557 | AE10: =VLOOKUP(AD10,[1]logFC_table!$B:$J,9,FALSE) -> 10 | AF10: 7 | AG10: 0.6588479958 | AH10: 0.09931390838 | AI10: 0.6010432572 | AJ10: -0.1324768306 | AK10: 2.597401147
A11: L9 | B11: iB_00141 | C11: TC000614 | D11: =VLOOKUP(C11,biomart_FASTA!F:G,1,FALSE) -> TC000614 | E11: CG18495 | F11: Prosα1 | G11: D6W9B2 | H11: D6W9B2_TRICA | I11: Proteasome subunit alpha type (EC 3.4.25.1) | J11: TcasGA2_TC000614 | L11: 246 | M11: FUNCTION: The proteasome is a multicatalytic proteinase complex which is characterized by its ability to cleave peptides with Arg, Phe, Tyr, Leu, and Glu adjacent to the leaving group at neutral or slightly basic pH. {ECO:0000256|RuleBase:RU000551}. | N11: Peptidase T1A family | O11: CATALYTIC ACTIVITY: Cleavage of peptide bonds with very broad specificity. {ECO:0000256|RuleBase:RU000551}. | P11: ubiquitin-dependent protein catabolic process [GO:0006511] | Q11: threonine-type endopeptidase activity [GO:0004298] | R11: IPR029055;IPR000426;IPR023332;IPR001353; | S11: PF00227;PF10584; | T11: PS00388;PS51475; | U11: FBgn0263121 | V11: Prosalpha1 | W11: Proteasome alpha1 subunit [Source:FlyBase gene name;Acc:FBgn0263121] | Z11: 5 | AC11: LDEC010921 | AD11: LDEC010921 | AE11: =VLOOKUP(AD11,[1]logFC_table!$B:$J,9,FALSE) -> 0 | AF11: 0 | AG11: 0.05 | AH11: 0.05 | AI11: 0.05 | AJ11: 0 | AK11: 0
A12: L10 | B12: iB_00322 | C12: TC002003 | D12: =VLOOKUP(C12,biomart_FASTA!F:G,1,FALSE) -> TC002003 | E12: CG5848 | F12: cact | G12: D7EHY7 | H12: D7EHY7_TRICA | I12: Cactus | J12: cact TcasGA2_TC002003 | K12: cact | L12: 363 | R12: IPR002110;IPR020683; | S12: PF12796; | T12: PS50297;PS50088; | U12: FBgn0000250 | V12: cact | W12: cactus [Source:FlyBase gene name;Acc:FBgn0000250] | X12: transcription factor | Y12: salivary gland | Z12: 142 | AC12: LDEC003901 | AD12: LDEC003916 | AE12: =VLOOKUP(AD12,[1]logFC_table!$B:$J,9,FALSE) -> 1 | AF12: 6 | AG12: 0.9011914093 | AH12: 0.05 | AI12: 0.09591451454 | AJ12: -3.232012504 | AK12: 0.9398210568
A13: L11 | B13: iB_00404 | C13: TC002574 | D13: =VLOOKUP(C13,biomart_FASTA!F:G,1,FALSE) -> TC002574 | E13: CG4659 | F13: Srp54k | G13: D6WFU9 | H13: D6WFU9_TRICA | I13: Putative uncharacterized protein | J13: TcasGA2_TC002574 | L13: 508 | P13: SRP-dependent cotranslational protein targeting to membrane [GO:0006614] | Q13: 7S RNA binding [GO:0008312]; GTPase activity [GO:0003924]; GTP binding [GO:0005525] | R13: IPR003593;IPR027417;IPR013822;IPR004125;IPR022941;IPR006325;IPR000897; | S13: PF00448;PF02881;PF02978; | T13: PS00300; | U13: FBgn0010747 | V13: Srp54k | W13: Signal recognition particle protein 54k [Source:FlyBase gene name;Acc:FBgn0010747] | Y13: salivary gland, embrio | Z13: 5 | AA13: early larval | AC13: LDEC007903 | AD13: LDEC007903 | AE13: =VLOOKUP(AD13,[1]logFC_table!$B:$J,9,FALSE) -> 78 | AF13: 23 | AG13: 3.245844768 | AH13: 6.254204598 | AI13: 7.029315766 | AJ13: 1.114790259 | AK13: 0.1685578483 | AM13: yes
A14: L12 | B14: iB_00411 | C14: TC002601 | D14: =VLOOKUP(C14,biomart_FASTA!F:G,1,FALSE) -> TC002601 | E14: CG1743 | F14: Gs2 | G14: D6WFH1 | H14: D6WFH1_TRICA | I14: Glutamine synthetase (EC 6.3.1.2) | J14: TcasGA2_TC002601 | L14: 369 | N14: Glutamine synthetase family | O14: CATALYTIC ACTIVITY: ATP + L-glutamate + NH(3) = ADP + phosphate + L-glutamine. {ECO:0000256|RuleBase:RU004356}. | P14: glutamine biosynthetic process [GO:0006542] | Q14: ATP binding [GO:0005524]; glutamate-ammonia ligase activity [GO:0004356] | R14: IPR008147;IPR014746;IPR008146;IPR027303;IPR027302; | S14: PF00120;PF03951; | T14: PS00180;PS00181; | U14: FBgn0001145 | V14: Gs2 | W14: Glutamine synthetase 2 [Source:FlyBase gene name;Acc:FBgn0001145] | X14: amino acid synthesis | Y14: CNS, gut, trachea, larva, adult | AC14: LDEC017246 | AD14: LDEC017247 | AE14: =VLOOKUP(AD14,[1]logFC_table!$B:$J,9,FALSE) -> 0 | AF14: 0 | AG14: 0.05 | AH14: 0.05 | AI14: 0.05 | AJ14: 0 | AK14: 0
A15: L13 | B15: iB_00462 | C15: TC002881 | D15: =VLOOKUP(C15,biomart_FASTA!F:G,1,FALSE) -> TC002881 | E15: CG11856 | F15: Nup358 | G15: D6WHS2 | H15: D6WHS2_TRICA | I15: Putative uncharacterized protein | J15: TcasGA2_TC002881 | L15: 2779 | P15: intracellular transport [GO:0046907] | Q15: zinc ion binding [GO:0008270] | R15: IPR011993;IPR000156;IPR013026;IPR011990;IPR019734;IPR000697;IPR001876; | S15: PF00638;PF00641; | T15: PS50196;PS50005;PS50293;PS50229;PS01358;PS50199; | U15: FBgn0039302 | V15: Nup358 | W15: Nucleoporin 358kD [Source:FlyBase gene name;Acc:FBgn0039302] | X15: part of nuclear pore complex | Y15: CNS, embrio | AA15: early pupal | AC15: LDEC004028 | AD15: LDEC004028 | AE15: =VLOOKUP(AD15,[1]logFC_table!$B:$J,9,FALSE) -> 11 | AF15: 11 | AG15: 0.3184027311 | AH15: 0.05 | AI15: 0.2033271272 | AJ15: =IF(ISERROR(LOG(AI15/AG15,2)),"NA",LOG(AI15/AG15,2)) -> -0.6470500034 | AK15: =IF(ISERROR(LOG(AI15/AH15,2)),"NA",LOG(AI15/AH15,2)) -> 2.023802707
A16: L14 | B16: iB_00472 | C16: TC002933 | D16: =VLOOKUP(C16,biomart_FASTA!F:G,1,FALSE) -> TC002933 | E16: CG8749 | F16: snRNP-U1-70K | G16: D6WH33 | H16: D6WH33_TRICA | I16: Putative uncharacterized protein | J16: TcasGA2_TC002933 | L16: 408 | Q16: nucleic acid binding [GO:0003676]; nucleotide binding [GO:0000166] | R16: IPR012677;IPR000504;IPR022023; | S16: PF00076;PF12220; | T16: PS50102; | U16: FBgn0016978 | V16: snRNP-U1-70K | W16: small ribonucleoprotein particle U1 subunit 70K [Source:FlyBase gene name;Acc:FBgn0016978] | Y16: embrio | Z16: 11 | AA16: late pupal | AB16: gb|EB754534.1 | AC16: LDEC020367 | AD16: LDEC020367 | AE16: =VLOOKUP(AD16,[1]logFC_table!$B:$J,9,FALSE) -> 26 | AF16: 20 | AG16: 7.785803332 | AH16: 11.50149644 | AI16: 6.463463816 | AJ16: -0.2685383802 | AK16: -0.8314421517
A17: L15 | B17: iB_00503 | C17: TC003020 | D17: =VLOOKUP(C17,biomart_FASTA!F:G,1,FALSE) -> TC003020 | E17: CG14813 | F17: δCOP-PB | G17: D6WG69 | H17: D6WG69_TRICA | I17: Putative uncharacterized protein | J17: TcasGA2_TC003020 | L17: 601 | P17: protein transport [GO:0015031] | R17: IPR022775;IPR027059;IPR011012;IPR028565; | S17: PF00928;PF01217; | T17: PS51072; | U17: FBgn0028969 | V17: deltaCOP | W17: Coat Protein (coatomer) delta [Source:FlyBase gene name;Acc:FBgn0028969] | X17: vesicle transport | Y17: salivary gland, gut, embrio, larva | Z17: 14 | AA17: early pupal | AB17: gb|EB756576.1 | AC17: LDEC005928 | AD17: LDEC005928 | AE17: =VLOOKUP(AD17,[1]logFC_table!$B:$J,9,FALSE) -> 145 | AF17: 104 | AG17: 11.75598631 | AH17: 9.064883118 | AI17: 10.46676021 | AJ17: -0.1675806315 | AK17: 0.2074546288 | AN17: COP beta in CPB (Zhu et al 2011)
A18: L16 | B18: iB_00512 | C18: TC003079 | D18: =VLOOKUP(C18,biomart_FASTA!F:G,1,FALSE) -> TC003079 | E18: CG15609 | F18: Ehbp1-PG | G18: D6WFM6 | H18: D6WFM6_TRICA | I18: Putative uncharacterized protein | J18: TcasGA2_TC003079 | L18: 948 | R18: IPR001715;IPR022735;IPR029944;IPR019448; | S18: PF00307;PF12130;PF10358; | T18: PS50021; | U18: FBgn0034180 | V18: Ehbp1 | W18: Eps15 homology domain containing protein-binding protein 1 [Source:FlyBase gene name;Acc:FBgn0034180] | Z18: 15 | AC18: LDEC021697 | AD18: LDEC021697 | AE18: =VLOOKUP(AD18,[1]logFC_table!$B:$J,9,FALSE) -> 3 | AF18: 2 | AG18: 0.4976143869 | AH18: 0.2625341578 | AI18: 0.4766534353 | AJ18: -0.06208750269 | AK18: 0.860435553
A19: L17 | B19: iB_00606 | C19: TC003747 | D19: =VLOOKUP(C19,biomart_FASTA!F:G,1,FALSE) -> TC003747 | E19: CG2063 | F19: - | G19: D6WE90 | H19: D6WE90_TRICA | I19: Putative uncharacterized protein | J19: TcasGA2_TC003747 | L19: 281 | P19: regulation of transcription, DNA-templated [GO:0006355] | R19: IPR012479; | S19: PF07818; | U19: FBgn0033400 | V19: CG2063 | Z19: 6 | AA19: late larval | AC19: LDEC012319 | AD19: LDEC012319 | AE19: =VLOOKUP(AD19,[1]logFC_table!$B:$J,9,FALSE) -> 0 | AF19: 0 | AG19: 0.05 | AH19: 0.05 | AI19: 0.05 | AJ19: 0 | AK19: 0
A20: L18 | B20: iB_00607 | C20: TC003752 | D20: =VLOOKUP(C20,biomart_FASTA!F:G,1,FALSE) -> TC003752 | E20: CG18412 | F20: ph-p | G20: D6WEA2 | H20: D6WEA2_TRICA | I20: Polyhomeotic | J20: ph TcasGA2_TC003752 | K20: ph | L20: 1072 | Q20: zinc ion binding [GO:0008270] | R20: IPR001660;IPR013761;IPR012313; | S20: PF00536; | T20: PS50105;PS51024; | U20: FBgn0004861 | V20: ph-p | W20: polyhomeotic proximal [Source:FlyBase gene name;Acc:FBgn0004861] | X20: Polycomb group (PcG) protein. PcG proteins act by forming multiprotein complexes, which are required to maintain the transcriptionally repressive state of homeotic genes throughout development. PcG proteins are not required to initiate repression, but to maintain it during later stages of development. Component of the PcG multiprotein PRC1 complex, a complex that acts via chromatin remodeling and modification of histones; it mediates monoubiquitination of histone H2A 'Lys-118', rendering chromatin heritably changed in its expressibility. Plays a role in regulating the expression of other pair-rule genes such as eve, ftz, and H | Y20: CNS, larva | Z20: 59 | AA20: late pupal | AC20: LDEC012135 | AD20: LDEC012135 | AE20: =VLOOKUP(AD20,[1]logFC_table!$B:$J,9,FALSE) -> 8 | AF20: 1 | AG20: 0.0796183019 | AH20: 1.68021861 | AI20: 0.4067442648 | AJ20: 2.352949997 | AK20: -2.046455043
A21: L19 | B21: iB_00621 | C21: TC003818 | D21: =VLOOKUP(C21,biomart_FASTA!F:G,1,FALSE) -> TC003818 | E21: CG9854 | F21: hrg | G21: D6WF69 | H21: D6WF69_TRICA | I21: Putative uncharacterized protein | J21: TcasGA2_TC003818 | L21: 565 | P21: RNA 3'-end processing [GO:0031123]; RNA polyadenylation [GO:0043631] | Q21: polynucleotide adenylyltransferase activity [GO:0004652]; RNA binding [GO:0003723] | R21: IPR011068;IPR007012;IPR007010;IPR014492;IPR002934; | S21: PF01909;PF04928;PF04926; | U21: FBgn0015949 | V21: hrg | W21: hiiragi [Source:FlyBase gene name;Acc:FBgn0015949] | X21: polyA polymerase | Y21: CNS, gut | Z21: 30 | AC21: LDEC015830 | AD21: LDEC015830 | AE21: =VLOOKUP(AD21,[1]logFC_table!$B:$J,9,FALSE) -> 29 | AF21: 14 | AG21: 0.9467168837 | AH21: 1.427068982 | AI21: 1.252300704 | AJ21: 0.4035760697 | AK21: -0.1884740475
A22: L20 | B22: iB_00655 | C22: TC004029 | D22: =VLOOKUP(C22,biomart_FASTA!F:G,1,FALSE) -> TC004029 | E22: CG4153 | F22: eIF-2β | G22: D6WIW0 | H22: D6WIW0_TRICA | I22: Putative uncharacterized protein | J22: TcasGA2_TC004029 | L22: 312 | Q22: translation initiation factor activity [GO:0003743] | R22: IPR002735;IPR016189;IPR016190; | S22: PF01873; | U22: FBgn0004926 | V22: eIF-2beta | W22: Eukaryotic initiation factor 2beta [Source:FlyBase gene name;Acc:FBgn0004926] | Z22: 14 | AA22: late larval | AC22: LDEC017202 | AD22: LDEC017202 | AE22: =VLOOKUP(AD22,[1]logFC_table!$B:$J,9,FALSE) -> 69 | AF22: 60 | AG22: 9.902059897 | AH22: 4.179346939 | AI22: 7.271800066 | AJ22: -0.4454161422 | AK22: 0.7990350083
A23: L21 | B23: iB_00731 | C23: TC004599 | D23: =VLOOKUP(C23,biomart_FASTA!F:G,1,FALSE) -> TC004599 | E23: CG7007 | F23: VhaPPA1 | G23: D6W818 | H23: D6W818_TRICA | I23: Putative uncharacterized protein | J23: TcasGA2_TC004599 | L23: 199 | N23: V-ATPase proteolipid subunit family | P23: ATP hydrolysis coupled proton transport [GO:0015991] | Q23: hydrogen ion transmembrane transporter activity [GO:0015078] | R23: IPR002379;IPR000245; | S23: PF00137; | U23: FBgn0028662 | V23: VhaPPA1-1 | W23: Vacuolar H[+] ATPase PPA1 subunit 1 [Source:FlyBase gene name;Acc:FBgn0028662] | Z23: 7 | AA23: late larval | AD23: LDEC020050 | AE23: =VLOOKUP(AD23,[1]logFC_table!$B:$J,9,FALSE) -> 163 | AF23: 123 | AG23: 44.19940661 | AH23: 31.0919574 | AI23: 37.40395037 | AJ23: -0.2408363545 | AK23: 0.2666492018 | AN23: CPB and Diabrotica virgifera (Baum et al 2007)
A24: L22 | B24: iB_00753 | C24: TC004683 | D24: =VLOOKUP(C24,biomart_FASTA!F:G,1,FALSE) -> TC004683 | E24: CG8843 | F24: Sec5 | G24: D6W674 | H24: D6W674_TRICA | I24: Putative uncharacterized protein | J24: TcasGA2_TC004683 | L24: 895 | P24: Golgi to plasma membrane transport [GO:0006893] | R24: IPR029175;IPR013783;IPR014756;IPR002909; | S24: PF01833; | U24: FBgn0266670 | V24: Sec5 | W24: Sec5 ortholog (S. cerevisiae) [Source:FlyBase gene name;Acc:FBgn0266670] | Z24: 11 | AC24: LDEC020746 | AD24: LDEC020746 | AE24: =VLOOKUP(AD24,[1]logFC_table!$B:$J,9,FALSE) -> 1 | AF24: 0 | AG24: 0.05 | AH24: 0.05 | AI24: 0.05127103478 | AJ24: 0.0362159204 | AK24: 0.0362159204
A25: L23 | B25: iB_00788 | C25: TC004949 | D25: =VLOOKUP(C25,biomart_FASTA!F:G,1,FALSE) -> TC004949 | E25: CG18617 | F25: Vha100-2 | G25: D6WCX7 | H25: D6WCX7_TRICA | I25: V-type proton ATPase subunit a | J25: TcasGA2_TC004949 | L25: 831 | M25: FUNCTION: Essential component of the vacuolar proton pump (V-ATPase), a multimeric enzyme that catalyzes the translocation of protons across the membranes. Required for assembly and activity of the V-ATPase. {ECO:0000256|RuleBase:RU361189}. | N25: V-ATPase 116 kDa subunit family | P25: ATP hydrolysis coupled proton transport [GO:0015991] | Q25: hydrogen ion transmembrane transporter activity [GO:0015078] | R25: IPR002490;IPR026028; | S25: PF01496; | U25: FBgn0028670 | V25: Vha100-2 | W25: Vacuolar H[+] ATPase 100kD subunit 2 [Source:FlyBase gene name;Acc:FBgn0028670] | Z25: 17 | AA25: adult/pharate | AB25: gb|EB757436.1 | AC25: LDEC017045 | AD25: LDEC017045 | AE25: =VLOOKUP(AD25,[1]logFC_table!$B:$J,9,FALSE) -> 130 | AF25: 40 | AG25: 6.712686744 | AH25: 6.551805521 | AI25: 13.93151292 | AJ25: 1.053389715 | AK25: 1.0883875 | AN25: CPB and Diabrotica virgifera (Baum et al 2007)
A26: L24 | B26: iB_00825 | C26: TC005313 | D26: =VLOOKUP(C26,biomart_FASTA!F:G,1,FALSE) -> TC005313 | E26: CG5395 | F26: nmd | G26: D6WV96 | H26: D6WV96_TRICA | I26: Putative uncharacterized protein | J26: TcasGA2_TC005313 | L26: 368 | N26: AAA ATPase family | Q26: ATP binding [GO:0005524] | R26: IPR003593;IPR003959;IPR003960;IPR027417; | S26: PF00004; | T26: PS00674; | U26: FBgn0005322 | V26: nmd | W26: no mitochondrial derivative [Source:FlyBase gene name;Acc:FBgn0005322] | X26: involved in spermatide development | Z26: 13 | AA26: late pupal | AC26: LDEC004927 | AD26: LDEC004927 | AE26: =VLOOKUP(AD26,[1]logFC_table!$B:$J,9,FALSE) -> 13 | AF26: 14 | AG26: 2.185973159 | AH26: 3.29510812 | AI26: 1.296219892 | AJ26: -0.7539652073 | AK26: -1.346015325
A27: L25 | B27: iB_00950 | C27: TC005869 | D27: =VLOOKUP(C27,biomart_FASTA!F:G,1,FALSE) -> TC005869 | E27: CG18174 | F27: Rpn11 | G27: D6WVU4 | H27: D6WVU4_TRICA | I27: Putative uncharacterized protein | J27: TcasGA2_TC005869 | L27: 311 | R27: IPR000555;IPR024969; | S27: PF01398;PF13012; | U27: FBgn0028694 | V27: Rpn11 | W27: Regulatory particle non-ATPase 11 [Source:FlyBase gene name;Acc:FBgn0028694] | X27: proteasome | Y27: Malpighian Tubules, gut, CNS, larva | Z27: 13 | AA27: early pupal | AC27: LDEC002449 | AD27: LDEC002449 | AE27: =VLOOKUP(AD27,[1]logFC_table!$B:$J,9,FALSE) -> 15 | AF27: 4 | AG27: 0.9229944273 | AH27: 1.704354815 | AI27: 2.210288107 | AJ27: 1.259840592 | AK27: 0.3750087258
A28: L26 | B28: iB_00985 | C28: TC006047 | D28: =VLOOKUP(C28,biomart_FASTA!F:G,1,FALSE) -> TC006047 | E28: CG5269 | F28: vib | G28: D6WYS3 | H28: D6WYS3_TRICA | I28: Putative uncharacterized protein | J28: TcasGA2_TC006047 | L28: 298 | P28: transport [GO:0006810] | R28: IPR001666;IPR023393; | S28: PF02121; | U28: FBgn0262468 | V28: vib | W28: vibrator [Source:FlyBase gene name;Acc:FBgn0262468] | Z28: 31 | AB28: gb|EB756002.1 | AC28: LDEC001900 | AD28: LDEC001900 | AE28: =VLOOKUP(AD28,[1]logFC_table!$B:$J,9,FALSE) -> 1 | AF28: 1 | AG28: 0.3721993788 | AH28: 0.3927340247 | AI28: 0.2376808458 | AJ28: -0.6470500034 | AK28: -0.7245269478
A29: L27 | B29: iB_01026 | C29: TC006281 | D29: =VLOOKUP(C29,biomart_FASTA!F:G,1,FALSE) -> TC006281 | E29: CG17332 | F29: VhaSFD | G29: D6WVU7 | H29: D6WVU7_TRICA | I29: V-type proton ATPase subunit H variant-2 | J29: VhaSFD TcasGA2_TC006281 | K29: VhaSFD | L29: 528 | P29: ATP hydrolysis coupled proton transport [GO:0015991] | Q29: proton-transporting ATPase activity, rotational mechanism [GO:0046961] | R29: IPR011989;IPR016024;IPR000225;IPR004908;IPR011987; | S29: PF11698; | U29: FBgn0027779 | V29: VhaSFD | W29: Vacuolar H[+]-ATPase SFD subunit [Source:FlyBase gene name;Acc:FBgn0027779] | Z29: 9 | AA29: early larval | AB29: gb|EB756986.1 | AC29: LDEC002447 | AD29: LDEC002447 | AE29: =VLOOKUP(AD29,[1]logFC_table!$B:$J,9,FALSE) -> 209 | AF29: 146 | AG29: 8.957325709 | AH29: 6.279428636 | AI29: 8.188235731 | AJ29: -0.1295154302 | AK29: 0.3829193421 | AN29: CPB and Diabrotica virgifera (Baum et al 2007)
A30: L28 | B30: iB_01103 | C30: TC006982 | D30: =VLOOKUP(C30,biomart_FASTA!F:G,1,FALSE) -> TC006982 | E30: - | F30: - | G30: D7EJY5 | H30: D7EJY5_TRICA | I30: Putative uncharacterized protein | J30: TcasGA2_TC006982 | L30: 1088 | P30: ER to Golgi vesicle-mediated transport [GO:0006888]; intracellular protein transport [GO:0006886] | Q30: zinc ion binding [GO:0008270] | R30: IPR029006;IPR007123;IPR006900;IPR006896;IPR012990;IPR002035;IPR006895; | S30: PF00626;PF08033;PF04815;PF04811;PF04810; | AC30: LDEC005329 | AD30: LDEC005329 | AE30: =VLOOKUP(AD30,[1]logFC_table!$B:$J,9,FALSE) -> 96 | AF30: 69 | AG30: 3.635884125 | AH30: 2.4464509 | AI30: 3.230358457 | AJ30: -0.1706119595 | AK30: 0.4010039343
A31: L29 | B31: iB_01207 | C31: TC007510 | D31: =VLOOKUP(C31,biomart_FASTA!F:G,1,FALSE) -> TC007510 | E31: CG9177 | F31: eIF5 | G31: D2A3J2 | H31: D2A3J2_TRICA | I31: Putative uncharacterized protein GLEAN_07510 | J31: GLEAN_07510 TcasGA2_TC007510 | K31: GLEAN_07510 | L31: 445 | Q31: translation initiation factor activity [GO:0003743] | R31: IPR016024;IPR016021;IPR002735;IPR016189;IPR016190;IPR003307; | S31: PF01873;PF02020; | T31: PS51363; | U31: FBgn0030719 | V31: eIF5 | W31: eIF5 [Source:FlyBase gene name;Acc:FBgn0030719] | Z31: 6 | AA31: late larval | AC31: LDEC001384 | AD31: LDEC001384 | AE31: =VLOOKUP(AD31,[1]logFC_table!$B:$J,9,FALSE) -> 2 | AF31: 2 | AG31: 0.7372064991 | AH31: 0.388939493 | AI31: 0.470768825 | AJ31: -0.6470500034 | AK31: 0.2754730522
A32: L30 | B32: iB_01233 | C32: TC007640 | D32: =VLOOKUP(C32,biomart_FASTA!F:G,1,FALSE) -> TC007640 | E32: CG7957 | F32: MED17 | G32: D2A2J0 | H32: D2A2J0_TRICA | I32: Putative uncharacterized protein GLEAN_07640 | J32: GLEAN_07640 TcasGA2_TC007640 | K32: GLEAN_07640 | L32: 639 | Q32: RNA polymerase II transcription cofactor activity [GO:0001104] | R32: IPR019313; | S32: PF10156; | U32: FBgn0038578 | V32: MED17 | W32: Mediator complex subunit 17 [Source:FlyBase gene name;Acc:FBgn0038578] | Z32: 9 | AA32: late pupal | AC32: LDEC004601 | AD32: LDEC004601 | AE32: =VLOOKUP(AD32,[1]logFC_table!$B:$J,9,FALSE) -> 0 | AF32: 0 | AG32: 0.05 | AH32: 0.1417437941 | AI32: 0.05 | AJ32: 0 | AK32: -1.503285572
A33: L31 | B33: iB_01271 | C33: TC007846 | D33: =VLOOKUP(C33,biomart_FASTA!F:G,1,FALSE) -> TC007846 | E33: CG8432 | F33: Rep | G33: D2A2F3 | H33: D2A2F3_TRICA | I33: Putative uncharacterized protein GLEAN_07846 | J33: GLEAN_07846 TcasGA2_TC007846 | K33: GLEAN_07846 | L33: 496 | P33: intracellular protein transport [GO:0006886]; protein geranylgeranylation [GO:0018344] | R33: IPR023753;IPR018203;IPR001738; | S33: PF00996; | U33: FBgn0026378 | V33: Rep | W33: Rab escort protein [Source:FlyBase gene name;Acc:FBgn0026378] | Z33: 6 | AA33: early pupal | AC33: LDEC003015 | AD33: LDEC003015 | AE33: =VLOOKUP(AD33,[1]logFC_table!$B:$J,9,FALSE) -> 0 | AF33: 0 | AG33: 0.05 | AH33: 0.05 | AI33: 0.05 | AJ33: 0 | AK33: 0
A34: L32 | B34: iB_01280 | C34: TC007891 | D34: =VLOOKUP(C34,biomart_FASTA!F:G,1,FALSE) -> TC007891 | E34: CG4157 | F34: Rpn12 | G34: D2A2W4 | H34: D2A2W4_TRICA | I34: Putative uncharacterized protein GLEAN_07891 | J34: GLEAN_07891 TcasGA2_TC007891 | K34: GLEAN_07891 | L34: 265 | P34: proteolysis [GO:0006508] | R34: IPR006746; | U34: FBgn0028693 | V34: Rpn12 | W34: Regulatory particle non-ATPase 12 [Source:FlyBase gene name;Acc:FBgn0028693] | X34: proteasome | Y34: Malpighian Tubules, gut, CNS, larva | Z34: 7 | AA34: early pupal | AB34: emb|JA828861.1 | AC34: LDEC002389 | AD34: LDEC002389 | AE34: =VLOOKUP(AD34,[1]logFC_table!$B:$J,9,FALSE) -> 25 | AF34: 15 | AG34: 1.061372263 | AH34: 0.6719575971 | AI34: 1.129626895 | AJ34: 0.08991559075 | AK34: 0.7494042406 | AL34: YES
A35: L33 | B35: iB_01347 | C35: TC008407 | D35: =VLOOKUP(C35,biomart_FASTA!F:G,1,FALSE) -> TC008407 | E35: CG31004 | F35: mesh | G35: D2A1L3 | H35: D2A1L3_TRICA | I35: Putative uncharacterized protein GLEAN_08407 | J35: GLEAN_08407 TcasGA2_TC008407 | K35: GLEAN_08407 | L35: 1428 | P35: cell-matrix adhesion [GO:0007160] | R35: IPR005533;IPR014756;IPR002909;IPR003886;IPR000436;IPR001846; | S35: PF03782;PF06119;PF01833;PF00094; | T35: PS50856;PS51220;PS50923;PS51233; | U35: FBgn0051004 | V35: mesh | W35: mesh [Source:FlyBase gene name;Acc:FBgn0051004] | X35: barrier function of the midgut epithelium, cell adhesion, subcellular localization, | Y35: gut, embrio, larva | Z35: 6 | AB35: gb|EB758508.1 | AC35: LDEC006484 | AD35: LDEC006484 | AE35: =VLOOKUP(AD35,[1]logFC_table!$B:$J,9,FALSE) -> 481 | AF35: 424 | AG35: 62.81858253 | AH35: 47.83729198 | AI35: 45.50780543 | AJ35: -0.4650773742 | AK35: -0.07202170669 | AM35: yes
A36: L34 | B36: iB_01385 | C36: TC008671 | D36: =VLOOKUP(C36,biomart_FASTA!F:G,1,FALSE) -> TC008671 | E36: CG10938 | F36: Prosα5 | G36: D6WT31 | H36: D6WT31_TRICA | I36: Proteasome subunit alpha type (EC 3.4.25.1) | J36: TcasGA2_TC008671 | L36: 242 | M36: FUNCTION: The proteasome is a multicatalytic proteinase complex which is characterized by its ability to cleave peptides with Arg, Phe, Tyr, Leu, and Glu adjacent to the leaving group at neutral or slightly basic pH. {ECO:0000256|RuleBase:RU000551}. | N36: Peptidase T1A family | O36: CATALYTIC ACTIVITY: Cleavage of peptide bonds with very broad specificity. {ECO:0000256|RuleBase:RU000551}. | P36: ubiquitin-dependent protein catabolic process [GO:0006511] | Q36: threonine-type endopeptidase activity [GO:0004298] | R36: IPR029055;IPR000426;IPR023332;IPR001353; | S36: PF00227;PF10584; | T36: PS00388;PS51475; | U36: FBgn0016697 | V36: Prosalpha5 | W36: Proteasome alpha5 subunit [Source:FlyBase gene name;Acc:FBgn0016697] | Z36: 8 | AA36: late larval | AC36: LDEC010714 | AD36: LDEC010714 | AE36: =VLOOKUP(AD36,[1]logFC_table!$B:$J,9,FALSE) -> 6 | AF36: 9 | AG36: 3.011876552 | AH36: 1.412464475 | AI36: 1.282225615 | AJ36: -1.232012504 | AK36: -0.139564447
A37: L35 | B37: iB_01456 | C37: TC009010 | D37: =VLOOKUP(C37,biomart_FASTA!F:G,1,FALSE) -> TC009010 | E37: CG7610 | F37: ATPsyn-γ | G37: D6WPW7 | H37: D6WPW7_TRICA | I37: ATP synthase subunit gamma | J37: TcasGA2_TC009010 | L37: 291 | N37: ATPase gamma chain family | P37: ATP synthesis coupled proton transport [GO:0015986] | Q37: proton-transporting ATPase activity, rotational mechanism [GO:0046961]; proton-transporting ATP synthase activity, rotational mechanism [GO:0046933] | R37: IPR000131;IPR023632;IPR023633; | S37: PF00231; | T37: PS00153; | U37: FBgn0020235 | V37: ATPsyn-gamma | W37: ATP synthase-gamma chain [Source:FlyBase gene name;Acc:FBgn0020235] | AA37: early larval | AB37: gb|EB759532.1 | AC37: LDEC004838 | AD37: LDEC004838 | AE37: =VLOOKUP(AD37,[1]logFC_table!$B:$J,9,FALSE) -> 47 | AF37: 18 | AG37: 0.7639990957 | AH37: 1.030080248 | AI37: 1.273904107 | AJ37: 0.7376138468 | AK37: 0.3064999479
A38: L36 | B38: iB_01467 | C38: TC033679 | D38: >TC033679 transcript1 | E38: CG18076 | F38: shot | U38: FBgn0013733 | V38: shot | W38: short stop [Source:FlyBase gene name;Acc:FBgn0013733] | X38: actin-binding | Y38: hindgut | Z38: 105 | AC38: LDEC009011 | AD38: LDEC009011 | AE38: =VLOOKUP(AD38,[1]logFC_table!$B:$J,9,FALSE) -> 41 | AF38: 28 | AG38: 2.929283959 | AH38: 1.876615278 | AI38: 2.739087078 | AJ38: -0.09685292086 | AK38: 0.5455622156
A39: L37 | B39: iB_01493 | C39: TC009191 | D39: =VLOOKUP(C39,biomart_FASTA!F:G,1,FALSE) -> TC009191 | E39: CG1250 | F39: Sec23 | G39: D6WT99 | H39: D6WT99_TRICA | I39: Putative uncharacterized protein | J39: TcasGA2_TC009191 | L39: 765 | P39: ER to Golgi vesicle-mediated transport [GO:0006888]; intracellular protein transport [GO:0006886] | Q39: zinc ion binding [GO:0008270] | R39: IPR029006;IPR007123;IPR006900;IPR006896;IPR012990;IPR002035;IPR006895; | S39: PF00626;PF08033;PF04815;PF04811;PF04810; | U39: FBgn0262125 | V39: Sec23 | W39: Sec23 ortholog (S. cerevisiae) [Source:FlyBase gene name;Acc:FBgn0262125] | Z39: 13 | AA39: late larval | AB39: dbj|DM180456.1 | AC39: LDEC011997 | AD39: LDEC011997 | AE39: =VLOOKUP(AD39,[1]logFC_table!$B:$J,9,FALSE) -> 111 | AF39: 40 | AG39: 3.151843277 | AH39: 5.487460951 | AI39: 5.585295331 | AJ39: 0.825437768 | AK39: 0.02549479923 | AL39: YES | AN39: CPB (Zhu et al 2011)
A40: L38 | B40: iB_01528 | C40: TC009328 | D40: =VLOOKUP(C40,biomart_FASTA!F:G,1,FALSE) -> TC009328 | E40: CG10540 | F40: cpa | G40: D6WRI1 | H40: D6WRI1_TRICA | I40: Putative uncharacterized protein | J40: TcasGA2_TC009328 | L40: 288 | P40: barbed-end actin filament capping [GO:0051016] | R40: IPR002189;IPR017865; | S40: PF01267; | T40: PS00748;PS00749; | U40: FBgn0034577 | V40: cpa | W40: capping protein alpha [Source:FlyBase gene name;Acc:FBgn0034577] | X40: actin-capping | Y40: gut, larva, prepupa | Z40: 19 | AC40: LDEC004416 | AD40: LDEC004416 | AE40: =VLOOKUP(AD40,[1]logFC_table!$B:$J,9,FALSE) -> 0 | AF40: 0 | AG40: 0.05 | AH40: 0.05 | AI40: 0.05 | AJ40: 0 | AK40: 0
A41: L39 | B41: iB_01562 | C41: TC009491 | D41: =VLOOKUP(C41,biomart_FASTA!F:G,1,FALSE) -> TC009491 | E41: CG2910 | F41: nito | G41: D6WRT8 | H41: D6WRT8_TRICA | I41: Putative uncharacterized protein | J41: TcasGA2_TC009491 | L41: 702 | Q41: nucleic acid binding [GO:0003676]; nucleotide binding [GO:0000166] | R41: IPR012677;IPR000504;IPR016194;IPR012921;IPR010912; | S41: PF00076;PF07744; | T41: PS50102;PS50917; | U41: FBgn0027548 | V41: nito | W41: spenito [Source:FlyBase gene name;Acc:FBgn0027548] | X41: mRNA splicing | Y41: early embrio | Z41: 19 | AA41: late pupal | AC41: LDEC019906 | AD41: LDEC019906 | AE41: =VLOOKUP(AD41,[1]logFC_table!$B:$J,9,FALSE) -> 0 | AF41: 0 | AG41: 0.05 | AH41: 0.05 | AI41: 0.05 | AJ41: 0 | AK41: 0
A42: L40 | B42: iB_01675 | C42: TC010367 | D42: =VLOOKUP(C42,biomart_FASTA!F:G,1,FALSE) -> TC010367 | E42: CG1088 | F42: Vha26 | G42: D6WGB5 | H42: D6WGB5_TRICA | I42: Putative uncharacterized protein | J42: TcasGA2_TC010367 | L42: 233 | P42: ATP hydrolysis coupled proton transport [GO:0015991] | Q42: proton-transporting ATPase activity, rotational mechanism [GO:0046961]; transferase activity, transferring acyl groups other than amino-acyl groups [GO:0016747] | R42: IPR002842; | S42: PF01991; | U42: FBgn0015324 | V42: Vha26 | W42: Vacuolar H[+]-ATPase 26kD subunit [Source:FlyBase gene name;Acc:FBgn0015324] | Z42: 8 | AA42: early pupal | AB42: gb|KF833400.1 | AC42: LDEC013831 | AD42: LDEC013831 | AE42: =VLOOKUP(AD42,[1]logFC_table!$B:$J,9,FALSE) -> 156 | AF42: 59 | AG42: 11.86753467 | AH42: 14.85694179 | AI42: 20.03787377 | AJ42: 0.7557091661 | AK42: 0.4315922542 | AL42: YES | AN42: CPB and Diabrotica virgifera (Baum et al 2007)
A43: L41 | B43: iB_01682 | C43: TC010405 | D43: =VLOOKUP(C43,biomart_FASTA!F:G,1,FALSE) -> TC010405 | E43: CG3992 | F43: srp | G43: D6WKS1 | H43: D6WKS1_TRICA | I43: Serpent | J43: srp TcasGA2_TC010405 | K43: srp | L43: 528 | Q43: sequence-specific DNA binding [GO:0043565]; transcription factor activity, sequence-specific DNA binding [GO:0003700]; zinc ion binding [GO:0008270] | R43: IPR028436;IPR000679;IPR013088; | S43: PF00320; | T43: PS00344;PS50114; | U43: FBgn0003507 | V43: srp | W43: serpent [Source:FlyBase gene name;Acc:FBgn0003507] | X43: transcription factor | Y43: fat body, larva | Z43: 80 | AC43: LDEC012258 | AD43: LDEC012258 | AE43: =VLOOKUP(AD43,[1]logFC_table!$B:$J,9,FALSE) -> 4 | AF43: 2 | AG43: 0.1004179065 | AH43: 0.05 | AI43: 0.1282506867 | AJ43: 0.3529499966 | AK43: 1.35896655
A44: L42 | B44: iB_01709 | C44: TC010557 | D44: =VLOOKUP(C44,biomart_FASTA!F:G,1,FALSE) -> TC010557 | E44: CG9539 | F44: Sec61α | G44: D6WE66 | H44: D6WE66_TRICA | I44: Putative uncharacterized protein | J44: TcasGA2_TC010557 | L44: 476 | N44: SecY/SEC61-alpha family | P44: protein transport [GO:0015031] | R44: IPR002208;IPR030659;IPR023201;IPR019561; | S44: PF10559;PF00344; | T44: PS00755;PS00756; | U44: FBgn0086357 | V44: Sec61alpha | W44: Sec61 alpha subunit [Source:FlyBase gene name;Acc:FBgn0086357] | X44: protein transporter | Y44: gut, fat body, all stages | Z44: 33 | AC44: LDEC003829 | AD44: LDEC003829 | AE44: =VLOOKUP(AD44,[1]logFC_table!$B:$J,9,FALSE) -> 295 | AF44: 98 | AG44: 8.414274779 | AH44: 6.975963893 | AI44: 16.17451142 | AJ44: 0.9428112967 | AK44: 1.213257656 | AM44: yes
A45: L43 | B45: iB_01800 | C45: TC011082 | D45: =VLOOKUP(C45,biomart_FASTA!F:G,1,FALSE) -> TC011082 | E45: CG2674 | F45: Sam-S | G45: D6X4E7 | H45: D6X4E7_TRICA | I45: S-adenosylmethionine synthase (EC 2.5.1.6) | J45: TcasGA2_TC011082 | L45: 439 | M45: FUNCTION: Catalyzes the formation of S-adenosylmethionine from methionine and ATP. {ECO:0000256|RuleBase:RU000541}. | N45: AdoMet synthase family | O45: CATALYTIC ACTIVITY: ATP + L-methionine + H(2)O = phosphate + diphosphate + S-adenosyl-L-methionine. {ECO:0000256|RuleBase:RU000541}. | P45: one-carbon metabolic process [GO:0006730]; S-adenosylmethionine biosynthetic process [GO:0006556] | Q45: ATP binding [GO:0005524]; metal ion binding [GO:0046872]; methionine adenosyltransferase activity [GO:0004478] | R45: IPR022631;IPR022630;IPR022629;IPR022628;IPR002133;IPR022636; | S45: PF02773;PF02772;PF00438; | T45: PS00376;PS00377; | U45: FBgn0005278 | V45: Sam-S | W45: S-adenosylmethionine Synthetase [Source:FlyBase gene name;Acc:FBgn0005278] | X45: methyl donor | Y45: CNS, fat body, hindgut, larva | Z45: 17 | AA45: late pupal | AB45: gb|KP689344.1 | AC45: LDEC003762 | AD45: LDEC012644 | AE45: =VLOOKUP(AD45,[1]logFC_table!$B:$J,9,FALSE) -> 329 | AF45: 498 | AG45: 46.8530636 | AH45: 22.2371719 | AI45: 19.76619562 | AJ45: -1.245108162 | AK45: -0.1699380961 | AM45: yes
A46: L44 | B46: iB_01807 | C46: TC011120 | D46: =VLOOKUP(C46,biomart_FASTA!F:G,1,FALSE) -> TC011120 | E46: CG15811 | F46: Rop | G46: D6X469 | H46: D6X469_TRICA | I46: Ras opposite | J46: Rop TcasGA2_TC011120 | K46: Rop | L46: 578 | P46: vesicle docking involved in exocytosis [GO:0006904] | R46: IPR027482;IPR001619; | S46: PF00995; | U46: FBgn0004574 | V46: Rop | W46: Ras opposite [Source:FlyBase gene name;Acc:FBgn0004574] | X46: vesicle transport, neurotransmitter release | Y46: gut, CNS | Z46: 25 | AA46: late pupal | AC46: LDEC018675 | AD46: LDEC018675 | AE46: =VLOOKUP(AD46,[1]logFC_table!$B:$J,9,FALSE) -> 35 | AF46: 29 | AG46: 1.702532937 | AH46: 1.734516518 | AI46: 1.312151887 | AJ46: -0.3757479816 | AK46: -0.4025988529
A47: L45 | B47: iB_01824 | C47: TC011204 | D47: =VLOOKUP(C47,biomart_FASTA!F:G,1,FALSE) -> TC011204 | E47: CG17420 | F47: RpL15 | G47: D6X3S2 | H47: D6X3S2_TRICA | I47: Ribosomal protein L15 | J47: TcasGA2_TC011204 | L47: 204 | N47: Ribosomal protein L15e family | P47: translation [GO:0006412] | Q47: structural constituent of ribosome [GO:0003735] | R47: IPR024794;IPR000439;IPR020925;IPR012678; | S47: PF00827; | T47: PS01194; | U47: FBgn0028697 | V47: RpL15 | W47: Ribosomal protein L15 [Source:FlyBase gene name;Acc:FBgn0028697] | Z47: 26 | AA47: early larval | AC47: LDEC005567 | AD47: LDEC005567 | AE47: =VLOOKUP(AD47,[1]logFC_table!$B:$J,9,FALSE) -> 0 | AF47: 0 | AG47: 0.05 | AH47: 0.05 | AI47: 0.05 | AJ47: 0 | AK47: 0 | AN47: rpl9, rpl19 in CPB and WCR (Baum et al 2007); rpl19 in Bactrocera dorsalis (Chen et al 2015)
A48: L46 | B48: iB_01879 | C48: TC011708 | D48: =VLOOKUP(C48,biomart_FASTA!F:G,1,FALSE) -> TC011708 | E48: CG5930 | F48: TfIIA-L | G48: D6X0D4 | H48: D6X0D4_TRICA | I48: Putative uncharacterized protein | J48: TcasGA2_TC011708 | L48: 312 | P48: transcription initiation from RNA polymerase II promoter [GO:0006367] | R48: IPR009083;IPR004855;IPR013028;IPR009088; | S48: PF03153; | U48: FBgn0011289 | V48: TfIIA-L | W48: Transcription factor IIA L [Source:FlyBase gene name;Acc:FBgn0011289] | AC48: LDEC010231 | AD48: LDEC010231 | AE48: =VLOOKUP(AD48,[1]logFC_table!$B:$J,9,FALSE) -> 4 | AF48: 9 | AG48: 1.831220944 | AH48: 0.05 | AI48: 0.5197287828 | AJ48: -1.816975005 | AK48: 3.377758958
A49: L47 | B49: iB_02161 | C49: TC013571 | D49: =VLOOKUP(C49,biomart_FASTA!F:G,1,FALSE) -> TC013571 | E49: CG6625 | F49: alpha snap | G49: D6W780 | H49: D6W780_TRICA | I49: Putative uncharacterized protein | J49: TcasGA2_TC013571 | L49: 291 | P49: intracellular protein transport [GO:0006886] | R49: IPR000744;IPR011990; | U49: FBgn0250791 | V49: alphaSnap | W49: alpha Soluble NSF attachment protein [Source:FlyBase gene name;Acc:FBgn0250791] | X49: ER to Golgi vesicle-mediated transport | Y49: CNS, adult | Z49: 21 | AA49: early larval | AB49: gb|EB759900.1 | AC49: LDEC019570 | AD49: LDEC019570 | AE49: =VLOOKUP(AD49,[1]logFC_table!$B:$J,9,FALSE) -> 2 | AF49: 6 | AG49: 3.179203027 | AH49: 0.5591005212 | AI49: 0.6767301859 | AJ49: -2.232012504 | AK49: 0.2754730522
A50: L48 | B50: iB_03390 | C50: TC002507 | D50: =VLOOKUP(C50,biomart_FASTA!F:G,1,FALSE) -> TC002507 | E50: CG17603 | F50: Taf1 | G50: D6WH84 | H50: D6WH84_TRICA | I50: Putative uncharacterized protein | J50: TcasGA2_TC002507 | L50: 1887 | P50: DNA-templated transcription, initiation [GO:0006352]; regulation of transcription, DNA-templated [GO:0006355] | Q50: DNA binding [GO:0003677] | R50: IPR001487;IPR018359;IPR011177;IPR009067;IPR022591; | S50: PF00439;PF12157;PF09247; | T50: PS00633;PS50014; | U50: FBgn0010355 | V50: Taf1 | W50: TBP-associated factor 1 [Source:FlyBase gene name;Acc:FBgn0010355] | Z50: 31 | AA50: late pupal | AC50: LDEC004538 | AD50: LDEC004538 | AE50: =VLOOKUP(AD50,[1]logFC_table!$B:$J,9,FALSE) -> 0 | AF50: 0 | AG50: 0.05 | AH50: 0.05 | AI50: 0.05 | AJ50: 0 | AK50: 0
A51: L49 | B51: iB_00268 | C51: TC001600 | D51: =VLOOKUP(C51,biomart_FASTA!F:G,1,FALSE) -> TC001600 | E51: CG6601 | F51: Rab6 | G51: D6W6M3 | H51: D6W6M3_TRICA | I51: Putative uncharacterized protein | J51: TcasGA2_TC001600 | L51: 209 | N51: Small GTPase superfamily, Rab family | P51: protein transport [GO:0015031]; small GTPase mediated signal transduction [GO:0007264] | Q51: GTP binding [GO:0005525] | R51: IPR027417;IPR005225;IPR001806;IPR003579; | S51: PF00071; | U51: FBgn0015797 | V51: Rab6 | W51: Rab6 [Source:FlyBase gene name;Acc:FBgn0015797] | Z51: 77 | AC51: LDEC017315 | AD51: LDEC017315 | AE51: =VLOOKUP(AD51,[1]logFC_table!$B:$J,9,FALSE) -> 0 | AF51: 0 | AG51: 0.05 | AH51: 0.05 | AI51: 0.05 | AJ51: 0 | AK51: 0 | AN51: rab11 in Bactrocera dorsalis (Li et al 2011)
A52: L50 | B52: iB_01793 | C52: TC011058 | D52: =VLOOKUP(C52,biomart_FASTA!F:G,1,FALSE) -> TC011058 | E52: CG18102 | F52: shi | G52: D6X4J4 | H52: D6X4J4_TRICA | I52: Putative uncharacterized protein | J52: TcasGA2_TC011058 | L52: 881 | N52: TRAFAC class dynamin-like GTPase superfamily, Dynamin/Fzo/YdjA family | P52: clathrin-mediated endocytosis [GO:0072583] | Q52: GTPase activity [GO:0003924]; GTP binding [GO:0005525] | R52: IPR027741;IPR000375;IPR001401;IPR019762;IPR022812;IPR030381;IPR003130;IPR020850;IPR027417;IPR011993;IPR001849; | S52: PF01031;PF00350;PF02212;PF00169; | T52: PS00410;PS51718;PS51388;PS50003; | U52: FBgn0003392 | V52: shi | W52: shibire [Source:FlyBase gene name;Acc:FBgn0003392] | X52: dynamin GTPase, actin binding, vesicular trafficing | Y52: CNS, eye, gut, larva, adult | Z52: 93 | AA52: early larval | AB52: gb|EB754785.1 | AC52: LDEC016479 | AD52: LDEC016479 | AE52: =VLOOKUP(AD52,[1]logFC_table!$B:$J,9,FALSE) -> 55 | AF52: 33 | AG52: 3.367715735 | AH52: 1.184505429 | AI52: 3.584286495 | AJ52: 0.08991559075 | AK52: 1.597401147 | AN52: in WCR (Baum et al 2007, Supplement)
A53: L51 | B53: iB_01796 | C53: TC011068 | D53: =VLOOKUP(C53,biomart_FASTA!F:G,1,FALSE) -> TC011068 | E53: CG2467 | F53: pot | G53: D6X4H8 | H53: D6X4H8_TRICA | I53: Putative uncharacterized protein | J53: TcasGA2_TC011068 | L53: 915 | R53: IPR001507; | S53: PF00100; | U53: FBgn0250871 | V53: pot | W53: papillote [Source:FlyBase gene name;Acc:FBgn0250871] | Y53: tranchea, pupa | Z53: 13 | AB53: gb|EB760403.1 | AC53: LDEC013339 | AD53: LDEC013339 | AE53: =VLOOKUP(AD53,[1]logFC_table!$B:$J,9,FALSE) -> 0 | AF53: 2 | AG53: 0.1081770406 | AH53: 0.05 | AI53: 0.05 | AJ53: -1.113394336 | AK53: 0
A54: L52 | B54: iB_01857 | C54: TC031473 | D54: >TC031473 transcript1 | E54: CG1782 | F54: Uba1 | U54: FBgn0023143 | V54: Uba1 | W54: Ubiquitin activating enzyme 1 [Source:FlyBase gene name;Acc:FBgn0023143] | Z54: 48 | AB54: gb|EB760914.1 | AC54: LDEC005909 | AD54: LDEC005909 | AE54: =VLOOKUP(AD54,[1]logFC_table!$B:$J,9,FALSE) -> 22 | AF54: 35 | AG54: 2.40371786 | AH54: 1.739200181 | AI54: 0.9648430373 | AJ54: -1.316901402 | AK54: -0.8500578298
A55: L53 | B55: iB_01884 | C55: TC011725 | D55: =VLOOKUP(C55,biomart_FASTA!F:G,1,FALSE) -> TC011725 | E55: CG6022 | F55: Cchl | G55: D6X0A1 | H55: D6X0A1_TRICA | I55: Putative uncharacterized protein | J55: TcasGA2_TC011725 | L55: 256 | Q55: holocytochrome-c synthase activity [GO:0004408] | R55: IPR000511; | S55: PF01265; | T55: PS00822; | U55: FBgn0038925 | V55: Cchl | W55: Cytochrome c heme lyase [Source:FlyBase gene name;Acc:FBgn0038925] | Z55: 15 | AA55: late larval | AC55: LDEC007421 | AD55: LDEC007421 | AE55: =VLOOKUP(AD55,[1]logFC_table!$B:$J,9,FALSE) -> 30 | AF55: 14 | AG55: 3.445845862 | AH55: 1.298556049 | AI55: 4.715281295 | AJ55: 0.4524856701 | AK55: 1.860435553
A56: L54 | B56: iB_02377 | C56: TC015014 | D56: =VLOOKUP(C56,biomart_FASTA!F:G,1,FALSE) -> TC015014 | E56: CG9012 | F56: Chc | G56: D2A6C5 | H56: D2A6C5_TRICA | I56: Clathrin heavy chain | J56: GLEAN_15014 Chc TcasGA2_TC015014 | K56: GLEAN_15014 | L56: 1684 | M56: FUNCTION: Clathrin is the major protein of the polyhedral coat of coated pits and vesicles. {ECO:0000256|PIRNR:PIRNR002290}. | N56: Clathrin heavy chain family | P56: intracellular protein transport [GO:0006886]; vesicle-mediated transport [GO:0016192] | Q56: structural molecule activity [GO:0005198] | R56: IPR016024;IPR000547;IPR016025;IPR012331;IPR015348;IPR001473;IPR022365;IPR016341;IPR011990; | S56: PF00637;PF09268;PF01394; | T56: PS50236; | U56: FBgn0000319 | V56: Chc | W56: Clathrin heavy chain [Source:FlyBase gene name;Acc:FBgn0000319] | X56: vesicle transport | Y56: gut | Z56: 36 | AA56: early pupal | AB56: gb|EB761575.1 | AC56: LDEC017401 | AD56: LDEC017401 | AE56: =VLOOKUP(AD56,[1]logFC_table!$B:$J,9,FALSE) -> 370 | AF56: 219 | AG56: 7.86471185 | AH56: 3.865109094 | AI56: 8.485139074 | AJ56: 0.1095443975 | AK56: 1.134429171 | AM56: yes
A57: L55 | B57: iB_02456 | C57: TC015321 | D57: =VLOOKUP(C57,biomart_FASTA!F:G,1,FALSE) -> TC015321 | E57: CG6593 | F57: pp1alpha-96a | G57: D2A4R4 | H57: D2A4R4_TRICA | I57: Serine/threonine-protein phosphatase (EC 3.1.3.16) | J57: GLEAN_15321 TcasGA2_TC015321 | K57: GLEAN_15321 | L57: 327 | N57: PPP phosphatase family | O57: CATALYTIC ACTIVITY: [a protein]-serine/threonine phosphate + H(2)O = [a protein]-serine/threonine + phosphate. {ECO:0000256|RuleBase:RU004273, ECO:0000256|SAAS:SAAS00336407}. | Q57: phosphoprotein phosphatase activity [GO:0004721] | R57: IPR004843;IPR029052;IPR006186;IPR031675; | S57: PF00149;PF16891; | T57: PS00125; | U57: FBgn0003134 | V57: Pp1alpha-96A | W57: Protein phosphatase 1alpha at 96A [Source:FlyBase gene name;Acc:FBgn0003134] | X57: protein phosphorilation | Y57: adult crop, fat body, gut | Z57: 10 | AA57: late pupal | AB57: gb|EB760859.1 | AC57: LDEC001822 | AD57: LDEC001822 | AE57: =VLOOKUP(AD57,[1]logFC_table!$B:$J,9,FALSE) -> 65 | AF57: 63 | AG57: 12.68325851 | AH57: 6.797718211 | AI57: 8.356457177 | AJ57: -0.6019621139 | AK57: 0.2978408653
A58: L56 | B58: iB_02457 | C58: TC015322 | D58: =VLOOKUP(C58,biomart_FASTA!F:G,1,FALSE) -> TC015322 | E58: CG11154 | F58: ATPsyn-β | G58: D2A4R3 | H58: D2A4R3_TRICA | I58: ATP synthase subunit beta (EC 3.6.3.14) | J58: GLEAN_15322 TcasGA2_TC015322 | K58: GLEAN_15322 | L58: 518 | M58: FUNCTION: Produces ATP from ADP in the presence of a proton gradient across the membrane. {ECO:0000256|RuleBase:RU003553}. | N58: ATPase alpha/beta chains family | O58: CATALYTIC ACTIVITY: ATP + H(2)O + H(+)(In) = ADP + phosphate + H(+)(Out). {ECO:0000256|RuleBase:RU003553}. | P58: ATP hydrolysis coupled proton transport [GO:0015991]; ATP synthesis coupled proton transport [GO:0015986] | Q58: ATP binding [GO:0005524]; proton-transporting ATP synthase activity, rotational mechanism [GO:0046933] | R58: IPR003593;IPR020003;IPR005722;IPR000793;IPR000194;IPR004100;IPR024034;IPR027417; | S58: PF00006;PF00306;PF02874; | T58: PS00152; | U58: FBgn0010217 | V58: ATPsyn-beta | W58: ATP synthase-beta [Source:FlyBase gene name;Acc:FBgn0010217] | AB58: gb|EB760184.1 | AC58: LDEC020740 | AD58: LDEC020740 | AE58: =VLOOKUP(AD58,[1]logFC_table!$B:$J,9,FALSE) -> 1083 | AF58: 365 | AG58: 43.95026594 | AH58: 54.63362063 | AI58: 83.27519144 | AJ58: 0.9220148704 | AK58: 0.6080977303
A59: L57 | B59: iB_02509 | C59: TC015727 | D59: =VLOOKUP(C59,biomart_FASTA!F:G,1,FALSE) -> TC015727 | E59: CG17170 | F59: su(f) | G59: D2A3P0 | H59: D2A3P0_TRICA | I59: Putative uncharacterized protein GLEAN_15727 | J59: GLEAN_15727 TcasGA2_TC015727 | K59: GLEAN_15727 | L59: 710 | P59: mRNA processing [GO:0006397] | R59: IPR003107;IPR008847;IPR011990; | S59: PF05843; | U59: FBgn0003559 | V59: su(f) | W59: suppressor of forked [Source:FlyBase gene name;Acc:FBgn0003559] | Z59: 56 | AC59: LDEC005185 | AD59: LDEC005185 | AE59: =VLOOKUP(AD59,[1]logFC_table!$B:$J,9,FALSE) -> 3 | AF59: 2 | AG59: 0.2923405082 | AH59: 0.3084692531 | AI59: 0.2800262838 | AJ59: -0.06208750269 | AK59: -0.139564447
A60: L58 | B60: iB_02531 | C60: TC015935 | D60: =VLOOKUP(C60,biomart_FASTA!F:G,1,FALSE) -> TC015935 | E60: CG13281 | F60: Cas | G60: D6WTV7 | H60: D6WTV7_TRICA | I60: Putative uncharacterized protein | J60: TcasGA2_TC015935 | L60: 969 | P60: intracellular protein transport [GO:0006886] | R60: IPR011989;IPR016024;IPR005043;IPR013713;IPR001494; | S60: PF03378;PF08506;PF03810; | T60: PS50166; | U60: FBgn0022213 | V60: Cas | W60: CAS/CSE1 segregation protein [Source:FlyBase gene name;Acc:FBgn0022213] | X60: zink finger transcription factor | Y60: CNS, embrio | Z60: 22 | AA60: late larval | AC60: LDEC014614 | AD60: LDEC014614 | AE60: =VLOOKUP(AD60,[1]logFC_table!$B:$J,9,FALSE) -> 1 | AF60: 1 | AG60: 0.2509897127 | AH60: 0.794511267 | AI60: 0.1602782019 | AJ60: -0.6470500034 | AK60: -2.309489448 | AN60: some ZnF published in CPB (Liu et al 2014)
A61: L59 | B61: iB_02553 | C61: TC031972 | D61: >TC031972 transcript1 | E61: CG5931 | F61: l(3)72Ab | U61: FBgn0263599 | V61: l(3)72Ab | W61: lethal (3) 72Ab [Source:FlyBase gene name;Acc:FBgn0263599] | Z61: 24 | AC61: LDEC018190 | AD61: LDEC018190 | AE61: =VLOOKUP(AD61,[1]logFC_table!$B:$J,9,FALSE) -> 23 | AF61: 27 | AG61: 1.105611929 | AH61: 0.6049087571 | AI61: 0.6014303334 | AJ61: -0.8783755495 | AK61: -0.008319913765
A62: L60 | B62: iB_02593 | C62: TC030579 | D62: =VLOOKUP(C62,biomart_FASTA!F:G,1,FALSE) -> TC030579 | E62: CG6174 | F62: Arp1 | G62: D6X502 | H62: D6X502_TRICA | I62: Putative uncharacterized protein (Fragment) | J62: TcasGA2_TC030579 | L62: 360 | N62: Actin family | R62: IPR004000;IPR020902;IPR029909; | S62: PF00022; | T62: PS01132; | U62: FBgn0011745 | V62: Arp1 | W62: Actin-related protein 1 [Source:FlyBase gene name;Acc:FBgn0011745] | AC62: LDEC006220 | AD62: LDEC006220 | AE62: =VLOOKUP(AD62,[1]logFC_table!$B:$J,9,FALSE) -> 31 | AF62: 23 | AG62: 3.280224432 | AH62: 1.805842431 | AI62: 2.823293037 | AJ62: -0.2164156491 | AK62: 0.6447068619
A63: L61 | B63: iB_02601 | C63: TC030625 | D63: =VLOOKUP(C63,biomart_FASTA!F:G,1,FALSE) -> TC030625 | E63: CG12323 | F63: Prosβ5 | G63: D6WS19 | H63: D6WS19_TRICA | I63: Proteasome subunit beta type (EC 3.4.25.1) | J63: TcasGA2_TC030625 | L63: 273 | M63: FUNCTION: The proteasome is a multicatalytic proteinase complex which is characterized by its ability to cleave peptides with Arg, Phe, Tyr, Leu, and Glu adjacent to the leaving group at neutral or slightly basic pH. The proteasome has an ATP-dependent proteolytic activity. {ECO:0000256|RuleBase:RU004203}. | N63: Peptidase T1B family | O63: CATALYTIC ACTIVITY: Cleavage of peptide bonds with very broad specificity. {ECO:0000256|RuleBase:RU000694}. | P63: proteolysis involved in cellular protein catabolic process [GO:0051603] | Q63: threonine-type endopeptidase activity [GO:0004298] | R63: IPR029055;IPR000243;IPR016050;IPR001353;IPR023333; | S63: PF00227; | T63: PS00854;PS51476; | U63: FBgn0029134 | V63: Prosbeta5 | W63: Proteasome beta5 subunit [Source:FlyBase gene name;Acc:FBgn0029134] | Z63: 11 | AA63: early pupal | AC63: LDEC010014 | AD63: LDEC010014 | AE63: =VLOOKUP(AD63,[1]logFC_table!$B:$J,9,FALSE) -> 8 | AF63: 12 | AG63: 2.959947646 | AH63: 2.342438391 | AI63: 1.260118277 | AJ63: -1.232012504 | AK63: -0.8944519492
A64: L62 | B64: iB_02611 | C64: TC030666 | D64: =VLOOKUP(C64,biomart_FASTA!F:G,1,FALSE) -> TC030666 | E64: CG11522 | F64: RpL6 | G64: D2A3P5 | H64: D2A3P5_TRICA | I64: Putative uncharacterized protein GLEAN_15729-OG20814 | J64: GLEAN_15729-OG20814 TcasGA2_TC030666 | K64: GLEAN_15729-OG20814 | L64: 263 | P64: translation [GO:0006412] | Q64: structural constituent of ribosome [GO:0003735] | R64: IPR000915;IPR014722;IPR005568;IPR008991; | S64: PF01159;PF03868; | U64: FBgn0039857 | V64: RpL6 | W64: Ribosomal protein L6 [Source:FlyBase gene name;Acc:FBgn0039857] | AB64: gb|EB760226.1 | AC64: LDEC023007 | AD64: LDEC023007 | AE64: =VLOOKUP(AD64,[1]logFC_table!$B:$J,9,FALSE) -> 254 | AF64: 153 | AG64: 49.46624371 | AH64: 49.46618171 | AI64: 52.44085441 | AJ64: 0.08424684066 | AK64: 0.08424864899 | AN64: rpl9, rpl19 in CPB (Baum et al 2007); rpl19 in Bactrocera dorsalis (Chen et al 2015)
A65: L63 | B65: iB_02644 | C65: TC000801 | D65: =VLOOKUP(C65,biomart_FASTA!F:G,1,FALSE) -> TC000801 | E65: CG2503 | F65: atms | G65: D6WD68 | H65: D6WD68_TRICA | I65: Putative uncharacterized protein | J65: TcasGA2_TC000801 | L65: 465 | P65: histone modification [GO:0016570]; transcription elongation from RNA polymerase II promoter [GO:0006368] | R65: IPR007133; | S65: PF03985; | U65: FBgn0010750 | V65: atms | W65: antimeros [Source:FlyBase gene name;Acc:FBgn0010750] | X65: transcription cofactor | Y65: CNS, embrio | Z65: 8 | AA65: early pupal | AC65: LDEC001741 | AD65: LDEC001741 | AE65: =VLOOKUP(AD65,[1]logFC_table!$B:$J,9,FALSE) -> 15 | AF65: 7 | AG65: 0.704625473 | AH65: 0.106214347 | AI65: 0.9642065973 | AJ65: 0.4524856701 | AK65: 3.182363648
A66: L64 | B66: iB_02646 | C66: TC030619 | D66: =VLOOKUP(C66,biomart_FASTA!F:G,1,FALSE) -> TC030619 | E66: CG8118 | F66: mam | G66: D6W8H5 | H66: D6W8H5_TRICA | I66: Putative uncharacterized protein | J66: TcasGA2_TC030619 | L66: 805 | P66: Notch signaling pathway [GO:0007219]; positive regulation of transcription from RNA polymerase II promoter [GO:0045944] | Q66: transcription coactivator activity [GO:0003713] | R66: IPR019082; | S66: PF09596; | U66: FBgn0002643 | V66: mam | W66: mastermind [Source:FlyBase gene name;Acc:FBgn0002643] | X66: cell division transcription factor | Y66: CNS, larva | Z66: 205 | AC66: LDEC010363 | AD66: LDEC010363 | AE66: =VLOOKUP(AD66,[1]logFC_table!$B:$J,9,FALSE) -> 3 | AF66: 5 | AG66: 0.1520947628 | AH66: 0.2246803955 | AI66: 0.05827523727 | AJ66: -1.384015598 | AK66: -1.946919369
A67: L65 | B67: iB_02695 | C67: TC003405 | D67: =VLOOKUP(C67,biomart_FASTA!F:G,1,FALSE) -> TC003405 | E67: - | F67: - | G67: D6WG71 | H67: D6WG71_TRICA | I67: Putative uncharacterized protein | J67: TcasGA2_TC003405 | L67: 663 | P67: transmembrane transport [GO:0055085] | R67: IPR011701;IPR020846; | S67: PF07690; | T67: PS50850; | U67: FBgn0024315 | V67: Picot | W67: Sodium/anion cotransporter | X67: Maybe an inorganic phosphate cotransporter. | Y67: gut, CNS, larva, adult gut | Z67: 7 | AC67: LDEC013444 | AD67: LDEC013444 | AE67: =VLOOKUP(AD67,[1]logFC_table!$B:$J,9,FALSE) -> 82 | AF67: 171 | AG67: 16.56468374 | AH67: 4.804052892 | AI67: 5.072469341 | AJ67: -1.707350514 | AK67: 0.07843620518 | AM67: yes
A68: L66 | B68: iB_02765 | C68: TC008190 | D68: =VLOOKUP(C68,biomart_FASTA!F:G,1,FALSE) -> TC008190 | E68: CG12202 | F68: Nat1 | G68: D2A0B9 | H68: D2A0B9_TRICA | I68: Putative uncharacterized protein GLEAN_08190 | J68: GLEAN_08190 TcasGA2_TC008190 | K68: GLEAN_08190 | L68: 863 | R68: IPR021183;IPR013026;IPR011990;IPR013105;IPR019734; | S68: PF12569;PF07719; | T68: PS50005;PS50293; | U68: FBgn0031020 | V68: Nat1 | W68: NAT1 ortholog (S. cerevisiae) [Source:FlyBase gene name;Acc:FBgn0031020] | X68: N-acetyl transferase | Y68: CNS, gut, larva | Z68: 10 | AA68: late pupal | AC68: LDEC006073 | AD68: LDEC006073 | AE68: =VLOOKUP(AD68,[1]logFC_table!$B:$J,9,FALSE) -> 8 | AF68: 8 | AG68: 0.9813617061 | AH68: 0.3883141884 | AI68: 0.6266826159 | AJ68: -0.6470500034 | AK68: 0.6905105515 | AN68: !! This is not a solute carrier (CG3252) published in CPB with same gene name (Fu et al 2015)
A69: L67 | B69: iB_02771 | C69: TC008263 | D69: =VLOOKUP(C69,biomart_FASTA!F:G,1,FALSE) -> TC008263 | E69: CG10228 | F69: inr-a | G69: D2A0S7 | H69: D2A0S7_TRICA | I69: Kinesin-like protein | J69: GLEAN_08263 TcasGA2_TC008263 | K69: GLEAN_08263 | L69: 2399 | N69: TRAFAC class myosin-kinesin ATPase superfamily, Kinesin family | P69: microtubule-based movement [GO:0007018] | Q69: ATP binding [GO:0005524]; microtubule motor activity [GO:0003777] | R69: IPR006569;IPR008942;IPR027640;IPR019821;IPR001752;IPR027417;IPR006903; | S69: PF04818;PF00225; | T69: PS51391;PS00411;PS50067; | U69: FBgn0264962 | V69: Inr-a | W69: Inverse regulator a [Source:FlyBase gene name;Acc:FBgn0264962] | Y69: overall low expression | Z69: 16 | AA69: adult/pharate | AB69: gb|GO270911.1 | AC69: LDEC020295 | AD69: LDEC020295 | AE69: =VLOOKUP(AD69,[1]logFC_table!$B:$J,9,FALSE) -> 36 | AF69: 25 | AG69: 1.110962036 | AH69: 0.8440236174 | AI69: 1.02159851 | AJ69: -0.1209811917 | AK69: 0.2754730522
A70: L68 | B70: iB_02788 | C70: TC013746 | D70: =VLOOKUP(C70,biomart_FASTA!F:G,1,FALSE) -> TC013746 | E70: - | F70: - | G70: D6WJW7 | H70: D6WJW7_TRICA | I70: Putative uncharacterized protein | J70: TcasGA2_TC013746 | L70: 376 | N70: Actin family | Q70: ATP binding [GO:0005524] | R70: IPR004000;IPR020902;IPR004001; | S70: PF00022; | T70: PS00406;PS00432;PS01132; | AB70: gb|KJ577616.1 | AC70: LDEC008164 | AD70: LDEC008164 | AE70: =VLOOKUP(AD70,[1]logFC_table!$B:$J,9,FALSE) -> 0 | AF70: 0 | AG70: 0.05 | AH70: 0.05 | AI70: 0.05 | AJ70: 0 | AK70: 0 | AL70: YES
A71: L69 | B71: iB_02796 | C71: TC014300 | D71: =VLOOKUP(C71,biomart_FASTA!F:G,1,FALSE) -> TC014300 | E71: CG18398 | F71: Tango6 | G71: D6WL57 | H71: D6WL57_TRICA | I71: Putative uncharacterized protein | J71: TcasGA2_TC014300 | L71: 900 | R71: IPR011989;IPR016024;IPR019451;IPR019414; | S71: PF10363;PF10304; | U71: FBgn0032728 | V71: Tango6 | W71: Transport and Golgi organization 6 [Source:FlyBase gene name;Acc:FBgn0032728] | Z71: 3 | AC71: LDEC003093 | AD71: LDEC003093 | AE71: =VLOOKUP(AD71,[1]logFC_table!$B:$J,9,FALSE) -> 1 | AF71: 1 | AG71: 0.07557035918 | AH71: 0.05 | AI71: 0.04825807863 | AJ71: -0.6470500034 | AK71: -0.05115761846
A72: L70 | B72: iB_02797 | C72: TC031145 | D72: >TC031145 transcript1 | E72: CG34418 | F72: sif | U72: FBgn0085447 | V72: sif | W72: still life [Source:FlyBase gene name;Acc:FBgn0085447] | Y72: CNS | AC72: LDEC012775 | AD72: LDEC012775 | AE72: =VLOOKUP(AD72,[1]logFC_table!$B:$J,9,FALSE) -> 0 | AF72: 0 | AG72: 0.05 | AH72: 0.05 | AI72: 0.05 | AJ72: 0 | AK72: 0
A73: L71 | B73: iB_02808 | C73: TC033251 | D73: >TC033251 transcript1 | E73: - | F73: - | AB73: gb|EB759048.1 | AC73: LDEC001186 | AD73: LDEC001072 | AE73: =VLOOKUP(AD73,[1]logFC_table!$B:$J,9,FALSE) -> 24 | AF73: 17 | AG73: 1.487517013 | AH73: 1.29259937 | AI73: 1.341043304 | AJ73: -0.1495503439 | AK73: 0.0530806309
A74: L72 | B74: iB_02921 | C74: TC012455 | D74: =VLOOKUP(C74,biomart_FASTA!F:G,1,FALSE) -> TC012455 | E74: CG9206 | F74: Gl | G74: D6X2E3 | H74: D6X2E3_TRICA | I74: Putative uncharacterized protein | J74: TcasGA2_TC012455 | L74: 1206 | R74: IPR000938;IPR027663;IPR022157; | S74: PF01302;PF12455; | T74: PS00845;PS50245; | U74: FBgn0001108 | V74: Gl | W74: Glued [Source:FlyBase gene name;Acc:FBgn0001108] | X74: dynactin 1, vesicle transport | Y74: CNS, gut | Z74: 75 | AC74: LDEC017013 | AD74: LDEC017013
A75: L73 | B75: iB_03608 | C75: TC003731 | D75: =VLOOKUP(C75,biomart_FASTA!F:G,1,FALSE) -> TC003731 | E75: CG3780 | F75: Spx | G75: D6WDW9 | H75: D6WDW9_TRICA | I75: Putative uncharacterized protein | J75: TcasGA2_TC003731 | L75: 393 | Q75: nucleic acid binding [GO:0003676]; nucleotide binding [GO:0000166] | R75: IPR012677;IPR000504; | S75: PF00076; | T75: PS50102; | U75: FBgn0015818 | V75: Spx | W75: Spliceosomal protein on the X [Source:FlyBase gene name;Acc:FBgn0015818] | Z75: 5 | AA75: late larval | AC75: LDEC014838 | AD75: LDEC014838 | AE75: =VLOOKUP(AD75,[1]logFC_table!$B:$J,9,FALSE) -> 1 | AF75: 1 | AG75: 0.1668386428 | AH75: 0.5281299384 | AI75: 0.1065406124 | AJ75: -0.6470500034 | AK75: -2.309489448
A76: L74 | B76: iB_03656 | C76: TC003944 | D76: =VLOOKUP(C76,biomart_FASTA!F:G,1,FALSE) -> TC003944 | E76: - | F76: - | G76: D6WHZ9 | H76: D6WHZ9_TRICA | I76: Putative uncharacterized protein | J76: TcasGA2_TC003944 | L76: 376 | N76: Actin family | Q76: ATP binding [GO:0005524] | R76: IPR004000;IPR020902;IPR004001; | S76: PF00022; | T76: PS00406;PS00432;PS01132; | AB76: gb|KJ577616.1 | AC76: LDEC020822 | AD76: LDEC020822 | AE76: =VLOOKUP(AD76,[1]logFC_table!$B:$J,9,FALSE) -> 0 | AF76: 0 | AG76: 0.05 | AH76: 0.05 | AI76: 0.05 | AJ76: 0 | AK76: 0 | AL76: YES
A77: L75 | B77: iB_03752 | C77: TC004420 | D77: =VLOOKUP(C77,biomart_FASTA!F:G,1,FALSE) -> TC004420 | E77: CG1703 | F77: - | G77: D6WD20 | H77: D6WD20_TRICA | I77: Putative uncharacterized protein | J77: TcasGA2_TC004420 | L77: 807 | N77: ABC transporter superfamily | Q77: ATPase activity [GO:0016887]; ATP binding [GO:0005524] | R77: IPR003593;IPR003439;IPR017871;IPR027417; | S77: PF00005; | T77: PS00211;PS50893; | U77: FBgn0030321 | V77: CG1703 | W77: ABC transporter | Y77: salivary gland | Z77: 7 | AA77: late larval | AC77: LDEC001726 | AD77: LDEC001726 | AE77: =VLOOKUP(AD77,[1]logFC_table!$B:$J,9,FALSE) -> 5 | AF77: 10 | AG77: 3.246845645 | AH77: 0.3425977662 | AI77: 1.036693051 | AJ77: -1.647050003 | AK77: 1.597401147
A78: L76 | B78: iB_03754 | C78: TC004425 | D78: =VLOOKUP(C78,biomart_FASTA!F:G,1,FALSE) -> TC004425 | E78: CG4147 | F78: hsc70-3 | G78: D6WD04 | H78: D6WD04_TRICA | I78: Putative uncharacterized protein | J78: TcasGA2_TC004425 | L78: 563 | N78: Heat shock protein 70 family | Q78: ATP binding [GO:0005524] | R78: IPR018181;IPR029047;IPR013126; | S78: PF00012; | T78: PS00297;PS00329;PS01036; | U78: FBgn0001218 | V78: Hsc70-3 | W78: Heat shock 70-kDa protein cognate 3 [Source:FlyBase gene name;Acc:FBgn0001218] | Y78: gut, fat body, salivary gland, embrio, larva, pupa, adult | Z78: 45 | AA78: late pupal | AB78: gb|KC544269.1 | AC78: LDEC018935 | AD78: LDEC018935 | AE78: =VLOOKUP(AD78,[1]logFC_table!$B:$J,9,FALSE) -> 238 | AF78: 91 | AG78: 8.901768476 | AH78: 7.018861928 | AI78: 14.86724162 | AJ78: 0.7399731197 | AK78: 1.082827974 | AM78: yes | AN78: hsp83 in Aedes aegypti (Sigh et al 2013), hsp70 in B cockerelli (Wuriyanghan et al 2011)
A79: L77 | B79: iB_03836 | C79: TC004760 | D79: =VLOOKUP(C79,biomart_FASTA!F:G,1,FALSE) -> TC004760 | E79: CG11152 | F79: fd102C | G79: D6W7Y6 | H79: D6W7Y6_TRICA | I79: Putative uncharacterized protein | J79: TcasGA2_TC004760 | L79: 185 | R79: IPR006631; | S79: PF07841; | U79: FBgn0039937 | V79: fd102C | W79: forkhead domain 102C [Source:FlyBase gene name;Acc:FBgn0039937] | X79: transcription factor | Y79: CNS | AD79: LDEC008852 | AE79: =VLOOKUP(AD79,[1]logFC_table!$B:$J,9,FALSE) -> 0 | AF79: 0 | AG79: 0.05 | AH79: 0.05 | AI79: 0.05 | AJ79: =IF(ISERROR(LOG(AI79/AG79,2)),"NA",LOG(AI79/AG79,2)) -> 0 | AK79: =IF(ISERROR(LOG(AI79/AH79,2)),"NA",LOG(AI79/AH79,2)) -> 0
A80: L78 | B80: iB_04084 | C80: TC006188 | D80: =VLOOKUP(C80,biomart_FASTA!F:G,1,FALSE) -> TC006188 | E80: CG4644 | F80: mtRNApol | G80: D6WV41 | H80: D6WV41_TRICA | I80: DNA-directed RNA polymerase (EC 2.7.7.6) | J80: TcasGA2_TC006188 | L80: 1258 | M80: FUNCTION: DNA-dependent RNA polymerase catalyzes the transcription of DNA into RNA using the four ribonucleoside triphosphates as substrates. {ECO:0000256|RuleBase:RU003805}. | N80: Phage and mitochondrial RNA polymerase family | O80: CATALYTIC ACTIVITY: Nucleoside triphosphate + RNA(n) = diphosphate + RNA(n+1). {ECO:0000256|RuleBase:RU003805}. | P80: transcription, DNA-templated [GO:0006351] | Q80: DNA binding [GO:0003677]; DNA-directed RNA polymerase activity [GO:0003899] | R80: IPR024075;IPR002092;IPR029262; | S80: PF00940;PF14700; | T80: PS00900;PS00489; | U80: FBgn0261938 | V80: mtRNApol | W80: mitochondrial RNA polymerase [Source:FlyBase gene name;Acc:FBgn0261938] | AC80: LDEC006770 | AD80: LDEC006770 | AE80: =VLOOKUP(AD80,[1]logFC_table!$B:$J,9,FALSE) -> 0 | AF80: 2 | AG80: 0.6153296182 | AH80: 0.05 | AI80: 0.05 | AJ80: -3.621359437 | AK80: 0 | AN80: RNA Pol II in CPB (Baum et al 2007)
A81: L79 | B81: iB_04099 | C81: TC006253 | D81: =VLOOKUP(C81,biomart_FASTA!F:G,1,FALSE) -> TC006253 | E81: CG8566 | F81: unc-104 | G81: D6WVN9 | H81: D6WVN9_TRICA | I81: Kinesin-like protein | J81: TcasGA2_TC006253 | L81: 1676 | N81: TRAFAC class myosin-kinesin ATPase superfamily, Kinesin family | P81: microtubule-based movement [GO:0007018] | Q81: ATP binding [GO:0005524]; microtubule motor activity [GO:0003777] | R81: IPR000253;IPR022164;IPR027640;IPR022140;IPR032405;IPR019821;IPR001752;IPR027417;IPR011993;IPR001849;IPR008984; | S81: PF12473;PF00498;PF12423;PF00225;PF16183;PF00169; | T81: PS00411;PS50067;PS50003; | U81: FBgn0267002 | V81: unc-104 | W81: unc-104 ortholog (C. elegans) [Source:FlyBase gene name;Acc:FBgn0267002] | X81: myosin-kinesin ATPase, organelle transport | Y81: CNS, embrio | Z81: 38 | AC81: LDEC017237 | AD81: LDEC017237 | AE81: =VLOOKUP(AD81,[1]logFC_table!$B:$J,9,FALSE) -> 6 | AF81: 1 | AG81: 0.05904117048 | AH81: 0.06229853628 | AI81: 0.2262167451 | AJ81: 1.937912497 | AK81: 1.860435553
A82: L80 | B82: iB_04125 | C82: TC006375 | D82: =VLOOKUP(C82,biomart_FASTA!F:G,1,FALSE) -> TC006375 | E82: CG5378 | F82: Rpn7 | G82: D6WWE7 | H82: D6WWE7_TRICA | I82: Putative uncharacterized protein | J82: TcasGA2_TC006375 | L82: 389 | R82: IPR019585;IPR000717;IPR011991; | S82: PF01399;PF10602; | U82: FBgn0028688 | V82: Rpn7 | W82: Regulatory particle non-ATPase 7 [Source:FlyBase gene name;Acc:FBgn0028688] | X82: proteasome | Y82: Malpighian Tubules, gut, CNS, larva | Z82: 6 | AA82: late larval | AB82: gb|EB762601.1 | AC82: LDEC014093 | AD82: LDEC014093 | AE82: =VLOOKUP(AD82,[1]logFC_table!$B:$J,9,FALSE) -> 18 | AF82: 28 | AG82: 5.869297896 | AH82: 3.317739357 | AI82: 2.409456926 | AJ82: -1.284479924 | AK82: -0.4614925419
A83: L81 | B83: iB_04162 | C83: TC006514 | D83: =VLOOKUP(C83,biomart_FASTA!F:G,1,FALSE) -> TC006514 | E83: CG5341 | F83: Sec6 | G83: D6WXB5 | H83: D6WXB5_TRICA | I83: Putative uncharacterized protein | J83: TcasGA2_TC006514 | L83: 742 | P83: exocytosis [GO:0006887] | R83: IPR010326; | S83: PF06046; | U83: FBgn0266671 | V83: Sec6 | W83: Sec6 ortholog (S. cerevisiae) [Source:FlyBase gene name;Acc:FBgn0266671] | Z83: 19 | AA83: late pupal | AB83: gb|EB756972.1 | AC83: LDEC001544 | AD83: LDEC001544 | AE83: =VLOOKUP(AD83,[1]logFC_table!$B:$J,9,FALSE) -> 11 | AF83: 5 | AG83: 0.4469008551 | AH83: 0.2829341177 | AI83: 0.6278449519 | AJ83: 0.4904535203 | AK83: 1.14994217
A84: L82 | B84: iB_04192 | C84: TC006679 | D84: =VLOOKUP(C84,biomart_FASTA!F:G,1,FALSE) -> TC006679 | E84: CG31992 | F84: gw | G84: D6WYF4 | H84: D6WYF4_TRICA | I84: Putative uncharacterized protein | J84: TcasGA2_TC006679 | L84: 1344 | Q84: nucleic acid binding [GO:0003676]; nucleotide binding [GO:0000166] | R84: IPR026805;IPR012677;IPR000504;IPR015940;IPR009060; | S84: PF12938; | T84: PS50030; | U84: FBgn0051992 | V84: gw | W84: gawky [Source:FlyBase gene name;Acc:FBgn0051992] | X84: involved in miRNA-mediated silencing | Y84: CNS, gut | AA84: late pupal | AC84: LDEC010122 | AD84: LDEC010122 | AE84: =VLOOKUP(AD84,[1]logFC_table!$B:$J,9,FALSE) -> 162 | AF84: 93 | AG84: 4.496819491 | AH84: 2.959193633 | AI84: 5.002142515 | AJ84: 0.1536411884 | AK84: 0.75734206 | AM84: yes
A85: L83 | B85: iB_04235 | C85: TC006902 | D85: =VLOOKUP(C85,biomart_FASTA!F:G,1,FALSE) -> TC006902 | E85: - | F85: - | G85: D7GYJ9 | H85: D7GYJ9_TRICA | I85: Putative uncharacterized protein | J85: TcasGA2_TC006902 | L85: 186 | R85: IPR013026;IPR011990;IPR019734; | S85: PF13414; | T85: PS50005;PS50293; | AC85: LDEC010072 | AD85: LDEC010072 | AE85: =VLOOKUP(AD85,[1]logFC_table!$B:$J,9,FALSE) -> 0 | AF85: 0 | AG85: 0.05 | AH85: 0.05 | AI85: 0.05 | AJ85: 0 | AK85: 0
A86: L84 | B86: iB_04411 | C86: TC007999 | D86: =VLOOKUP(C86,biomart_FASTA!F:G,1,FALSE) -> TC007999 | E86: CG16916 | F86: Rpt3 | G86: D2A3L0 | H86: D2A3L0_TRICA | I86: Putative uncharacterized protein GLEAN_07999 | J86: GLEAN_07999 TcasGA2_TC007999 | K86: GLEAN_07999 | L86: 409 | N86: AAA ATPase family | P86: protein catabolic process [GO:0030163] | Q86: ATP binding [GO:0005524]; hydrolase activity [GO:0016787] | R86: IPR005937;IPR003593;IPR003959;IPR003960;IPR001270;IPR027417; | S86: PF00004; | T86: PS00674; | U86: FBgn0028686 | V86: Rpt3 | W86: Regulatory particle triple-A ATPase 3 [Source:FlyBase gene name;Acc:FBgn0028686] | X86: proteasome | Y86: Malpighian Tubules, gut, CNS, larva | Z86: 7 | AB86: gb|EB757969.1 | AC86: LDEC016117 | AD86: LDEC015181 | AE86: =VLOOKUP(AD86,[1]logFC_table!$B:$J,9,FALSE) -> 149 | AF86: 131 | AG86: 19.74077877 | AH86: 11.44849415 | AI86: 14.33830435 | AJ86: -0.4613044845 | AK86: 0.3247165713
A87: L85 | B87: iB_04531 | C87: TC008662 | D87: =VLOOKUP(C87,biomart_FASTA!F:G,1,FALSE) -> TC008662 | E87: CG4584 | F87: dUTPase | G87: D6WT48 | H87: D6WT48_TRICA | I87: Putative uncharacterized protein | J87: TcasGA2_TC008662 | L87: 191 | P87: dUTP metabolic process [GO:0046080] | Q87: dUTP diphosphatase activity [GO:0004170] | R87: IPR029054;IPR008180;IPR008181; | S87: PF00692; | U87: FBgn0250837 | V87: dUTPase | W87: Deoxyuridine triphosphatase [Source:FlyBase gene name;Acc:FBgn0250837] | AD87: LDEC023112 | AE87: =VLOOKUP(AD87,[1]logFC_table!$B:$J,9,FALSE) -> 0 | AF87: 0 | AG87: 0.05 | AH87: 0.05 | AI87: 0.05 | AJ87: 0 | AK87: 0
A88: L86 | B88: iB_04581 | C88: TC009040 | D88: =VLOOKUP(C88,biomart_FASTA!F:G,1,FALSE) -> TC009040 | E88: CG4548 | F88: XNP | G88: D6WPQ0 | H88: D6WPQ0_TRICA | I88: Putative uncharacterized protein | J88: TcasGA2_TC009040 | L88: 425 | N88: TRNA nucleotidyltransferase/poly(A) polymerase family | P88: RNA processing [GO:0006396] | Q88: nucleotidyltransferase activity [GO:0016779]; RNA binding [GO:0003723] | R88: IPR002646; | S88: PF01743; | U88: FBgn0039338 | V88: XNP | W88: XNP [Source:FlyBase gene name;Acc:FBgn0039338] | Y88: CNS | Z88: 23 | AC88: LDEC015369 | AD88: LDEC015369 | AE88: =VLOOKUP(AD88,[1]logFC_table!$B:$J,9,FALSE) -> 0 | AF88: 0 | AG88: 0.05 | AH88: 0.05 | AI88: 0.05 | AJ88: 0 | AK88: 0
A89: L87 | B89: iB_05229 | C89: TC012381 | D89: =VLOOKUP(C89,biomart_FASTA!F:G,1,FALSE) -> TC012381 | E89: CG6843 | F89: - | G89: D6X1Z0 | H89: D6X1Z0_TRICA | I89: Putative uncharacterized protein | J89: TcasGA2_TC012381 | L89: 361 | Q89: nucleic acid binding [GO:0003676]; zinc ion binding [GO:0008270] | R89: IPR019339;IPR001878; | S89: PF10197; | U89: FBgn0036827 | V89: CG6843 | AC89: LDEC021145 | AD89: LDEC021145 | AE89: =VLOOKUP(AD89,[1]logFC_table!$B:$J,9,FALSE) -> 17 | AF89: 10 | AG89: 1.933299138 | AH89: 2.039961361 | AI89: 2.098778077 | AJ89: 0.1184847429 | AK89: 0.0410077986
A90: L88 | B90: iB_05303 | C90: TC012723 | D90: =VLOOKUP(C90,biomart_FASTA!F:G,1,FALSE) -> TC012723 | E90: CG12104 | F90: - | G90: D6WZT7 | H90: D6WZT7_TRICA | I90: Putative uncharacterized protein | J90: TcasGA2_TC012723 | L90: 534 | R90: IPR009071; | S90: PF00505; | T90: PS50118; | U90: FBgn0035238 | V90: CG12104 | Y90: fat body, CNS | AC90: LDEC010834 | AD90: LDEC010834 | AE90: =VLOOKUP(AD90,[1]logFC_table!$B:$J,9,FALSE) -> 15 | AF90: 5 | AG90: 1.630360527 | AH90: 0.3440618592 | AI90: 3.123370089 | AJ90: 0.9379124973 | AK90: 3.182363648
A91: L89 | B91: iB_05370 | C91: TC013003 | D91: =VLOOKUP(C91,biomart_FASTA!F:G,1,FALSE) -> TC013003 | E91: CG5971 | F91: Cdc6 | G91: D6WJU9 | H91: D6WJU9_TRICA | I91: Putative uncharacterized protein | J91: TcasGA2_TC013003 | L91: 525 | P91: cell division [GO:0051301]; DNA replication initiation [GO:0006270] | Q91: ATP binding [GO:0005524] | R91: IPR003593;IPR016314;IPR015163;IPR027417;IPR011991; | S91: PF13401;PF09079; | U91: FBgn0035918 | V91: Cdc6 | W91: Cdc6 [Source:FlyBase gene name;Acc:FBgn0035918] | Y91: embrio | AC91: LDEC007222 | AD91: LDEC007222 | AE91: =VLOOKUP(AD91,[1]logFC_table!$B:$J,9,FALSE) -> 5 | AF91: 4 | AG91: 0.4690627417 | AH91: 0.05 | AI91: 0.3744203897 | AJ91: -0.3251219085 | AK91: 2.904659002
A92: L90 | B92: iB_05404 | C92: TC013245 | D92: =VLOOKUP(C92,biomart_FASTA!F:G,1,FALSE) -> TC013245 | E92: CG10002 | F92: fkh | G92: D6WMG3 | H92: D6WMG3_TRICA | I92: Fork head | J92: fkh TcasGA2_TC013245 | K92: fkh | L92: 431 | Q92: sequence-specific DNA binding [GO:0043565]; transcription factor activity, sequence-specific DNA binding [GO:0003700] | R92: IPR013638;IPR001766;IPR018533;IPR018122;IPR011991; | S92: PF00250;PF08430;PF09354; | T92: PS00657;PS50039; | U92: FBgn0000659 | V92: fkh | W92: fork head [Source:FlyBase gene name;Acc:FBgn0000659] | X92: transcription factor | Y92: Malpighian Tubules, salivary gland | Z92: 33 | AC92: LDEC012456 | AD92: LDEC012456 | AE92: =VLOOKUP(AD92,[1]logFC_table!$B:$J,9,FALSE) -> 0 | AF92: 0 | AG92: 0.05 | AH92: 0.05 | AI92: 0.05 | AJ92: 0 | AK92: 0
A93: L91 | B93: iB_05526 | C93: TC013939 | D93: =VLOOKUP(C93,biomart_FASTA!F:G,1,FALSE) -> TC013939 | E93: CG1109 | F93: - | G93: D6WNM4 | H93: D6WNM4_TRICA | I93: Putative uncharacterized protein | J93: TcasGA2_TC013939 | L93: 805 | R93: IPR015943;IPR001680;IPR017986; | S93: PF00400; | T93: PS50082;PS50294; | U93: FBgn0046222 | V93: CG1109 | Z93: 6 | AC93: LDEC008911 | AD93: LDEC008911 | AE93: =VLOOKUP(AD93,[1]logFC_table!$B:$J,9,FALSE) -> 13 | AF93: 14 | AG93: 1.427455079 | AH93: 0.7531046665 | AI93: 0.8464402504 | AJ93: -0.7539652073 | AK93: 0.1685578483
A94: L92 | B94: iB_05560 | C94: TC014109 | D94: =VLOOKUP(C94,biomart_FASTA!F:G,1,FALSE) -> TC014109 | E94: CG31155 | F94: Rpb7 | G94: D6WKA0 | H94: D6WKA0_TRICA | I94: Putative uncharacterized protein | J94: TcasGA2_TC014109 | L94: 173 | P94: transcription, DNA-templated [GO:0006351] | Q94: DNA-directed RNA polymerase activity [GO:0003899]; nucleic acid binding [GO:0003676] | R94: IPR012340;IPR005576;IPR003029; | S94: PF00575;PF03876; | U94: FBgn0051155 | V94: Rpb7 | W94: Rpb7 [Source:FlyBase gene name;Acc:FBgn0051155] | Z94: 7 | AA94: early pupal | AC94: LDEC016281 | AD94: LDEC016281 | AE94: =VLOOKUP(AD94,[1]logFC_table!$B:$J,9,FALSE) -> 1 | AF94: 3 | AG94: 0.8175093499 | AH94: 0.2875374109 | AI94: 0.1740163335 | AJ94: -2.232012504 | AK94: -0.7245269478
A95: L93 | B95: iB_05604 | C95: TC014294 | D95: =VLOOKUP(C95,biomart_FASTA!F:G,1,FALSE) -> TC014294 | E95: CG1828 | F95: dre4 | G95: D6WL41 | H95: D6WL41_TRICA | I95: Putative uncharacterized protein | J95: TcasGA2_TC014294 | L95: 1112 | R95: IPR029149;IPR013719;IPR029148;IPR013953;IPR000994; | S95: PF14826;PF00557;PF08512;PF08644; | U95: FBgn0002183 | V95: dre4 | W95: dre4 [Source:FlyBase gene name;Acc:FBgn0002183] | X95: mRNA elongation, DNA repair | Y95: CNS, embrio | Z95: 86 | AA95: adult/pharate | AB95: gb|EB758030.1 | AC95: LDEC008327 | AD95: LDEC008327 | AE95: =VLOOKUP(AD95,[1]logFC_table!$B:$J,9,FALSE) -> 0 | AF95: 0 | AG95: 0.05 | AH95: 0.05 | AI95: 0.05 | AJ95: 0 | AK95: 0
A96: L94 | B96: iB_05628 | C96: TC014413 | D96: =VLOOKUP(C96,biomart_FASTA!F:G,1,FALSE) -> TC014413 | E96: CG7269 | F96: Hel25E | G96: D6WLU7 | H96: D6WLU7_TRICA | I96: Putative uncharacterized protein | J96: TcasGA2_TC014413 | L96: 425 | Q96: ATP binding [GO:0005524]; helicase activity [GO:0004386]; nucleic acid binding [GO:0003676] | R96: IPR011545;IPR014001;IPR001650;IPR027417;IPR014014; | S96: PF00270;PF00271; | T96: PS51192;PS51194;PS51195; | U96: FBgn0014189 | V96: Hel25E | W96: Helicase at 25E [Source:FlyBase gene name;Acc:FBgn0014189] | Y96: CNS, salivary gland | Z96: 13 | AA96: early larval | AB96: dbj|DM180455.1 | AC96: LDEC012710 | AD96: LDEC012710 | AE96: =VLOOKUP(AD96,[1]logFC_table!$B:$J,9,FALSE) -> 0 | AF96: 0 | AG96: 0.05 | AH96: 0.05 | AI96: 0.05 | AJ96: 0 | AK96: 0 | AL96: YES
A97: L95 | B97: iB_05683 | C97: TC014730 | D97: =VLOOKUP(C97,biomart_FASTA!F:G,1,FALSE) -> TC014730 | E97: CG12245 | F97: gcm | G97: D6WJ63 | H97: D6WJ63_TRICA | I97: Putative uncharacterized protein | J97: TcasGA2_TC014730 | L97: 507 | P97: regulation of transcription, DNA-templated [GO:0006355] | Q97: DNA binding [GO:0003677] | R97: IPR003902; | S97: PF03615; | T97: PS50807; | U97: FBgn0014179 | V97: gcm | W97: glial cells missing [Source:FlyBase gene name;Acc:FBgn0014179] | Y97: CNS, embrio | Z97: 63 | AC97: LDEC012509 | AD97: LDEC012509 | AE97: =VLOOKUP(AD97,[1]logFC_table!$B:$J,9,FALSE) -> 0 | AF97: 0 | AG97: 0.05 | AH97: 0.05 | AI97: 0.05 | AJ97: 0 | AK97: 0
A98: L96 | B98: iB_05693 | C98: TC014785 | D98: =VLOOKUP(C98,biomart_FASTA!F:G,1,FALSE) -> TC014785 | E98: CG12750 | F98: ncm | G98: D6WJQ7 | H98: D6WJQ7_TRICA | I98: Putative uncharacterized protein | J98: TcasGA2_TC014785 | L98: 756 | Q98: RNA binding [GO:0003723] | R98: IPR016024;IPR003891;IPR016021;IPR003890; | S98: PF02847;PF02854; | T98: PS51366; | U98: FBgn0086707 | V98: ncm | W98: nucampholin [Source:FlyBase gene name;Acc:FBgn0086707] | X98: mRNA splicing | Y98: salivary gland, embrio | Z98: 14 | AA98: early larval | AC98: LDEC005485 | AD98: LDEC005485 | AE98: =VLOOKUP(AD98,[1]logFC_table!$B:$J,9,FALSE) -> 3 | AF98: 3 | AG98: 0.2661658348 | AH98: 0.5617009888 | AI98: 0.169969442 | AJ98: -0.6470500034 | AK98: -1.724526948
A99: L97 | B99: iB_05726 | C99: TC014931 | D99: =VLOOKUP(C99,biomart_FASTA!F:G,1,FALSE) -> TC014931 | E99: CG2909 | F99: - | G99: D2A3W8 | H99: D2A3W8_TRICA | I99: Putative uncharacterized protein GLEAN_14931 | J99: GLEAN_14931 TcasGA2_TC014931 | K99: GLEAN_14931 | L99: 484 | R99: IPR032063; | S99: PF16062; | U99: FBgn0030189 | V99: CG2909 | Y99: Malpighian Tubules, gut | AA99: late pupal | AD99: LDEC005233 | AE99: =VLOOKUP(AD99,[1]logFC_table!$B:$J,9,FALSE) -> 0 | AF99: 1 | AG99: 0.1550830745 | AH99: 0.4909175308 | AI99: 0.05 | AJ99: -1.633041242 | AK99: -3.295480687
A100: L98 | B100: iB_05983 | C100: TC016270 | D100: =VLOOKUP(C100,biomart_FASTA!F:G,1,FALSE) -> TC016270 | E100: CG3962 | F100: Keap1 | G100: D6X2W3 | H100: D6X2W3_TRICA | I100: Putative uncharacterized protein | J100: TcasGA2_TC016270 | L100: 606 | R100: IPR011705;IPR017096;IPR000210;IPR015915;IPR006652;IPR030605;IPR011333; | S100: PF07707;PF00651;PF01344; | T100: PS50097; | U100: FBgn0038475 | V100: Keap1 | W100: Keap1 [Source:FlyBase gene name;Acc:FBgn0038475] | X100: protein ubiquitination | AC100: LDEC000567 | AD100: LDEC000567 | AE100: =VLOOKUP(AD100,[1]logFC_table!$B:$J,9,FALSE) -> 49 | AF100: 16 | AG100: 0.9407762362 | AH100: 0.8065524087 | AI100: 1.839843896 | AJ100: 0.9676598407 | AK100: 1.189743178
A101: L99 | B101: iB_06042 | C101: TC032389 | D101: >TC032389 transcript1 | E101: CG5081 | F101: Syx7 | U101: FBgn0086377 | V101: Syx7 | W101: Syntaxin 7 [Source:FlyBase gene name;Acc:FBgn0086377] | X101: vesicle transport | Y101: gut, larva | Z101: 14 | AA101: late pupal | AC101: LDEC007826 | AD101: LDEC007826 | AE101: =VLOOKUP(AD101,[1]logFC_table!$B:$J,9,FALSE) -> 44 | AF101: 30 | AG101: 6.527641197 | AH101: 8.494926551 | AI101: 6.11372974 | AJ101: -0.09450898039 | AK101: -0.4745486948
A102: L100 | B102: iB_06050 | C102: TC030708 | D102: =VLOOKUP(C102,biomart_FASTA!F:G,1,FALSE) -> TC030708 | E102: CG2252 | F102: fs(1)h | G102: D6X3X2 | H102: D6X3X2_TRICA | I102: Putative uncharacterized protein | J102: TcasGA2_TC030708 | L102: 815 | R102: IPR001487;IPR018359;IPR027353; | S102: PF17035;PF00439; | T102: PS00633;PS50014;PS51525; | U102: FBgn0004656 | V102: fs(1)h | W102: female sterile (1) homeotic [Source:FlyBase gene name;Acc:FBgn0004656] | X102: regulation of transcription | Y102: CNS, adult, embrio | Z102: 58 | AC102: LDEC018094 | AD102: LDEC018094 | AE102: =VLOOKUP(AD102,[1]logFC_table!$B:$J,9,FALSE) -> 21 | AF102: 14 | AG102: 1.267656903 | AH102: 0.6687974589 | AI102: 1.214259542 | AJ102: -0.06208750269 | AK102: 0.860435553
W104: perspective targets for feed-induced RNAi
W105: targets already confirmed
W106: most effective targets in Tc

Sheet CPB_orths_blastn
B1: Query_ID | C1: Query_length | D1: Target_ID | E1: Target_length | F1: Target_description | G1: E-value | H1: Identity% | I1: Aligned_seq_length | J1: Score | K1: Positives% | L1: Gaps%
B2: TC002933 | C2: 1227 | D2: gb|EB754534.1 | E2: 547 | F2: 602231 MN12 Leptinotarsa decemlineata cDNA clone 319105, mRNA sequence | G2: 8e-42 | H2: 72 | I2: 308 | J2: 168 | L2: 0
B3: TC003944 | C3: 1131 | D3: gb|KJ577616.1 | E3: 1312 | F3: Leptinotarsa decemlineata strain Freeville actin mRNA, complete cds | G3: 0 | H3: 82 | I3: 1131 | J3: 1133 | L3: 0
B4: TC004425 | C4: 1692 | D4: gb|KC544269.1 | E4: 2397 | F4: Leptinotarsa decemlineata heat shock protein 70b mRNA, complete cds | G4: 0 | H4: 79 | I4: 1579 | J4: 1379 | L4: 0
B5: TC003020 | C5: 1806 | D5: gb|EB756576.1 | E5: 453 | F5: 601947 MN12 Leptinotarsa decemlineata cDNA clone 318583, mRNA sequence | G5: 2e-84 | H5: 78 | I5: 382 | J5: 311 | L5: 0
B6: TC000161 | C6: 813 | D6: gb|EB760297.1 | E6: 442 | F6: 672744 MN12 Leptinotarsa decemlineata cDNA clone 326766, mRNA sequence | G6: 3e-45 | H6: 79 | I6: 204 | J6: 179 | L6: 0
B7: TC000029 | C7: 2298 | D7: gb|EB757552.1 | E7: 397 | F7: 601201 MN12 Leptinotarsa decemlineata cDNA clone 316992, mRNA sequence | G7: 4e-36 | H7: 77 | I7: 207 | J7: 150 | L7: 4
B8: TC007891 | C8: 798 | D8: emb|JA828861.1 | E8: 906 | F8: Sequence 389 from Patent WO2013010691 | G8: 6e-136 | H8: 74 | I8: 803 | J8: 480 | L8: 1
B9: TC004949 | C9: 2496 | D9: gb|EB757436.1 | E9: 481 | F9: 581736 MN12 Leptinotarsa decemlineata cDNA clone 315587, mRNA sequence | G9: 1e-50 | H9: 72 | I9: 400 | J9: 199 | L9: 2
B10: TC011058 | C10: 2646 | D10: gb|EB754785.1 | E10: 476 | F10: 665319 MN12 Leptinotarsa decemlineata cDNA clone 321919, mRNA sequence | G10: 1e-107 | H10: 78 | I10: 475 | J10: 389 | L10: 0
B11: TC006375 | C11: 1170 | D11: gb|EB762601.1 | E11: 533 | F11: 677962 MN12 Leptinotarsa decemlineata cDNA clone 327361, mRNA sequence | G11: 7e-81 | H11: 75 | I11: 467 | J11: 298 | L11: 1
B12: TC009010 | C12: 876 | D12: gb|EB759532.1 | E12: 467 | F12: 581563 MN12 Leptinotarsa decemlineata cDNA clone 315554, mRNA sequence | G12: 1e-51 | H12: 72 | I12: 380 | J12: 201 | L12: 1
B13: TC011082 | C13: 1320 | D13: gb|KP689344.1 | E13: 1378 | F13: Leptinotarsa decemlineata S-adenosylmethionine synthase mRNA, complete cds | G13: 2e-120 | H13: 71 | I13: 890 | J13: 430 | L13: 1
B14: TC008263 | C14: 7200 | D14: gb|GO270911.1 | E14: 584 | F14: N4(1)B6 Suppressive subtractive hybridization screening of prediapausing Leptinotarsa decemlineata Leptinotarsa decemlineata cDNA, mRNA sequence | G14: 2e-51 | H14: 74 | I14: 325 | J14: 203 | L14: 0
B15: TC006281 | C15: 1587 | D15: gb|EB756986.1 | E15: 577 | F15: 667075 MN12 Leptinotarsa decemlineata cDNA clone 323581, mRNA sequence | G15: 1e-79 | H15: 74 | I15: 476 | J15: 295 | L15: 0
B16: TC008407 | C16: 4287 | D16: gb|EB758508.1 | E16: 455 | F16: 581616 MN12 Leptinotarsa decemlineata cDNA clone 315629, mRNA sequence | G16: 5e-51 | H16: 70 | I16: 455 | J16: 201 | L16: 3
B17: TC006047 | C17: 897 | D17: gb|EB756002.1 | E17: 513 | F17: 667547 MN12 Leptinotarsa decemlineata cDNA clone 323817, mRNA sequence | G17: 4e-82 | H17: 79 | I17: 369 | J17: 302 | L17: 1
B18: TC010367 | C18: 702 | D18: gb|KF833400.1 | E18: 1041 | F18: Leptinotarsa decemlineata vacuolar H[+]-ATPase E subunit mRNA, complete cds | G18: 1e-99 | H18: 71 | I18: 706 | J18: 360 | L18: 4
B19: TC009191 | C19: 2298 | D19: dbj|DM180456.1 | E19: 1601 | F19: TRANSGENIC PLANT-BASED METHODS FOR PLANT PESTS USING RNAi | G19: 0 | H19: 75 | I19: 1599 | J19: 1092 | L19: 2
B20: TC007999 | C20: 1230 | D20: gb|EB757969.1 | E20: 493 | F20: 665630 MN12 Leptinotarsa decemlineata cDNA clone 322431, mRNA sequence | G20: 5e-89 | H20: 75 | I20: 473 | J20: 325 | L20: 0
B21: TC006514 | C21: 2229 | D21: gb|EB756972.1 | E21: 501 | F21: 666930 MN12 Leptinotarsa decemlineata cDNA clone 323090, mRNA sequence | G21: 5e-22 | H21: 69 | I21: 267 | J21: 104 | L21: 0
B22: TC011068 | C22: 2748 | D22: gb|EB760403.1 | E22: 622 | F22: 677503 MN12 Leptinotarsa decemlineata cDNA clone 325931, mRNA sequence | G22: 1e-63 | H22: 78 | I22: 302 | J22: 242 | L22: 0
B23: TC015322 | C23: 1557 | D23: gb|EB760184.1 | E23: 452 | F23: 666943 MN12 Leptinotarsa decemlineata cDNA clone 323419, mRNA sequence | G23: 2e-75 | H23: 74 | I23: 435 | J23: 280 | L23: 0
B24: TC015014 | C24: 5055 | D24: gb|EB761575.1 | E24: 591 | F24: 678753 MN12 Leptinotarsa decemlineata cDNA clone 328119, mRNA sequence | G24: 2e-138 | H24: 79 | I24: 585 | J24: 491 | L24: 0
B25: TC014413 | C25: 1278 | D25: dbj|DM180455.1 | E25: 1031 | F25: TRANSGENIC PLANT-BASED METHODS FOR PLANT PESTS USING RNAi | G25: 0 | H25: 78 | I25: 1029 | J25: 823 | L25: 0
B26: TC014294 | C26: 3339 | D26: gb|EB758030.1 | E26: 507 | F26: 666581 MN12 Leptinotarsa decemlineata cDNA clone 322362, mRNA sequence | G26: 3e-65 | H26: 79 | I26: 287 | J26: 248 | L26: 0
B27: TC013746 | C27: 1131 | D27: gb|KJ577616.1 | E27: 1312 | F27: Leptinotarsa decemlineata strain Freeville actin mRNA, complete cds | G27: 3e-141 | H27: 70 | I27: 1131 | J27: 499 | L27: 0
B28: TC030666 | C28: 792 | D28: gb|EB760226.1 | E28: 592 | F28: 667515 MN12 Leptinotarsa decemlineata cDNA clone 324003, mRNA sequence | G28: 1e-30 | H28: 66 | I28: 501 | J28: 131 | L28: 2
B29: TC015321 | C29: 984 | D29: gb|EB760859.1 | E29: 528 | F29: 614623 MN12 Leptinotarsa decemlineata cDNA clone 318850, mRNA sequence | G29: 2e-80 | H29: 77 | I29: 384 | J29: 297 | L29: 0
B30: TC013571 | C30: 876 | D30: gb|EB759900.1 | E30: 495 | F30: 659973 MN12 Leptinotarsa decemlineata cDNA clone 319570, mRNA sequence | G30: 6e-99 | H30: 77 | I30: 460 | J30: 358 | L30: 0
B31: TC031473 | C31: 3126 | D31: gb|EB760914.1 | E31: 489 | F31: 622799 MN12 Leptinotarsa decemlineata cDNA clone 319267, mRNA sequence | G31: 1e-83 | H31: 74 | I31: 492 | J31: 309 | L31: 2
B32: TC033251 | C32: 1605 | D32: gb|EB759048.1 | E32: 412 | F32: 666013 MN12 Leptinotarsa decemlineata cDNA clone 325507, mRNA sequence | G32: 3e-29 | H32: 75 | I32: 200 | J32: 127 | L32: 1

Sheet CPB_genome_orths_blastn
A1: Query_ID | B1: Query_length | C1: Target_ID | D1: Target_length | E1: Target_description | F1: E-value | G1: Identity% | H1: Aligned_seq_length | I1: Score | J1: Positives% | K1: Gaps%
A2: TC002601 | B2: 1110 | C2: LDEC017246-RA | D2: 466 | F2: 4e-67 | G2: 80 | H2: 286 | I2: 255 | K2: 0
A3: TC004420 | B3: 2424 | C3: LDEC001726-RA | D3: 705 | F3: 2e-131 | G3: 75 | H3: 691 | I3: 470 | K3: 1
A4: TC002933 | B4: 1227 | C4: LDEC020367-RA | D4: 588 | F4: 6e-116 | G4: 76 | H4: 566 | I4: 417 | K4: 0
A5: TC003405 | B5: 1992 | C5: LDEC013444-RA | D5: 2363 | F5: 0 | G5: 74 | H5: 1137 | I5: 686 | K5: 0
A6: TC000165 | B6: 2787 | C6: LDEC019591-RA | D6: 4097 | F6: 0 | G6: 72 | H6: 1274 | I6: 663 | K6: 1
A7: TC000040 | B7: 1119 | C7: LDEC004542-RA | D7: 1044 | F7: 2e-152 | G7: 79 | H7: 613 | I7: 538 | K7: 0
A8: TC004683 | B8: 2688 | C8: LDEC020746-RA | D8: 2851 | F8: 3e-142 | G8: 65 | H8: 2662 | I8: 506 | K8: 2
A9: TC003818 | B9: 1698 | C9: LDEC015830-RA | D9: 3385 | F9: 4e-177 | G9: 71 | H9: 1290 | I9: 621 | K9: 1
A10: TC003752 | B10: 3219 | C10: LDEC012135-RA | D10: 2875 | F10: 1e-72 | G10: 73 | H10: 471 | I10: 275 | K10: 2
A11: TC003944 | B11: 1131 | C11: LDEC020822-RA | D11: 1131 | F11: 0 | G11: 82 | H11: 1131 | I11: 1124 | K11: 0
A12: TC004425 | B12: 1692 | C12: LDEC018935-RA | D12: 2340 | F12: 0 | G12: 79 | H12: 1579 | I12: 1361 | K12: 0
A13: TC001600 | B13: 630 | C13: LDEC017315-RA | D13: 630 | F13: 2e-155 | G13: 79 | H13: 626 | I13: 547 | K13: 0
A14: TC002574 | B14: 1527 | C14: LDEC007903-RA | D14: 1622 | F14: 0 | G14: 80 | H14: 1527 | I14: 1386 | K14: 0
A15: TC004029 | B15: 939 | C15: LDEC017202-RA | D15: 1387 | F15: 9e-150 | G15: 73 | H15: 962 | I15: 529 | K15: 3
A16: TC003020 | B16: 1806 | C16: LDEC005928-RA | D16: 2025 | F16: 3e-160 | G16: 71 | H16: 1158 | I16: 565 | K16: 4
A17: TC003731 | B17: 1182 | C17: LDEC014838-RA | D17: 1372 | F17: 4e-86 | G17: 75 | H17: 478 | I17: 318 | K17: 3
A18: TC002003 | B18: 1092 | C18: LDEC003901-RA | D18: 386 | F18: 2e-20 | G18: 76 | H18: 143 | I18: 100 | K18: 0
A19: TC000082 | B19: 642 | C19: LDEC013408-RA | D19: 1263 | F19: 6e-62 | G19: 71 | H19: 469 | I19: 237 | K19: 3
A20: TC002507 | B20: 5664 | C20: LDEC004538-RA | D20: 4296 | F20: 0 | G20: 71 | H20: 2008 | I20: 991 | K20: 2
A21: TC000161 | B21: 813 | C21: LDEC016690-RA | D21: 2455 | F21: 9e-175 | G21: 77 | H21: 812 | I21: 612 | K21: 0
A22: TC000029 | B22: 2298 | C22: LDEC021340-RA | D22: 2328 | F22: 6e-81 | G22: 68 | H22: 907 | I22: 302 | K22: 1
A23: TC000614 | B23: 741 | C23: LDEC010921-RA | D23: 441 | F23: 6e-69 | G23: 74 | H23: 404 | I23: 260 | K23: 0
A24: TC004760 | B24: 558
A25: TC003079 | B25: 2847 | C25: LDEC021697-RA | D25: 920 | F25: 3e-66 | G25: 78 | H25: 320 | I25: 253 | K25: 0
A26: TC000801 | B26: 1398 | C26: LDEC001741-RA | D26: 2274 | F26: 0 | G26: 77 | H26: 1047 | I26: 778 | K26: 0
A27: TC000258 | B27: 834 | C27: LDEC019981-RA | D27: 974 | F27: 1e-116 | G27: 73 | H27: 737 | I27: 419 | K27: 0
A28: TC002881 | B28: 8340 | C28: LDEC004028-RA | D28: 7908 | F28: 3e-161 | G28: 65 | H28: 2914 | I28: 571 | K28: 2
A29: TC000069 | B29: 708 | C29: LDEC003296-RA | D29: 1108 | F29: 3e-104 | G29: 73 | H29: 641 | I29: 378 | K29: 1
A30: TC004599 | B30: 600
A31: TC003747 | B31: 846 | C31: LDEC012319-RA | D31: 378 | F31: 7e-24 | G31: 69 | H31: 326 | I31: 111 | K31: 3
A32: TC007891 | B32: 798 | C32: LDEC002389-RA | D32: 3235 | F32: 8e-137 | G32: 74 | H32: 803 | I32: 486 | K32: 1
A33: TC006902 | B33: 561 | C33: LDEC010072-RA | D33: 978 | F33: 5e-68 | G33: 74 | H33: 392 | I33: 257 | K33: 0
A34: TC007846 | B34: 1491 | C34: LDEC003015-RA | D34: 1560 | F34: 4e-75 | G34: 66 | H34: 1180 | I34: 282 | K34: 6
A35: TC004949 | B35: 2496 | C35: LDEC017045-RA | D35: 1364 | F35: 3e-174 | G35: 72 | H35: 1156 | I35: 612 | K35: 1
A36: TC010405 | B36: 1587 | C36: LDEC012258-RA | D36: 4559 | F36: 3e-77 | G36: 70 | H36: 705 | I36: 289 | K36: 7
A37: TC011058 | B37: 2646 | C37: LDEC016479-RA | D37: 2243 | F37: 0 | G37: 74 | H37: 1490 | I37: 987 | K37: 3
A38: TC009040 | B38: 1278 | C38: LDEC015369-RA | D38: 714 | F38: 3e-82 | G38: 73 | H38: 537 | I38: 306 | K38: 0
A39: TC006375 | B39: 1170 | C39: LDEC014093-RA | D39: 1092 | F39: 5e-173 | G39: 76 | H39: 828 | I39: 607 | K39: 0
A40: TC010557 | B40: 1431 | C40: LDEC003829-RA | D40: 2666 | F40: 0 | G40: 79 | H40: 1431 | I40: 1205 | K40: 0
A41: TC009010 | B41: 876 | C41: LDEC004838-RA | D41: 5393 | F41: 8e-157 | G41: 75 | H41: 830 | I41: 553 | K41: 0
A42: TC006982 | B42: 3267 | C42: LDEC005329-RA | D42: 4344 | F42: 0 | G42: 76 | H42: 1247 | I42: 888 | K42: 0
A43: TC011082 | B43: 1320 | C43: LDEC003762-RA | D43: 1095 | F43: 3e-120 | G43: 71 | H43: 892 | I43: 432 | K43: 1
A44: TC005869 | B44: 936 | C44: LDEC002449-RA | D44: 992 | F44: 7e-88 | G44: 75 | H44: 464 | I44: 324 | K44: 0
A45: TC008263 | B45: 7200 | C45: LDEC020295-RA | D45: 5151 | F45: 5e-62 | G45: 76 | H45: 326 | I45: 241 | K45: 0
A46: TC006281 | B46: 1587 | C46: LDEC002447-RA | D46: 3731 | F46: 0 | G46: 75 | H46: 1508 | I46: 1005 | K46: 1
A47: TC007640 | B47: 1920 | C47: LDEC004601-RA | D47: 1704 | F47: 1e-165 | G47: 71 | H47: 1206 | I47: 583 | K47: 1
A48: TC009491 | B48: 2109 | C48: LDEC019906-RA | D48: 1716 | F48: 0 | G48: 72 | H48: 1249 | I48: 648 | K48: 4
A49: TC006253 | B49: 5031 | C49: LDEC017237-RA | D49: 3877 | F49: 0 | G49: 73 | H49: 1150 | I49: 666 | K49: 2
A50: TC008407 | B50: 4287 | C50: LDEC006484-RA | D50: 1545 | F50: 0 | G50: 71 | H50: 1442 | I50: 702 | K50: 1
A51: TC008190 | B51: 2592 | C51: LDEC006073-RA | D51: 1866 | F51: 0 | G51: 74 | H51: 1284 | I51: 832 | K51: 2
A52: TC008671 | B52: 729 | C52: LDEC010714-RA | D52: 684 | F52: 6e-138 | G52: 83 | H52: 479 | I52: 489 | K52: 0
A53: TC008662 | B53: 576
A54: TC006047 | B54: 897 | C54: LDEC001900-RA | D54: 615 | F54: 1e-39 | G54: 72 | H54: 309 | I54: 163 | K54: 1
A55: TC010367 | B55: 702 | C55: LDEC013831-RA | D55: 1138 | F55: 6e-100 | G55: 72 | H55: 706 | I55: 363 | K55: 4
A56: TC009191 | B56: 2298 | C56: LDEC011997-RA | D56: 2905 | F56: 0 | G56: 76 | H56: 2331 | I56: 1671 | K56: 2
A57: TC006679 | B57: 4035 | C57: LDEC010122-RA | D57: 4734 | F57: 0 | G57: 71 | H57: 3131 | I57: 1409 | K57: 4
A58: TC007999 | B58: 1230 | C58: LDEC016117-RA | D58: 657 | F58: 8e-89 | G58: 78 | H58: 399 | I58: 327 | K58: 0
A59: TC005313 | B59: 1107 | C59: LDEC004927-RA | D59: 1466 | F59: 2e-146 | G59: 73 | H59: 922 | I59: 518 | K59: 1
A60: TC006514 | B60: 2229 | C60: LDEC001544-RA | D60: 2561 | F60: 1e-82 | G60: 66 | H60: 969 | I60: 307 | K60: 5
A61: TC007510 | B61: 1338 | C61: LDEC001384-RA | D61: 621 | F61: 4e-99 | G61: 74 | H61: 546 | I61: 361 | K61: 4
A62: TC011068 | B62: 2748 | C62: LDEC013339-RA | D62: 4232 | F62: 2e-120 | G62: 65 | H62: 1894 | I62: 434 | K62: 8
A63: TC009328 | B63: 867 | C63: LDEC004416-RA | D63: 729 | F63: 5e-121 | G63: 74 | H63: 699 | I63: 434 | K63: 1
A64: TC006188 | B64: 3777 | C64: LDEC006770-RA | D64: 744 | F64: 3e-30 | G64: 64 | H64: 651 | I64: 134 | K64: 8
A65: TC015322 | B65: 1557 | C65: LDEC020740-RA | D65: 1901 | F65: 0 | G65: 77 | H65: 1548 | I65: 1193 | K65: 0
A66: TC011725 | B66: 771 | C66: LDEC007421-RA | D66: 930 | F66: 4e-64 | G66: 72 | H66: 458 | I66: 244 | K66: 0
A67: TC014785 | B67: 2271 | C67: LDEC005485-RA | D67: 2580 | F67: 0 | G67: 73 | H67: 1710 | I67: 993 | K67: 2
A68: TC014109 | B68: 522 | C68: LDEC016281-RA | D68: 840 | F68: 1e-125 | G68: 79 | H68: 518 | I68: 448 | K68: 0
A69: TC015727 | B69: 2133 | C69: LDEC005185-RA | D69: 1566 | F69: 0 | G69: 75 | H69: 1184 | I69: 801 | K69: 0
A70: TC015014 | B70: 5055 | C70: LDEC017401-RA | D70: 6374 | F70: 0 | G70: 76 | H70: 5061 | I70: 3743 | K70: 1
A71: TC014300 | B71: 2703 | C71: LDEC003093-RA | D71: 3029 | F71: 1e-83 | G71: 69 | H71: 747 | I71: 311 | K71: 1
A72: TC013939 | B72: 2418 | C72: LDEC008911-RA | D72: 2245 | F72: 0 | G72: 76 | H72: 1261 | I72: 879 | K72: 1
A73: TC014413 | B73: 1278 | C73: LDEC012710-RA | D73: 1278 | F73: 0 | G73: 75 | H73: 1276 | I73: 854 | K73: 0
A74: TC014931 | B74: 1455
A75: TC015935 | B75: 2910 | C75: LDEC014614-RA | D75: 912 | F75: 7e-132 | G75: 73 | H75: 795 | I75: 471 | K75: 0
A76: TC014730 | B76: 1524 | C76: LDEC012509-RA | D76: 1647 | F76: 8e-147 | G76: 71 | H76: 1143 | I76: 520 | K76: 3
A77: TC030619 | B77: 2418 | C77: LDEC010363-RA | D77: 7525 | F77: 3e-65 | G77: 76 | H77: 356 | I77: 250 | K77: 4
A78: TC012455 | B78: 3621 | C78: LDEC017013-RA | D78: 2224 | F78: 1e-72 | G78: 68 | H78: 828 | I78: 275 | K78: 1
A79: TC011204 | B79: 615 | C79: LDEC005567-RA | D79: 531 | F79: 1e-69 | G79: 74 | H79: 420 | I79: 262 | K79: 0
A80: TC011120 | B80: 1737 | C80: LDEC018675-RA | D80: 3899 | F80: 0 | G80: 77 | H80: 1182 | I80: 890 | K80: 0
A81: TC014294 | B81: 3339 | C81: LDEC008327-RA | D81: 3078 | F81: 0 | G81: 73 | H81: 1748 | I81: 980 | K81: 1
A82: TC013746 | B82: 1131 | C82: LDEC008164-RA | D82: 1131 | F82: 2e-159 | G82: 71 | H82: 1131 | I82: 562 | K82: 0
A83: TC016270 | B83: 1821 | C83: LDEC000567-RA | D83: 3893 | F83: 0 | G83: 70 | H83: 1646 | I83: 783 | K83: 3
A84: TC013245 | B84: 1296 | C84: LDEC012456-RA | D84: 1284 | F84: 0 | G84: 73 | H84: 1272 | I84: 744 | K84: 5
A85: TC013003 | B85: 1578 | C85: LDEC007222-RA | D85: 1952 | F85: 4e-87 | G85: 69 | H85: 850 | I85: 322 | K85: 2
A86: TC012723 | B86: 1605 | C86: LDEC010834-RA | D86: 702 | F86: 3e-108 | G86: 72 | H86: 686 | I86: 392 | K86: 7
A87: TC011708 | B87: 939 | C87: LDEC010231-RA | D87: 1125 | F87: 2e-37 | G87: 69 | H87: 340 | I87: 156 | K87: 10
A88: TC030579 | B88: 1083 | C88: LDEC006220-RA | D88: 1605 | F88: 8e-158 | G88: 72 | H88: 1077 | I88: 556 | K88: 0
A89: TC030625 | B89: 822 | C89: LDEC010014-RA | D89: 928 | F89: 7e-151 | G89: 79 | H89: 633 | I89: 533 | K89: 1
A90: TC030666 | B90: 792 | C90: LDEC023007-RA | D90: 708 | F90: 1e-45 | G90: 68 | H90: 565 | I90: 183 | K90: 2
A91: TC015321 | B91: 984 | C91: LDEC001822-RA | D91: 1137 | F91: 0 | G91: 80 | H91: 984 | I91: 901 | K91: 0
A92: TC013571 | B92: 876 | C92: LDEC019570-RA | D92: 432 | F92: 2e-56 | G92: 77 | H92: 279 | I92: 219 | K92: 0
A93: TC012381 | B93: 1086 | C93: LDEC021145-RA | D93: 1184 | F93: 2e-108 | G93: 73 | H93: 683 | I93: 392 | K93: 0
A94: TC030708 | B94: 2448 | C94: LDEC018094-RA | D94: 2528 | F94: 4e-121 | G94: 71 | H94: 831 | I94: 435 | K94: 7
A95: TC032227 | B95: 1788 | C95: LDEC003557-RA | D95: 2432 | F95: 2e-141 | G95: 67 | H95: 1784 | I95: 502 | K95: 1
A96: TC033679 | B96: 654 | C96: LDEC009011-RA | D96: 2188 | F96: 1e-45 | G96: 75 | H96: 266 | I96: 183 | K96: 0
A97: TC031473 | B97: 3126 | C97: LDEC005909-RA | D97: 3333 | F97: 0 | G97: 74 | H97: 2765 | I97: 1788 | K97: 0
A98: TC031972 | B98: 6414 | C98: LDEC018190-RA | D98: 5590 | F98: 0 | G98: 76 | H98: 5107 | I98: 3589 | K98: 1
A99: TC031145 | B99: 3522 | C99: LDEC012775-RA | D99: 1229 | F99: 0 | G99: 77 | H99: 1216 | I99: 915 | K99: 0
A100: TC033251 | B100: 1605 | C100: LDEC001186-RA | D100: 1155 | F100: 4e-157 | G100: 72 | H100: 1099 | I100: 554 | K100: 2
A101: TC032389 | B101: 801 | C101: LDEC007826-RA | D101: 1052 | F101: 2e-119 | G101: 72 | H101: 779 | I101: 428 | K101: 2

Sheet CPB_genome_orths_blastp
A1: Query_ID | B1: Query_length | C1: Target_ID | D1: Target_length | E1: Target_description | F1: E-value | G1: Identity% | H1: Aligned_seq_length | I1: Score | J1: Positives% | K1: Gaps%
A2: TC002601 | B2: 369 | C2: LDEC017247-PA | D2: 107 | E2: unnamed protein product | F2: 3e-62 | G2: 86 | H2: 104 | I2: 197 | J2: 91 | K2: 0
A3: TC004420 | B3: 807 | C3: LDEC001726-PA | D3: 234 | E3: unnamed protein product | F3: 3e-136 | G3: 89 | H3: 226 | I3: 406 | J3: 95 | K3: 0
A4: TC002933 | B4: 408 | C4: LDEC020367-PA | D4: 195 | E4: unnamed protein product | F4: 6e-92 | G4: 95 | H4: 184 | I4: 278 | J4: 98 | K4: 0
A5: TC003405 | B5: 663 | C5: LDEC013444-PA | D5: 503 | E5: unnamed protein product | F5: 0 | G5: 75 | H5: 518 | I5: 770 | J5: 86 | K5: 4
A6: TC000165 | B6: 928 | C6: LDEC019591-PA | D6: 891 | E6: unnamed protein product | F6: 0 | G6: 68 | H6: 927 | I6: 1264 | J6: 79 | K6: 6
A7: TC000040 | B7: 372 | C7: LDEC004542-PA | D7: 347 | E7: unnamed protein product | F7: 4e-141 | G7: 96 | H7: 204 | I7: 408 | J7: 98 | K7: 0
A8: TC004683 | B8: 895 | C8: LDEC020746-PA | D8: 877 | E8: unnamed protein product | F8: 0 | G8: 68 | H8: 883 | I8: 1210 | J8: 82 | K8: 1
A9: TC003818 | B9: 565 | C9: LDEC015830-PA | D9: 598 | E9: unnamed protein product | F9: 0 | G9: 76 | H9: 552 | I9: 858 | J9: 88 | K9: 1
A10: TC003752 | B10: 1072 | C10: LDEC012135-PA | D10: 519 | E10: unnamed protein product | F10: 6e-140 | G10: 62 | H10: 436 | I10: 434 | J10: 72 | K10: 9
A11: TC003944 | B11: 376 | C11: LDEC020822-PA | D11: 376 | E11: unnamed protein product | F11: 0 | G11: 99 | H11: 376 | I11: 779 | J11: 99 | K11: 0
A12: TC004425 | B12: 563 | C12: LDEC018935-PA | D12: 657 | E12: unnamed protein product | F12: 0 | G12: 96 | H12: 526 | I12: 982 | J12: 99 | K12: 0
A13: TC001600 | B13: 209 | C13: LDEC017315-PA | D13: 209 | E13: unnamed protein product | F13: 1e-155 | G13: 99 | H13: 209 | I13: 433 | J13: 100 | K13: 0
A14: TC002574 | B14: 508 | C14: LDEC007903-PA | D14: 508 | E14: unnamed protein product | F14: 0 | G14: 95 | H14: 485 | I14: 924 | J14: 98 | K14: 0
A15: TC004029 | B15: 312 | C15: LDEC017202-PA | D15: 331 | E15: unnamed protein product | F15: 7e-153 | G15: 80 | H15: 318 | I15: 435 | J15: 89 | K15: 2
A16: TC003020 | B16: 601 | C16: LDEC005928-PA | D16: 460 | E16: unnamed protein product | F16: 0 | G16: 73 | H16: 512 | I16: 754 | J16: 83 | K16: 10
A17: TC003731 | B17: 393 | C17: LDEC014838-PA | D17: 373 | E17: unnamed protein product | F17: 4e-137 | G17: 89 | H17: 213 | I17: 400 | J17: 90 | K17: 10
A18: TC000082 | B18: 213 | C18: LDEC013408-PA | D18: 228 | E18: unnamed protein product | F18: 2e-87 | G18: 62 | H18: 214 | I18: 260 | J18: 75 | K18: 2
A19: TC002003 | B19: 363 | C19: LDEC003916-PA | D19: 336 | E19: unnamed protein product | F19: 1e-78 | G19: 46 | H19: 303 | I19: 247 | J19: 60 | K19: 7
A20: TC000029 | B20: 765 | C20: LDEC021340-PA | D20: 566 | E20: unnamed protein product | F20: 5e-160 | G20: 77 | H20: 311 | I20: 479 | J20: 88 | K20: 1
A21: TC000161 | B21: 270 | C21: LDEC016690-PA | D21: 288 | E21: unnamed protein product | F21: 7e-162 | G21: 93 | H21: 270 | I21: 454 | J21: 98 | K21: 0
A22: TC002507 | B22: 1887 | C22: LDEC004538-PA | D22: 1431 | E22: unnamed protein product | F22: 0 | G22: 60 | H22: 1457 | I22: 1509 | J22: 72 | K22: 9
A23: TC000614 | B23: 246 | C23: LDEC010921-PA | D23: 146 | E23: unnamed protein product | F23: 8e-91 | G23: 93 | H23: 135 | I23: 267 | J23: 98 | K23: 0
A24: TC004760 | B24: 185 | C24: LDEC008852-PA | D24: 194 | E24: unnamed protein product | F24: 7e-37 | G24: 47 | H24: 138 | I24: 128 | J24: 68 | K24: 2
A25: TC003079 | B25: 948 | C25: LDEC021697-PA | D25: 238 | E25: unnamed protein product | F25: 5e-77 | G25: 76 | H25: 184 | I25: 253 | J25: 83 | K25: 7
A26: TC000258 | B26: 277 | C26: LDEC019981-PA | D26: 293 | E26: unnamed protein product | F26: 1e-143 | G26: 82 | H26: 281 | I26: 409 | J26: 89 | K26: 2
A27: TC000801 | B27: 465 | C27: LDEC001741-PA | D27: 723 | E27: unnamed protein product | F27: 0 | G27: 92 | H27: 334 | I27: 647 | J27: 96 | K27: 0
A28: TC000069 | B28: 235 | C28: LDEC003296-PA | D28: 246 | E28: unnamed protein product | F28: 1e-145 | G28: 85 | H28: 224 | I28: 410 | J28: 92 | K28: 0
A29: TC002881 | B29: 2779 | C29: LDEC004028-PA | D29: 2575 | E29: unnamed protein product | F29: 0 | G29: 64 | H29: 968 | I29: 1294 | J29: 82 | K29: 1
A30: TC004599 | B30: 199 | C30: LDEC020050-PA | D30: 159 | E30: unnamed protein product | F30: 5e-61 | G30: 77 | H30: 158 | I30: 190 | J30: 87 | K30: 4
A31: TC003747 | B31: 281 | C31: LDEC012319-PA | D31: 125 | E31: unnamed protein product | F31: 3e-35 | G31: 73 | H31: 110 | I31: 125 | J31: 80 | K31: 3
A32: TC007891 | B32: 265 | C32: LDEC002389-PA | D32: 266 | E32: unnamed protein product | F32: 7e-150 | G32: 86 | H32: 266 | I32: 423 | J32: 93 | K32: 0
A33: TC006902 | B33: 186 | C33: LDEC010072-PA | D33: 325 | E33: unnamed protein product | F33: 2e-76 | G33: 82 | H33: 156 | I33: 234 | J33: 87 | K33: 7
A34: TC007846 | B34: 496 | C34: LDEC003015-PA | D34: 519 | E34: unnamed protein product | F34: 0 | G34: 62 | H34: 519 | I34: 629 | J34: 76 | K34: 7
A35: TC004949 | B35: 831 | C35: LDEC017045-PA | D35: 423 | E35: unnamed protein product | F35: 0 | G35: 78 | H35: 425 | I35: 698 | J35: 88 | K35: 2
A36: TC010405 | B36: 528 | C36: LDEC012258-PA | D36: 277 | E36: unnamed protein product | F36: 1e-77 | G36: 63 | H36: 243 | I36: 248 | J36: 77 | K36: 5
A37: TC011058 | B37: 881 | C37: LDEC016479-PA | D37: 595 | E37: unnamed protein product | F37: 0 | G37: 87 | H37: 639 | I37: 1142 | J37: 91 | K37: 7
A38: TC009040 | B38: 425 | C38: LDEC015369-PA | D38: 237 | E38: unnamed protein product | F38: 1e-114 | G38: 75 | H38: 224 | I38: 338 | J38: 83 | K38: 1
A39: TC006375 | B39: 389 | C39: LDEC014093-PA | D39: 363 | E39: unnamed protein product | F39: 0 | G39: 85 | H39: 363 | I39: 635 | J39: 90 | K39: 6
A40: TC010557 | B40: 476 | C40: LDEC003829-PA | D40: 476 | E40: unnamed protein product | F40: 0 | G40: 99 | H40: 476 | I40: 955 | J40: 99 | K40: 0
A41: TC009010 | B41: 291 | C41: LDEC004838-PA | D41: 296 | E41: unnamed protein product | F41: 0 | G41: 84 | H41: 292 | I41: 507 | J41: 90 | K41: 1
A42: TC006982 | B42: 1088 | C42: LDEC005329-PA | D42: 1257 | E42: unnamed protein product | F42: 0 | G42: 74 | H42: 777 | I42: 1186 | J42: 83 | K42: 7
A43: TC011082 | B43: 439 | C43: LDEC012644-PA | D43: 406 | E43: unnamed protein product | F43: 0 | G43: 78 | H43: 439 | I43: 670 | J43: 86 | K43: 8
A44: TC005869 | B44: 311 | C44: LDEC002449-PA | D44: 268 | E44: unnamed protein product | F44: 2e-174 | G44: 82 | H44: 297 | I44: 487 | J44: 84 | K44: 14
A45: TC008263 | B45: 2399 | C45: LDEC020295-PA | D45: 1493 | E45: unnamed protein product | F45: 0 | G45: 44 | H45: 1171 | I45: 762 | J45: 57 | K45: 18
A46: TC006281 | B46: 528 | C46: LDEC002447-PA | D46: 527 | E46: unnamed protein product | F46: 0 | G46: 89 | H46: 513 | I46: 943 | J46: 92 | K46: 1
A47: TC007640 | B47: 639 | C47: LDEC004601-PA | D47: 491 | E47: unnamed protein product | F47: 0 | G47: 86 | H47: 406 | I47: 706 | J47: 92 | K47: 0
A48: TC009491 | B48: 702 | C48: LDEC019906-PA | D48: 571 | E48: unnamed protein product | F48: 0 | G48: 84 | H48: 419 | I48: 637 | J48: 89 | K48: 4
A49: TC006253 | B49: 1676 | C49: LDEC017237-PA | D49: 395 | E49: unnamed protein product | F49: 0 | G49: 86 | H49: 388 | I49: 619 | J49: 91 | K49: 1
A50: TC008407 | B50: 1428 | C50: LDEC006484-PA | D50: 514 | E50: unnamed protein product | F50: 0 | G50: 76 | H50: 503 | I50: 815 | J50: 87 | K50: 0
A51: TC008190 | B51: 863 | C51: LDEC006073-PA | D51: 621 | E51: unnamed protein product | F51: 0 | G51: 86 | H51: 433 | I51: 743 | J51: 93 | K51: 2
A52: TC008671 | B52: 242 | C52: LDEC010714-PA | D52: 227 | E52: unnamed protein product | F52: 3e-118 | G52: 94 | H52: 172 | I52: 340 | J52: 95 | K52: 0
A53: TC008662 | B53: 191 | C53: LDEC023112-PA | D53: 233 | E53: unnamed protein product | F53: 1e-13 | G53: 36 | H53: 108 | I53: 66.2 | J53: 54 | K53: 16
A54: TC006047 | B54: 298 | C54: LDEC001900-PA | D54: 204 | E54: unnamed protein product | F54: 7e-65 | G54: 55 | H54: 185 | I54: 205 | J54: 65 | K54: 20
A55: TC010367 | B55: 233 | C55: LDEC013831-PA | D55: 231 | E55: unnamed protein product | F55: 1e-94 | G55: 79 | H55: 233 | I55: 280 | J55: 89 | K55: 3
A56: TC009191 | B56: 765 | C56: LDEC011997-PA | D56: 778 | E56: unnamed protein product | F56: 0 | G56: 93 | H56: 776 | I56: 1519 | J56: 96 | K56: 1
A57: TC006679 | B57: 1344 | C57: LDEC010122-PA | D57: 1291 | E57: unnamed protein product | F57: 0 | G57: 71 | H57: 1100 | I57: 1130 | J57: 79 | K57: 3
A58: TC007999 | B58: 409 | C58: LDEC015181-PA | D58: 438 | E58: unnamed protein product | F58: 1e-126 | G58: 52 | H58: 361 | I58: 376 | J58: 77 | K58: 1
A59: TC005313 | B59: 368 | C59: LDEC004927-PA | D59: 374 | E59: unnamed protein product | F59: 0 | G59: 76 | H59: 374 | I59: 573 | J59: 88 | K59: 2
A60: TC006514 | B60: 742 | C60: LDEC001544-PA | D60: 733 | E60: unnamed protein product | F60: 0 | G60: 67 | H60: 756 | I60: 972 | J60: 80 | K60: 6
A61: TC007510 | B61: 445 | C61: LDEC001384-PA | D61: 206 | E61: unnamed protein product | F61: 1e-114 | G61: 82 | H61: 199 | I61: 338 | J61: 90 | K61: 6
A62: TC011068 | B62: 915 | C62: LDEC013339-PA | D62: 939 | E62: unnamed protein product | F62: 0 | G62: 68 | H62: 957 | I62: 1058 | J62: 78 | K62: 11
A63: TC009328 | B63: 288 | C63: LDEC004416-PA | D63: 242 | E63: unnamed protein product | F63: 1e-148 | G63: 82 | H63: 235 | I63: 420 | J63: 94 | K63: 1
A64: TC006188 | B64: 1258 | C64: LDEC006770-PA | D64: 247 | E64: unnamed protein product | F64: 8e-115 | G64: 67 | H64: 243 | I64: 360 | J64: 81 | K64: 7
A65: TC015322 | B65: 518 | C65: LDEC020740-PA | D65: 517 | E65: unnamed protein product | F65: 0 | G65: 94 | H65: 517 | I65: 899 | J65: 97 | K65: 0
A66: TC011725 | B66: 256 | C66: LDEC007421-PA | D66: 244 | E66: unnamed protein product | F66: 9e-124 | G66: 74 | H66: 238 | I66: 355 | J66: 82 | K66: 5
A67: TC014785 | B67: 756 | C67: LDEC005485-PA | D67: 801 | E67: unnamed protein product | F67: 0 | G67: 82 | H67: 618 | I67: 993 | J67: 88 | K67: 3
A68: TC014109 | B68: 173 | C68: LDEC016281-PA | D68: 173 | E68: unnamed protein product | F68: 2e-123 | G68: 97 | H68: 173 | I68: 348 | J68: 100 | K68: 0
A69: TC015727 | B69: 710 | C69: LDEC005185-PA | D69: 521 | E69: unnamed protein product | F69: 0 | G69: 92 | H69: 418 | I69: 793 | J69: 95 | K69: 1
A70: TC015014 | B70: 1684 | C70: LDEC017401-PA | D70: 1680 | E70: unnamed protein product | F70: 0 | G70: 96 | H70: 1686 | I70: 3137 | J70: 97 | K70: 1
A71: TC014300 | B71: 900 | C71: LDEC003093-PA | D71: 925 | E71: unnamed protein product | F71: 0 | G71: 47 | H71: 949 | I71: 735 | J71: 65 | K71: 8
A72: TC013939 | B72: 805 | C72: LDEC008911-PA | D72: 742 | E72: unnamed protein product | F72: 0 | G72: 74 | H72: 548 | I72: 748 | J72: 83 | K72: 7
A73: TC014413 | B73: 425 | C73: LDEC012710-PA | D73: 425 | E73: unnamed protein product | F73: 0 | G73: 85 | H73: 411 | I73: 701 | J73: 92 | K73: 0
A74: TC014931 | B74: 484 | C74: LDEC005233-PA | D74: 485 | E74: unnamed protein product | F74: 1e-144 | G74: 48 | H74: 479 | I74: 427 | J74: 66 | K74: 3
A75: TC015935 | B75: 969 | C75: LDEC014614-PA | D75: 303 | E75: unnamed protein product | F75: 9e-158 | G75: 78 | H75: 289 | I75: 469 | J75: 89 | K75: 0
A76: TC014730 | B76: 507 | C76: LDEC012509-PA | D76: 548 | E76: unnamed protein product | F76: 0 | G76: 66 | H76: 521 | I76: 637 | J76: 82 | K76: 3
A77: TC030619 | B77: 805 | C77: LDEC010363-PA | D77: 1034 | E77: unnamed protein product | F77: 8e-112 | G77: 60 | H77: 388 | I77: 367 | J77: 66 | K77: 21
A78: TC012455 | B78: 1206 | C78: LDEC017013-PA | D78: 660 | E78: unnamed protein product | F78: 0 | G78: 64 | H78: 650 | I78: 721 | J78: 78 | K78: 9
A79: TC011204 | B79: 204 | C79: LDEC005567-PA | D79: 176 | E79: unnamed protein product | F79: 4e-57 | G79: 61 | H79: 204 | I79: 181 | J79: 69 | K79: 14
A80: TC011120 | B80: 578 | C80: LDEC018675-PA | D80: 609 | E80: unnamed protein product | F80: 0 | G80: 81 | H80: 563 | I80: 944 | J80: 86 | K80: 6
A81: TC014294 | B81: 1112 | C81: LDEC008327-PA | D81: 961 | E81: unnamed protein product | F81: 0 | G81: 79 | H81: 721 | I81: 1125 | J81: 89 | K81: 4
A82: TC013746 | B82: 376 | C82: LDEC008164-PA | D82: 376 | E82: unnamed protein product | F82: 0 | G82: 86 | H82: 376 | I82: 704 | J82: 95 | K82: 0
A83: TC016270 | B83: 606 | C83: LDEC000567-PA | D83: 605 | E83: unnamed protein product | F83: 0 | G83: 77 | H83: 592 | I83: 963 | J83: 86 | K83: 3
A84: TC013245 | B84: 431 | C84: LDEC012456-PA | D84: 427 | E84: unnamed protein product | F84: 2e-179 | G84: 74 | H84: 440 | I84: 511 | J84: 83 | K84: 5
A85: TC013003 | B85: 525 | C85: LDEC007222-PA | D85: 548 | E85: unnamed protein product | F85: 0 | G85: 56 | H85: 554 | I85: 588 | J85: 74 | K85: 8
A86: TC012723 | B86: 534 | C86: LDEC010834-PA | D86: 227 | E86: unnamed protein product | F86: 8e-60 | G86: 73 | H86: 230 | I86: 199 | J86: 76 | K86: 7
A87: TC011708 | B87: 312 | C87: LDEC010231-PA | D87: 374 | E87: unnamed protein product | F87: 1e-63 | G87: 64 | H87: 198 | I87: 208 | J87: 72 | K87: 10
A88: TC030579 | B88: 360 | C88: LDEC006220-PA | D88: 376 | E88: unnamed protein product | F88: 0 | G88: 88 | H88: 360 | I88: 677 | J88: 96 | K88: 0
A89: TC030625 | B89: 273 | C89: LDEC010014-PA | D89: 273 | E89: unnamed protein product | F89: 7e-154 | G89: 83 | H89: 270 | I89: 434 | J89: 90 | K89: 3
A90: TC030666 | B90: 263 | C90: LDEC023007-PA | D90: 235 | E90: unnamed protein product | F90: 2e-84 | G90: 73 | H90: 195 | I90: 255 | J90: 83 | K90: 0
A91: TC015321 | B91: 327 | C91: LDEC001822-PA | D91: 327 | E91: unnamed protein product | F91: 0 | G91: 99 | H91: 327 | I91: 677 | J91: 99 | K91: 0
A92: TC013571 | B92: 291 | C92: LDEC019570-PA | D92: 143 | E92: unnamed protein product | F92: 7e-42 | G92: 72 | H92: 124 | I92: 143 | J92: 82 | K92: 2
A93: TC012381 | B93: 361 | C93: LDEC021145-PA | D93: 295 | E93: unnamed protein product | F93: 4e-126 | G93: 89 | H93: 208 | I93: 367 | J93: 94 | K93: 0
A94: TC030708 | B94: 815 | C94: LDEC018094-PA | D94: 672 | E94: unnamed protein product | F94: 6e-134 | G94: 68 | H94: 469 | I94: 417 | J94: 75 | K94: 10
A95: TC032227 | B95: 595 | C95: LDEC003557-PA | D95: 600 | E95: unnamed protein product | F95: 0 | G95: 71 | H95: 595 | I95: 918 | J95: 86 | K95: 0
A96: TC033679 | B96: 217 | C96: LDEC009011-PA | D96: 490 | E96: unnamed protein product | F96: 2e-62 | G96: 60 | H96: 221 | I96: 204 | J96: 66 | K96: 20
A97: TC031473 | B97: 1041 | C97: LDEC005909-PA | D97: 1018 | E97: unnamed protein product | F97: 0 | G97: 82 | H97: 1041 | I97: 1713 | J97: 89 | K97: 4
A98: TC031972 | B98: 2137 | C98: LDEC018190-PA | D98: 1649 | E98: unnamed protein product | F98: 0 | G98: 91 | H98: 1545 | I98: 2858 | J98: 96 | K98: 0
A99: TC031145 | B99: 1173 | C99: LDEC012775-PA | D99: 392 | E99: unnamed protein product | F99: 0 | G99: 95 | H99: 388 | I99: 686 | J99: 98 | K99: 0
A100: TC033251 | B100: 534 | C100: LDEC001072-PA | D100: 534 | E100: unnamed protein product | F100: 0 | G100: 77 | H100: 520 | I100: 821 | J100: 88 | K100: 1
A101: TC032389 | B101: 266 | C101: LDEC007826-PA | D101: 266 | E101: unnamed protein product | F101: 8e-126 | G101: 84 | H101: 241 | I101: 362 | J101: 90 | K101: 2

Sheet flybase_lethal
B1: # | C1: Symbol | D1: Name | E1: Annotation ID | F1: Cytology | G1: Alleles # | H1: Stocks # | I1: Clones #
B2: 1 | C2: mir-315 updated | D2: mir-315 stem loop | E2: CR43036 | F2: 75E2-75E2 | G2: 7 | H2: 2 | I2: -
B3: 2 | C3: mir-1 updated | D3: mir-1 stem loop | E3: CR43027 | F3: 38C8-38C8 | G3: 15 | H3: 3 | I3: -
B4: 3 | C4: ban updated | D4: bantam | E4: CR43018 | F4: 61C7-61C7 | G4: 36 | H4: 7 | I4: -
B5: 4 | C5: mir-312 updated | D5: mir-312 stem loop | E5: CR43017 | F5: 57A6-57A6 | G5: 14 | H5: 5 | I5: -
B6: 5 | C6: mir-279 updated | D6: mir-279 stem loop | E6: CR43015 | F6: 99A1-99A1 | G6: 19 | H6: 4 | I6: -
B7: 6 | C7: mir-14 updated | D7: mir-14 stem loop | E7: CR43013 | F7: 45F1-45F1 | G7: 24 | H7: 8 | I7: -
B8: 7 | C8: mir-313 updated | D8: mir-313 stem loop | E8: CR43003 | F8: 57A6-57A6 | G8: 13 | H8: 4 | I8: -
B9: 8 | C9: mir-iab-8 updated | D9: mir-iab-8 stem loop | E9: CR42997 | F9: 89E3-89E3 | G9: 4 | H9: 2 | I9: -
B10: 9 | C10: mir-310 updated | D10: mir-310 stem loop | E10: CR42995 | F10: 57A6-57A6 | G10: 14 | H10: 4 | I10: -
B11: 10 | C11: mir-11 updated | D11: mir-11 stem loop | E11: CR42992 | F11: 93E9-93E9 | G11: 9 | H11: 5 | I11: -
B12: 11 | C12: mir-8 updated | D12: mir-8 stem loop | E12: CR42988 | F12: 53D11-53D11 | G12: 20 | H12: 6 | I12: -
B13: 12 | C13: mir-311 updated | D13: mir-311 stem loop | E13: CR42943 | F13: 57A6-57A6 | G13: 13 | H13: 5 | I13: -
B14: 13 | C14: bft updated | D14: bereft | E14: CR42938 | F14: 33B2-33B2 | G14: 20 | H14: 9 | I14: -
B15: 14 | C15: mir-184 updated | D15: mir-184 stem loop | E15: CR42925 | F15: 50A1-50A1 | G15: 11 | H15: 6 | I15: -
B16: 15 | C16: mir-7 updated | D16: mir-7 stem loop | E16: CR42883 | F16: 57A7-57A7 | G16: 16 | H16: 6 | I16: -
B17: 16 | C17: snRNA:U6atac:29B updated | D17: U6atac snRNA at 29B | E17: CR32989 | F17: 29C1-29C1 | G17: 3 | H17: 3 | I17: 2
B18: 17 | C18: roX1 updated | D18: RNA on the X 1 | E18: CR32777 | F18: 3F3-3F3 | G18: 66 | H18: 8 | I18: 274
B19: 18 | C19: snRNA:U12:73B updated | D19: snRNA:U12:73B | E19: CR32162 | F19: 73B5-73B5 | G19: 4 | H19: 1 | I19: -
B20: 19 | C20: CR32027 updated | D20: - | E20: CR32027 | F20: 75E2-75E2 | G20: 4 | H20: 2 | I20: 9
B21: 20 | C21: snRNA:U5:34A updated | D21: small nuclear RNA U5 at 34AB | E21: CR31853 | F21: 34B1-34B1 | G21: 1 | H21: 1 | I21: -
B22: 21 | C22: snRNA:U1:21D updated | D22: small nuclear RNA U1 at 21D | E22: CR31656 | F22: 21E2-21E2 | G22: 5 | H22: 1 | I22: 2
B23: 22 | C23: snRNA:U4:39B updated | D23: small nuclear RNA U4 at 39B | E23: CR31625 | F23: 39B3-39B3 | G23: 6 | H23: 5 | I23: 208
B24: 23 | C24: CR31044 updated | D24: - | E24: CR31044 | F24: 99A1-99A1 | G24: 12 | H24: 9 | I24: 7
B25: 24 | C25: CR18275 updated | D25: - | E25: CR18275 | F25: 1B4-1B4 | G25: 3 | H25: 2 | I25: 1
B26: 25 | C26: CR13130 updated | D26: - | E26: CR13130 | F26: 30F5-30F5 | G26: 19 | H26: 13 | I26: 3
B27: 26 | C27: Neurl4 updated | D27: - | E27: CG46284 | F27: 70C15-70D1 | G27: 9 | H27: 4 | I27: 24
B28: 27 | C28: vas updated | D28: vasa | E28: CG46283 | F28: 35C1-35C1 | G28: 84 | H28: 15 | I28: 61
B29: 28 | C29: Fatp updated | D29: Fatty acid (long chain) transport protein | E29: CG46149 | F29: 31F4-31F5 | G29: 14 | H29: 10 | I29: 100
B30: 29 | C30: PRAS40 updated | D30: PRAS40 ortholog | E30: CG46146 | F30: 51A4-51A4 | G30: 29 | H30: 15 | I30: 61
B31: 30 | C31: CG46121 updated | D31: - | E31: CG46121 | F31: 67C2-67C2 | G31: 10 | H31: 12 | I31: 3
B32: 31 | C32: mamo updated | D32: maternal gene required for meiosis | E32: CG45477 | F32: 12C8-12C7 | G32: 31 | H32: 21 | I32: 35
B33: 32 | C33: CG45186 updated | D33: - | E33: CG45186 | F33: 62D7-62E1 | G33: 54 | H33: 47 | I33: 478
B34: 33 | C34: tau updated | D34: tau | E34: CG45110 | F34: 98A14-98A13 | G34: 27 | H34: 21 | I34: 36
B35: 34 | C35: CG45076 updated | D35: - | E35: CG45076 | F35: 86C6-86C6 | G35: 6 | H35: 7 | I35: 104
B36: 35 | C36: Kr-h1 updated | D36: Kruppel homolog 1 | E36: CG45074 | F36: 26B5-26B5 | G36: 27 | H36: 18 | I36: 41
B37: 36 | C37: CTPsyn updated | D37: CTP synthase | E37: CG45070 | F37: 71B4-71B5 | G37: 39 | H37: 18 | I37: 108
B38: 37 | C38: sima updated | D38: similar | E38: CG45051 | F38: 99D4-99D7 | G38: 48 | H38: 31 | I38: 80
B39: 38 | C39: CG45050 updated | D39: - | E39: CG45050 | F39: 85D11-85D11 | G39: 48 | H39: 34 | I39: 149
B40: 39 | C40: Tgs1 updated | D40: Trimethylguanosine synthase 1 ortholog (H. sapiens) | E40: CG44890 | F40: 90F11-90F11 | G40: 16 | H40: 3 | I40: 14
B41: 40 | C41: CG44838 updated | D41: - | E41: CG44838 | F41: 67B9-67B9 | G41: 23 | H41: 17 | I41: 89
B42: 41 | C42: rg updated | D42: rugose | E42: CG44835 | F42: 4F2-4F3 | G42: 66 | H42: 28 | I42: 42
B43: 42 | C43: NnaD updated | D43: Drosophila Nna1 ortholog | E43: CG44533 | F43: 12B4-12B4 | G43: 11 | H43: 7 | I43: 60
B44: 43 | C44: sno updated | D44: strawberry notch | E44: CG44436 | F44: 11E3-11E3 | G44: 29 | H44: 9 | I44: 62
B45: 44 | C45: CG44422 updated | D45: - | E45: CG44422 | F45: 10B1-10B1 | G45: 8 | H45: 6 | I45: 3
B46: 45 | C46: sud1 updated | D46: sudestada1 | E46: CG44254 | F46: 96B6-96B6 | G46: 4 | H46: 4 | I46: 26
B47: 46 | C47: Trpm updated | D47: Transient receptor potential cation channel, subfamily M ortholog | E47: CG44240 | F47: 51E11-51F4 | G47: 32 | H47: 25 | I47: 21
B48: 47 | C48: PIG-V updated | D48: Phosphatidylinositol glycan anchor biosynthesis, class V ortholog (H. sapiens) | E48: CG44239 | F48: 53E2-53E2 | G48: 13 | H48: 8 | I48: 91
B49: 48 | C49: Src42A updated | D49: Src oncogene at 42A | E49: CG44128 | F49: 42A6-42A7 | G49: 66 | H49: 31 | I49: 106
B50: 49 | C50: pHCl updated | D50: - | E50: CG44099 | F50: 72A2-72A2 | G50: 15 | H50: 12 | I50: 20
B51: 50 | C51: CG44085 updated | D51: - | E51: CG44085 | F51: 34B3-34B4 | G51: 10 | H51: 9 | I51: 49
B52: 51 | C52: Hph updated | D52: HIF prolyl hydroxylase | E52: CG44015 | F52: 82F3-82F8 | G52: 43 | H52: 24 | I52: 29
B53: 52 | C53: btsz updated | D53: bitesize | E53: CG44012 | F53: 88D5-88D5 | G53: 45 | H53: 28 | I53: 32
B54: 53 | C54: Rgk1 updated | D54: Rad, Gem/Kir family member 1 | E54: CG44011 | F54: 56C11-56D1 | G54: 13 | H54: 13 | I54: 16
B55: 54 | C55: CG43980 updated | D55: - | E55: CG43980 | F55: 78E2-78E2 | G55: 10 | H55: 10 | I55: 13
B56: 55 | C56: RhoGEF3 updated | D56: Rho guanine nucleotide exchange factor 3 | E56: CG43976 | F56: 61B3-61C1 | G56: 23 | H56: 21 | I56: 115
B57: 56 | C57: Fife updated | D57: Fife | E57: CG43955 | F57: 62E8-62E8 | G57: 16 | H57: 9 | I57: 22
B58: 57 | C58: Glut1 updated | D58: Glucose transporter 1 | E58: CG43946 | F58: 61D4-61E1 | G58: 27 | H58: 22 | I58: 125
B59: 58 | C59: Hr4 updated | D59: Hr4 | E59: CG43934 | F59: 2B16-2C1 | G59: 68 | H59: 42 | I59: 33
B60: 59 | C60: CG43897 updated | D60: - | E60: CG43897 | F60: 67C9-67C10 | G60: 19 | H60: 13 | I60: 287
B61: 60 | C61: ab updated | D61: abrupt | E61: CG43860 | F61: 32E1-32E2 | G61: 54 | H61: 36 | I61: 92
B62: 61 | C62: orb2 updated | D62: - | E62: CG43782 | F62: 66E4-66E4 | G62: 47 | H62: 15 | I62: 216
B63: 62 | C63: Sxl updated | D63: Sex lethal | E63: CG43770 | F63: 6F3-6F5 | G63: 196 | H63: 61 | I63: 223
B64: 63 | C64: sli updated | D64: slit | E64: CG43758 | F64: 52C9-52D2 | G64: 66 | H64: 26 | I64: 69
B65: 64 | C65: dysc updated | D65: dyschronic | E65: CG43749 | F65: 70C5-70C5 | G65: 28 | H65: 17 | I65: 25
B66: 65 | C66: Hmx updated | D66: H6-like-homeobox | E66: CG43748 | F66: 90B4-90B4 | G66: 13 | H66: 11 | I66: 4
B67: 66 | C67: bru-3 updated | D67: bruno-3 | E67: CG43744 | F67: 70B5-70C4 | G67: 28 | H67: 28 | I67: 130
B68: 67 | C68: Ack-like updated | D68: Activated Cdc42 kinase-like | E68: CG43741 | F68: 49F3-49F3 | G68: 12 | H68: 9 | I68: 49
B69: 68 | C69: CG43740 updated | D69: - | E69: CG43740 | F69: 9B7-9B7 | G69: 8 | H69: 5 | I69: 10
B70: 69 | C70: cpo updated | D70: couch potato | E70: CG43738 | F70: 90D1-90E1 | G70: 105 | H70: 30 | I70: 72
B71: 70 | C71: CG43729 updated | D71: - | E71: CG43729 | F71: 52A3-52A1 | G71: 19 | H71: 16 | I71: 56
B72: 71 | C72: sick updated | D72: sickie | E72: CG43720 | F72: 38A4-38A4 | G72: 60 | H72: 42 | I72: 29
B73: 72 | C73: fok updated | D73: fledgling of Klp38B | E73: CG43690 | F73: 38B4-38B4 | G73: 16 | H73: 13 | I73: 81
B74: 73 | C74: Su(var)3-9 updated | D74: Suppressor of variegation 3-9 | E74: CG43664 | F74: 88E6-88E8 | G74: 85 | H74: 12 | I74: 47
B75: 74 | C75: Rpb4 updated | D75: - | E75: CG43662 | F75: 90F10-90F11 | G75: 8 | H75: 3 | I75: 11
B76: 75 | C76: hts updated | D76: hu li tai shao | E76: CG43443 | F76: 56D3-56D5 | G76: 82 | H76: 32 | I76: 164
B77: 76 | C77: scrib updated | D77: scribbled | E77: CG43398 | F77: 97B9-97C1 | G77: 79 | H77: 38 | I77: 126
B78: 77 | C78: Cngl updated | D78: Cyclic nucleotide-gated ion channel-like | E78: CG43395 | F78: 13C1-13C1 | G78: 12 | H78: 11 | I78: 24
B79: 78 | C79: Hk updated | D79: Hyperkinetic | E79: CG43388 | F79: 9B5-9B5 | G79: 21 | H79: 17 | I79: 37
B80: 79 | C80: CG43386 updated | D80: - | E80: CG43386 | F80: 9A3-9A4 | G80: 3 | H80: 2 | I80: 17
B81: 80 | C81: Cht6 updated | D81: Cht6 | E81: CG43374 | F81: 9A5-9A5 | G81: 10 | H81: 7 | I81: 17
B82: 81 | C82: Mitf updated | D82: Mitf | E82: CG43369 | F82: 102F8-102F8 | G82: 7 | H82: 5 | I82: 73
B83: 82 | C83: cac updated | D83: cacophony | E83: CG43368 | F83: 10F8-11A1 | G83: 72 | H83: 21 | I83: 42
B84: 83 | C84: CG43333 updated | D84: - | E84: CG43333 | F84: 35A1-35A1 | G84: 6 | H84: 6 | I84: 53
B85: 84 | C85: CG43313 updated | D85: - | E85: CG43313 | F85: 11D11-11E1 | G85: 13 | H85: 13 | I85: 16
B86: 85 | C86: cnc updated | D86: cap-n-collar | E86: CG43286 | F86: 94E7-94E7 | G86: 70 | H86: 29 | I86: 116
B87: 86 | C87: milt updated | D87: milton | E87: CG43227 | F87: 27D6-27D6 | G87: 26 | H87: 23 | I87: 147
B88: 87 | C88: lute updated | D88: lute | E88: CG43226 | F88: 90A3-90A3 | G88: 11 | H88: 9 | I88: 64
B89: 88 | C89: nw updated | D89: narrow | E89: CG43164 | F89: 54B18-54C1 | G89: 12 | H89: 17 | I89: 294
B90: 89 | C90: jvl updated | D90: javelin-like | E90: CG43162 | F90: 88D2-88D3 | G90: 22 | H90: 22 | I90: 44
B91: 90 | C91: CG43155 updated | D91: - | E91: CG43155 | F91: 10B15-10B15 | G91: 8 | H91: 5 | I91: 3
B92: 91 | C92: pyd updated | D92: polychaetoid | E92: CG43140 | F92: 85B3-85B7 | G92: 87 | H92: 39 | I92: 129
B93: 92 | C93: cic updated | D93: capicua | E93: CG43122 | F93: 92E2-92E2 | G93: 65 | H93: 24 | I93: 65
B94: 93 | C94: nrm updated | D94: neuromusculin | E94: CG43079 | F94: 80C3-80C3 | G94: 26 | H94: 20 | I94: 58
B95: 94 | C95: Rbp updated | D95: RIM-binding protein | E95: CG43073 | F95: 88F3-88F3 | G95: 15 | H95: 8 | I95: 19
B96: 95 | C96: FoxP updated | D96: Forkhead box P | E96: CG43067 | F96: 85E5-85E5 | G96: 9 | H96: 9 | I96: 9
B97: 96 | C97: trh updated | D97: trachealess | E97: CG42865 | F97: 61C1-61C1 | G97: 34 | H97: 13 | I97: 38
B98: 97 | C98: f updated | D98: forked | E98: CG42864 | F98: 15F4-15F4 | G98: 102 | H98: 896 | I98: 6
B99: 98 | C99: d updated | D99: dachs | E99: CG42840 | F99: 29D1-29D1 | G99: 25 | H99: 21 | I99: 31
B100: 99 | C100: gpp updated | D100: grappa | E100: CG42803 | F100: 83E7-83E7 | G100: 48 | H100: 31 | I100: 85
B101: 100 | C101: aPKC updated | D101: atypical protein kinase C | E101: CG42783 | F101: 51D5-51D5 | G101: 49 | H101: 18 | I101: 63
B102: 101 | C102: Msp300 updated | D102: Muscle-specific protein 300 kDa | E102: CG42768 | F102: 25C6-25C6 | G102: 47 | H102: 31 | I102: 69
B103: 102 | C103: CG42741 updated | D103: - | E103: CG42741 | F103: 59C2-59C2 | G103: 3 | H103: 3 | I103: 3
B104: 103 | C104: gce updated | D104: germ cell-expressed bHLH-PAS | E104: CG42739 | F104: 13B5-13B6 | G104: 22 | H104: 11 | I104: 37
B105: 104 | C105: Ank2 updated | D105: Ankyrin 2 | E105: CG42734 | F105: 66A10-66A9 | G105: 32 | H105: 21 | I105: 116
B106: 105 | C106: CG42732 updated | D106: - | E106: CG42732 | F106: 47A3-47A4 | G106: 21 | H106: 19 | I106: 27
B107: 106 | C107: CG42709 updated | D107: - | E107: CG42709 | F107: 69E2-69E3 | G107: 11 | H107: 6 | I107: 24
B108: 107 | C108: Oaz updated | D108: O/E-associated zinc finger protein | E108: CG42702 | F108: 51A3-51A3 | G108: 12 | H108: 8 | I108: 5
B109: 108 | C109: CngA updated | D109: Cyclic nucleotide-gated ion channel subunit A | E109: CG42701 | F109: 53A2-53A2 | G109: 8 | H109: 9 | I109: 7
B110: 109 | C110: CG42700 updated | D110: - | E110: CG42700 | F110: 48F6-48F6 | G110: 6 | H110: 6 | I110: 2
B111: 110 | C111: pdm3 updated | D111: pou domain motif 3 | E111: CG42698 | F111: 44C4-44C4 | G111: 22 | H111: 16 | I111: 33
B112: 111 | C112: wb updated | D112: wing blister | E112: CG42677 | F112: 35A3-35A3 | G112: 85 | H112: 30 | I112: 20
B113: 112 | C113: CG42673 updated | D113: - | E113: CG42673 | F113: 67C1-67C1 | G113: 13 | H113: 12 | I113: 33
B114: 113 | C114: ps updated | D114: pasilla | E114: CG42670 | F114: 85D16-85D17 | G114: 37 | H114: 20 | I114: 143
B115: 114 | C115: CG42666 updated | D115: - | E115: CG42666 | F115: 2B9-2B10 | G115: 9 | H115: 11 | I115: 83
B116: 115 | C116: CG42663 updated | D116: - | E116: CG42663 | F116: 49C1-49C1 | G116: 8 | H116: 5 | I116: 237
B117: 116 | C117: Rpn3 updated | D117: Regulatory particle non-ATPase 3 | E117: CG42641 | F117: 37B12-37B12 | G117: 14 | H117: 11 | I117: 102
B118: 117 | C118: PPO1 updated | D118: Prophenoloxidase 1 | E118: CG42639 | F118: 54F6-54F6 | G118: 12 | H118: 77 | I118: 154
B119: 118 | C119: Gyc76C updated | D119: Guanylyl cyclase at 76C | E119: CG42636 | F119: 61-100 | G119: 49 | H119: 34 | I119: 55
B120: 119 | C120: Cul3 updated | D120: Cullin 3 | E120: CG42616 | F120: 35C5-35C5 | G120: 41 | H120: 20 | I120: 103
B121: 120 | C121: plx updated | D121: pollux | E121: CG42612 | F121: 83B9-83C1 | G121: 17 | H121: 9 | I121: 35
B122: 121 | C122: mgl updated | D122: Megalin | E122: CG42611 | F122: 8D10-8D10 | G122: 37 | H122: 14 | I122: 32
B123: 122 | C123: Fhos updated | D123: Formin homology 2 domain containing ortholog | E123: CG42610 | F123: 66D12-66D15 | G123: 41 | H123: 28 | I123: 57
B124: 123 | C124: uex updated | D124: unextended | E124: CG42595 | F124: h44-h46 | G124: 23 | H124: 4 | I124: 85
B125: 124 | C125: CG42594 updated | D125: - | E125: CG42594 | F125: 4D5-4D5 | G125: 8 | H125: 6 | I125: 4
B126: 125 | C126: Ubr3 updated | D126: Ubr3 ubiquitin ligase | E126: CG42593 | F126: 7C8-7C9 | G126: 13 | H126: 8 | I126: 9
B127: 126 | C127: CG42588 updated | D127: - | E127: CG42588 | F127: 69E5-69E5 | G127: 14 | H127: 11 | I127: 18
B128: 127 | C128: ctrip updated | D128: circadian trip | E128: CG42574 | F128: 82D5-82D5 | G128: 17 | H128: 14 | I128: 97
B129: 128 | C129: MCPH1 updated | D129: Microcephalin | E129: CG42572 | F129: 48C5-48C5 | G129: 20 | H129: 16 | I129: 121
B130: 129 | C130: tweek updated | D130: tweek | E130: CG42555 | F130: 36B4-36B4 | G130: 14 | H130: 13 | I130: 9
B131: 130 | C131: CG42554 updated | D131: - | E131: CG42554 | F131: 61D2-61D2 | G131: 1 | H131: 1 | I131: 4
B132: 131 | C132: larp updated | D132: La related protein | E132: CG42551 | F132: 98C4-98C4 | G132: 43 | H132: 24 | I132: 87
B133: 132 | C133: CG42534 updated | D133: - | E133: CG42534 | F133: 97F4-97F4 | G133: 11 | H133: 7 | I133: 5
B134: 133 | C134: CSN8 updated | D134: COP9 signalosome subunit 8 | E134: CG42522 | F134: 29A1-29A2 | G134: 10 | H134: 3 | I134: 5
B135: 134 | C135: Ca-ß updated | D135: Ca2+-channel-protein-ß-subunit | E135: CG42403 | F135: 32D5-32D5 | G135: 6 | H135: 6 | I135: 13
B136: 135 | C136: wech updated | D136: wech | E136: CG42396 | F136: 43C5-43C5 | G136: 25 | H136: 13 | I136: 103
B137: 136 | C137: CG42389 updated | D137: - | E137: CG42389 | F137: 36A4-36A9 | G137: 33 | H137: 24 | I137: 65
B138: 137 | C138: Nost updated | D138: Nostrin | E138: CG42388 | F138: 8C4-8C4 | G138: 15 | H138: 11 | I138: 19
B139: 138 | C139: Tfb5 updated | D139: TFB5 ortholog (S. cerevisiae) | E139: CG42373 | F139: 25B10-25B10 | G139: 7 | H139: 3 | I139: 8
B140: 139 | C140: CG42366 updated | D140: - | E140: CG42366 | F140: 30F1-30F1 | G140: 5 | H140: 5 | I140: 3
B141: 140 | C141: moi updated | D141: modigliani | E141: CG42350 | F141: 90F11-90F11 | G141: 16 | H141: 1 | I141: 14
B142: 141 | C142: Pkc? updated | D142: Protein kinase C ? | E142: CG42349 | F142: 11A10-11A11 | G142: 11 | H142: 12 | I142: 47
B143: 142 | C143: laccase2 updated | D143: laccase 2 | E143: CG42345 | F143: 41F1-41F1 | G143: 14 | H143: 12 | I143: 110
B144: 143 | C144: brp updated | D144: bruchpilot | E144: CG42344 | F144: 45E1-45E3 | G144: 62 | H144: 42 | I144: 24
B145: 144 | C145: CG42342 updated | D145: - | E145: CG42342 | F145: 89B20-89B20 | G145: 28 | H145: 20 | I145: 65
B146: 145 | C146: Pka-R1 updated | D146: Protein kinase, cAMP-dependent, regulatory subunit type 1 | E146: CG42341 | F146: 77E8-77E8 | G146: 31 | H146: 20 | I146: 122
B147: 146 | C147: Ten-a updated | D147: Tenascin accessory | E147: CG42338 | F147: 11A6-11A6 | G147: 46 | H147: 26 | I147: 58
B148: 147 | C148: Camta updated | D148: Calmodulin-binding transcription activator | E148: CG42332 | F148: 45D8-45D8 | G148: 32 | H148: 17 | I148: 22
B149: 148 | C149: C3G updated | D149: C3G ortholog (H. sapiens) | E149: CG42328 | F149: 6D2-6D2 | G149: 18 | H149: 12 | I149: 86
B150: 149 | C150: CG42322 updated | D150: - | E150: CG42322 | F150: 92F10-92F12 | G150: 10 | H150: 8 | I150: 25
B151: 150 | C151: Doa updated | D151: Darkener of apricot | E151: CG42320 | F151: 98F1-98F3 | G151: 85 | H151: 44 | I151: 178
B152: 151 | C152: Csk updated | D152: C-terminal Src kinase | E152: CG42317 | F152: 86E13-86E13 | G152: 32 | H152: 19 | I152: 113
B153: 152 | C153: PMCA updated | D153: plasma membrane calcium ATPase | E153: CG42314 | F153: 102B5-102B5 | G153: 15 | H153: 10 | I153: 147
B154: 153 | C154: cno updated | D154: canoe | E154: CG42312 | F154: 82F4-82F4 | G154: 64 | H154: 29 | I154: 56
B155: 154 | C155: grh updated | D155: grainy head | E155: CG42311 | F155: 54E10-54F1 | G155: 86 | H155: 23 | I155: 59
B156: 155 | C156: CCKLR-17D1 updated | D156: Cholecystokinin-like receptor at 17D1 | E156: CG42301 | F156: 17D1-17D3 | G156: 12 | H156: 8 | I156: 3
B157: 156 | C157: Ir60b updated | D157: Ionotropic receptor 60b | E157: CG42289 | F157: 60D3-60D3 | G157: 2 | H157: 2 | I157: -
B158: 157 | C158: bun updated | D158: bunched | E158: CG42281 | F158: 33E7-33E9 | G158: 163 | H158: 72 | I158: 217
B159: 158 | C159: Nedd4 updated | D159: Nedd4 | E159: CG42279 | F159: 74D3-74D3 | G159: 56 | H159: 21 | I159: 123
B160: 159 | C160: rn updated | D160: rotund | E160: CG42277 | F160: 84D3-84D3 | G160: 85 | H160: 107 | I160: 13
B161: 160 | C161: Pde9 updated | D161: Phosphodiesterase 9 | E161: CG42276 | F161: 11C4-11D1 | G161: 13 | H161: 11 | I161: 10
B162: 161 | C162: RhoGAP18B updated | D162: Rho GTPase activating protein at 18B | E162: CG42274 | F162: 18A3-18A4 | G162: 70 | H162: 48 | I162: 132
B163: 162 | C163: mnb updated | D163: minibrain | E163: CG42273 | F163: 16E4-16E4 | G163: 35 | H163: 17 | I163: 67
B164: 163 | C164: CG42269 updated | D164: - | E164: CG42269 | F164: 65A5-65A5 | G164: 6 | H164: 5 | I164: 6
B165: 164 | C165: RunxB updated | D165: - | E165: CG42267 | F165: 19D3-19D3 | G165: 11 | H165: 8 | I165: 2
B166: 165 | C166: CG42260 updated | D166: - | E166: CG42260 | F166: 59A3-59A4 | G166: 15 | H166: 17 | I166: 13
B167: 166 | C167: CG42258 updated | D167: - | E167: CG42258 | F167: 11A11-11A11 | G167: 21 | H167: 13 | I167: 62
B168: 167 | C168: Ndae1 updated | D168: Na+-driven anion exchanger 1 | E168: CG42253 | F168: 27E5-27E6 | G168: 13 | H168: 9 | I168: 34
B169: 168 | C169: lqfR updated | D169: liquid facets-Related | E169: CG42250 | F169: 94A12-94A12 | G169: 27 | H169: 12 | I169: 118
B170: 169 | C170: RanBPM updated | D170: Ran-binding protein M | E170: CG42236 | F170: 47A3-47A7 | G170: 17 | H170: 8 | I170: 77
B171: 170 | C171: bbg updated | D171: big bang | E171: CG42230 | F171: 70D7-70E1 | G171: 50 | H171: 39 | I171: 153
B172: 171 | C172: spok updated | D172: spookier | E172: CG41624 | F172: - | G172: 3 | H172: 1 | I172: 17
B173: 172 | C173: l(2)41Ab updated | D173: lethal (2) 41Ab | E173: CG41265 | F173: h41-h41 | G173: 7 | H173: 3 | I173: 19
B174: 173 | C174: Snap25 updated | D174: Synaptosomal-associated protein 25kDa | E174: CG40452 | F174: - | G174: 42 | H174: 6 | I174: 202
B175: 174 | C175: Parp updated | D175: Poly-(ADP-ribose) polymerase | E175: CG40411 | F175: 81F-81F | G175: 23 | H175: 3 | I175: 77
B176: 175 | C176: Alg-2 updated | D176: Apoptosis-linked gene-2 | E176: CG40410 | F176: - | G176: 5 | H176: 2 | I176: 7
B177: 176 | C177: Yeti updated | D177: Yeti | E177: CG40218 | F177: h41-h41 | G177: 13 | H177: 3 | I177: 3
B178: 177 | C178: RNASEK updated | D178: Ribonuclease kappa | E178: CG40127 | F178: - | G178: 2 | H178: 2 | I178: 37
B179: 178 | C179: nvd updated | D179: neverland | E179: CG40050 | F179: - | G179: 4 | H179: 1 | I179: 24
B180: 179 | C180: Pdxk updated | D180: Pyridoxal kinase | E180: CG34455 | F180: 67B2-67B2 | G180: 7 | H180: 4 | I180: 86
B181: 180 | C181: lmgA updated | D181: lemming A | E181: CG34440 | F181: 29D4-29D5 | G181: 9 | H181: 4 | I181: 419
B182: 181 | C182: ND-MWFE updated | D182: NADH dehydrogenase (ubiquinone) MWFE subunit | E182: CG34439 | F182: 49F4-49F4 | G182: 6 | H182: 6 | I182: 23
B183: 182 | C183: Cap-G updated | D183: Chromosome associated protein G | E183: CG34438 | F183: 49E7-49F3 | G183: 37 | H183: 9 | I183: 344
B184: 183 | C184: Snoo updated | D184: Sno oncogene | E184: CG34421 | F184: 28D3-28D3 | G184: 56 | H184: 23 | I184: 48
B185: 184 | C185: mute updated | D185: muscle wasted | E185: CG34415 | F185: 53E2-53E2 | G185: 15 | H185: 10 | I185: 79
B186: 185 | C186: NKAIN updated | D186: Na,K-ATPase Interacting | E186: CG34413 | F186: 60E5-60E5 | G186: 12 | H186: 7 | I186: 123
B187: 186 | C187: Tlk updated | D187: Tousled-like kinase | E187: CG34412 | F187: 3F1-3E7 | G187: 98 | H187: 70 | I187: 119
B188: 187 | C188: Not1 updated | D188: Not1 | E188: CG34407 | F188: 45F4-45F4 | G188: 14 | H188: 12 | I188: 88
B189: 188 | C189: pan updated | D189: pangolin | E189: CG34403 | F189: 101F1-102A4 | G189: 53 | H189: 118 | I189: 196
B190: 189 | C190: CG34401 updated | D190: - | E190: CG34401 | F190: 17F2-17F2 | G190: 13 | H190: 8 | I190: 40
B191: 190 | C191: CG34396 updated | D191: - | E191: CG34396 | F191: 57B20-57B20 | G191: 5 | H191: 5 | I191: 8
B192: 191 | C192: nub updated | D192: nubbin | E192: CG34395 | F192: 33F1-33F1 | G192: 31 | H192: 36 | I192: 46
B193: 192 | C193: CG34394 updated | D193: - | E193: CG34394 | F193: 23E5-23E6 | G193: 7 | H193: 6 | I193: 89
B194: 193 | C194: cv-c updated | D194: crossveinless c | E194: CG34389 | F194: 88C1-88B8 | G194: 54 | H194: 52 | I194: 61
B195: 194 | C195: natalisin updated | D195: natalisin | E195: CG34388 | F195: 88C1-88C1 | G195: 2 | H195: 2 | I195: 10
B196: 195 | C196: futsch updated | D196: futsch | E196: CG34387 | F196: 2A2-2A2 | G196: 27 | H196: 13 | I196: 35
B197: 196 | C197: CG34386 updated | D197: - | E197: CG34386 | F197: 55B2-55B4 | G197: 6 | H197: 5 | I197: 5
B198: 197 | C198: dpr12 updated | D198: defective proboscis extension response 12 | E198: CG34385 | F198: 42A1-42A1 | G198: 8 | H198: 10 | I198: 25
B199: 198 | C199: CG34383 updated | D199: - | E199: CG34383 | F199: 87F12-87F13 | G199: 14 | H199: 13 | I199: 71
B200: 199 | C200: Shroom updated | D200: Shroom | E200: CG34379 | F200: 50F1-50F6 | G200: 28 | H200: 16 | I200: 25
... 3279 more rows

Sheet Dm_LETHAL_PHENOTYPE
A1: target gene | B1: phenotype
A2: CG4027 | B2: embryonic
A3: CG17927 | B3: embryonic
A4: CG5178 | B4: embryonic
A5: CG5178 | B5: embryonic
A6: CG13538 | B6: embryonic
A7: CG1637 | B7: embryonic
A8: CG5186 | B8: embryonic
A9: CG9553 | B9: embryonic
A10: CG10504 | B10: embryonic
A11: CG10067 | B11: embryonic
A12: CG14216 | B12: embryonic
A13: CG4046 | B13: embryonic
A14: CG6721 | B14: embryonic
A15: CG7930 | B15: embryonic
A16: CG3083 | B16: embryonic
A17: CG34358 | B17: embryonic
A18: CG6058 | B18: embryonic
A19: CG1560 | B19: embryonic
A20: CG2708 | B20: embryonic
A21: CG6340 | B21: embryonic
A22: CG7178 | B22: embryonic
A23: CG4120 | B23: embryonic
A24: CG12338 | B24: embryonic
A25: CG9968 | B25: embryonic
A26: CG9432 | B26: embryonic
A27: CG6831 | B27: embryonic
A28: CG13922 | B28: embryonic
A29: CG4843 | B29: embryonic
A30: CG8667 | B30: embryonic
A31: CG9623 | B31: embryonic
A32: CG32019 | B32: embryonic
A33: CG32019 | B33: embryonic
A34: CG1915 | B34: embryonic
A35: CG1915 | B35: embryonic
A36: CG32019 | B36: embryonic
A37: CG5820 | B37: early larval
A38: CG5820 | B38: early larval
A39: CG1804 | B39: early larval
A40: CG4875 | B40: early larval
A41: CG31605 | B41: early larval
A42: CG4006 | B42: early larval
A43: CG15319 | B43: early larval
A44: CG18102 | B44: early larval
A45: CG14029 | B45: early larval
A46: CG14996 | B46: early larval
A47: CG4589 | B47: early larval
A48: CG3193 | B48: early larval
A49: CG10506 | B49: early larval
A50: CG4027 | B50: early larval
A51: CG34109 | B51: early larval
A52: CG1242 | B52: early larval
A53: CG11579 | B53: early larval
A54: CG9946 | B54: early larval
A55: CG9946 | B55: early larval
A56: CG4035 | B56: early larval
A57: CG14084 | B57: early larval
A58: CG33135 | B58: early larval
A59: CG4016 | B59: early larval
A60: CG8016 | B60: early larval
A61: CG30415 | B61: early larval
A62: CG4797 | B62: early larval
A63: CG32528 | B63: early larval
A64: CG4239 | B64: early larval
A65: CG1967 | B65: early larval
A66: CG11430 | B66: early larval
A67: CG17117 | B67: early larval
A68: CG4307 | B68: early larval
A69: CG4307 | B69: early larval
A70: CG2216 | B70: early larval
A71: CG8960 | B71: early larval
A72: CG12157 | B72: early larval
A73: CG6905 | B73: early larval
A74: CG10293 | B74: early larval
A75: CG5268 | B75: early larval
A76: CG8189 | B76: early larval
A77: CG5386 | B77: early larval
A78: CG16812 | B78: early larval
A79: CG6223 | B79: early larval
A80: CG6223 | B80: early larval
A81: CG5599 | B81: early larval
A82: CG5599 | B82: early larval
A83: CG7610 | B83: early larval
A84: CG6378 | B84: early larval
A85: CG6378 | B85: early larval
A86: CG1163 | B86: early larval
A87: CG10811 | B87: early larval
A88: CG10811 | B88: early larval
A89: CG13389 | B89: early larval
A90: CG1263 | B90: early larval
A91: CG12750 | B91: early larval
A92: CG10149 | B92: early larval
A93: CG14788 | B93: early larval
A94: CG8877 | B94: early larval
A95: CG12101 | B95: early larval
A96: CG12101 | B96: early larval
A97: CG13185 | B97: early larval
A98: CG17331 | B98: early larval
A99: CG17331 | B99: early larval
A100: CG17521 | B100: early larval
A101: CG17521 | B101: early larval
A102: CG1575 | B102: early larval
A103: CG2033 | B103: early larval
A104: CG11518 | B104: early larval
A105: CG9233 | B105: early larval
A106: CG3278 | B106: early larval
A107: CG16941 | B107: early larval
A108: CG17420 | B108: early larval
A109: CG17420 | B109: early larval
A110: CG1883 | B110: early larval
A111: CG1883 | B111: early larval
A112: CG2685 | B112: early larval
A113: CG5920 | B113: early larval
A114: CG6030 | B114: early larval
A115: CG4046 | B115: early larval
A116: CG4944 | B116: early larval
A117: CG4554 | B117: early larval
A118: CG4759 | B118: early larval
A119: CG4897 | B119: early larval
A120: CG5119 | B120: early larval
A121: CG5525 | B121: early larval
A122: CG6090 | B122: early larval
A123: CG6625 | B123: early larval
A124: CG6815 | B124: early larval
A125: CG7269 | B125: early larval
A126: CG11985 | B126: early larval
A127: CG10724 | B127: early larval
A128: CG8086 | B128: early larval
A129: CG11258 | B129: early larval
A130: CG4863 | B130: early larval
A131: CG7283 | B131: early larval
A132: CG7283 | B132: early larval
A133: CG18001 | B133: early larval
A134: CG5827 | B134: early larval
A135: CG8728 | B135: early larval
A136: CG8280 | B136: early larval
A137: CG8280 | B137: early larval
A138: CG1740 | B138: early larval
A139: CG2807 | B139: early larval
A140: CG3193 | B140: early larval
A141: CG3193 | B141: early larval
A142: CG6213 | B142: early larval
A143: CG8053 | B143: early larval
A144: CG3983 | B144: early larval
A145: CG3605 | B145: early larval
A146: CG3605 | B146: early larval
A147: CG3931 | B147: early larval
A148: CG4198 | B148: early larval
A149: CG4878 | B149: early larval
A150: CG4954 | B150: early larval
A151: CG14235 | B151: early larval
A152: CG32027 | B152: early larval
A153: CG10315 | B153: early larval
A154: CG7223 | B154: early larval
A155: CG5844 | B155: early larval
A156: CG6375 | B156: early larval
A157: CG4878 | B157: early larval
A158: CG7338 | B158: early larval
A159: CG7516 | B159: early larval
A160: CG11990 | B160: early larval
A161: CG4145 | B161: early larval
A162: CG4881 | B162: early larval
A163: CG4881 | B163: early larval
A164: CG7490 | B164: early larval
A165: CG7630 | B165: early larval
A166: CG2986 | B166: early larval
A167: CG2986 | B167: early larval
A168: CG7580 | B168: early larval
A169: CG7580 | B169: early larval
A170: CG8351 | B170: early larval
A171: CG8435 | B171: early larval
A172: CG8882 | B172: early larval
A173: CG8882 | B173: early larval
A174: CG17737 | B174: early larval
A175: CG9834 | B175: early larval
A176: CG8039 | B176: early larval
A177: CG3224 | B177: early larval
A178: CG31989 | B178: early larval
A179: CG9632 | B179: early larval
A180: CG17209 | B180: early larval
A181: CG11617 | B181: early larval
A182: CG9073 | B182: early larval
A183: CG33128 | B183: early larval
A184: CG9630 | B184: early larval
A185: CG10840 | B185: early larval
A186: CG11180 | B186: early larval
A187: CG11638 | B187: early larval
A188: CG12225 | B188: early larval
A189: CG1249 | B189: early larval
A190: CG15081 | B190: early larval
A191: CG15693 | B191: early larval
A192: CG1664 | B192: early larval
A193: CG1664 | B193: early larval
A194: CG32666 | B194: early larval
A195: CG5820 | B195: early larval
A196: CG2263 | B196: early larval
A197: CG2708 | B197: early larval
A198: CG7686 | B198: early larval
A199: CG32576 | B199: early larval
A200: CG3762 | B200: early larval
... 2527 more rows

Sheet biomart_FASTA
A1: >TC002601|TC002601-RA | F1: TC002601 | G1: TC002601-RA | J1: >TC032227 transcript1
A2: ATGCCGAATACAACCCTTGAGAACTCACCCAATGCGGTGCTCAACAAGTCAGTGGCTGAA | F2: TC004420 | G2: TC004420-RA
A3: AGGTACATGCATTTACCGTGCCCCGAAAATAAGGTAAAAGCCACCTACATATGGATTGAT | F3: TC002933 | G3: TC002933-RA | J3: gttttttca gttgtgaaa cactttaaa cgtgttcat
A4: GGGACTGGTGAAAATGTCAGGGCGAAAACACGCACAGTCGATTTCGTCCCAAAGAAACCC | F4: TC003405 | G4: TC003405-RA | J4: ttttagaca aaaacgtga tagtaaata aaaaataca
A5: GAAGAGTTGCCGGTTTGGAACTACGACGGCAGTTCCACATACCAAGCCGAAGGCACCAAC | F5: TC000165 | G5: TC000165-RA | J5: atgccgact gtgggtgtc aagcgcaat ttgctattc
A6: TCTGACACATATCTATGTCCTGTCGCCATCTACAACGACCCCTTCAATGGGGGCAACCAC | F6: TC000040 | G6: TC000040-RA | J6: gaagccctt gggcgcact ttcaccgac gatgaattc
A7: AAGTTGGTCATGTGCGACACCTACAAATACAACAAAAAACCAACCGAAACTAACCACCGG | F7: TC004683 | G7: TC004683-RA | J7: cagcgttta tgcttcgag ttcggtctt gaactggac
A8: CACACGTGTCTGCAAGCCATGGAGGCGGCTAAAGACACCAAACCTTGGTTCGGTATCGAG | F8: TC003818 | G8: TC003818-RA | J8: gaagtcaca actgaaaaa cagatgata agtaaggaa
A9: CAGGAGTACACTTTGCTCGACATGGATATGAGACCTTTGGGGTGGCCCAAGAATGGGTTT | F9: TC003752 | G9: TC003752-RA | H9: PH | J9: caaggggag gattcagcc caggcggcg ggagcctcc
A10: CCGGGACCCCAAGGGCCTTACTATTGCGGTGTGGGGGCTAATAAGGTCTACGCACGTGAT | F10: TC003944 | G10: TC003944-RA | J10: gaggaagtc atttatcga attgacatt cctgcaaac
A11: ATTGTAGAGTCTCACTACAGTGCTTGTCTGTATGCTGGTATTAATATTGCTGGAACCAAT | F11: TC004425 | G11: TC004425-RA | J11: agatacgat ttattgtgt cttgaaggc atttcatta
A12: GCTGAGGTCATGCCAGCTCAATGGGAGTATCAGGTTGGTCCCTGTGAGGGTATTTCCATC | F12: TC001600 | G12: TC001600-RA | J12: ggaattaaa atatttcag gggaaaatt cagccgccg
A13: GGGGATGAATTGTGGGTCTCGAGGTATATTTTGCATCGTGTCGCCGAAGATTTTGGGGTT | F13: TC002574 | G13: TC002574-RA | J13: gtttacaaa cgtatcaaa ccgtcatca gacagtatt
A14: ATTGTCACGTTTGATCCTAAGCCGATTGAAGGCGATTGGAATGGAGCGGGGGCTCATACT | F14: TC004029 | G14: TC004029-RA | J14: caaaaaatt cacgtcaca cccgaaacg gcgaaaatc
A15: AACTTCTCCACTAAGGCGATGAGAGAAGATGGAGGAATTATTGAAATCGAGAAAGCCATC | F15: TC003020 | G15: TC003020-RA | J15: aggccttat atcgtaggc gccgttttg cgtaattta
A16: GATAAGCTCAGCCGAAACCACCTTAGACACATCCAGGCCTACGATCCTAAGGGAGGAAAG | F16: TC003731 | G16: TC003731-RA | J16: tacttcact caagattct tacaacagt ttcattgat
A17: GACAACGAACGTCGTCTCACCGGTCGCCATGAAACTTCCTCGATCCATGACTTCAGTGCA | F17: TC000082 | G17: TC000082-RA | J17: ttgcaagat aagttgcat cagaatatt tgccgcaaa
A18: GGTGTGGCTAACCGTGGCGCGAGTATTCGTATTCCTCGCGGATGTGCAGAAGATAAGAAG | F18: TC002003 | G18: TC002003-RA | H18: CACT | J18: cgcacgctt gtctcaatc gggacgcac gatttagat
A19: GGATATCTTGAAGATAGGAGACCATCTTCAAATTGCGATCCGTACGCAGTATGTGAAGCT | F19: TC000029 | G19: TC000029-RA | J19: acagttcag gggcccttc acctatgac gctaaacca
A20: TTGGTCCGAACATGTATTCTAGATGAATAA | F20: TC000161 | G20: TC000161-RA | J20: ccttctgag tttaagttt gtaccactt aatcaaacc
A21: >TC004420|TC004420-RA | F21: TC002507 | G21: TC002507-RA | J21: aaagagtgt gacggcaac ggcgttatg gagctctat
A22: ATGTCTAAAAAACGCGGAAACAAAAAGAATTTAAATTTGGAAAGTGATAACGAGGACGAA | F22: TC000614 | G22: TC000614-RA | J22: tcagcgcac gcgcagcta aaacaatac ttgcacatc
A23: GGGCTTGTTACGAAAGGAGAGGCCGAAAAAGGTAACATAACCTCAAAACCGAGTAAGAGT | F23: TC004760 | G23: TC004760-RA | J23: atcaaagac agccctgta tatccactc gttttggac
A24: AAAGCCCCCAAAAAGGGTAAAAAGGGCAAAAAAGACGACTGGAGCGATGATGACGATGAT | F24: TC003079 | G24: TC003079-RA | J24: agtaatggg gttatttta tcccttccg ccgattatt
A25: AAAACGGTCTCTCTGATTGATAACGTGGACGAGGAGATTCAACCGGTGGCGAAAAAGAGT | F25: TC000258 | G25: TC000258-RA | J25: aatggggat cactccaaa attacactc aacaccaaa
A26: GCAAAGAAGAAGTCGAAAAAGAAGGAACATGAGTCCGGTAGTGAAGATGAAGAAGATAAA | F26: TC000801 | G26: TC000801-RA | J26: aatgttttg attgaatgt acggcaact gatttgact
A27: GTCGAGGTTAAGGTTGAGAATAAAAAGAAAGCTGGAAAAAAAGGTAAAGGTAAAAACGAT | F27: TC000069 | G27: TC000069-RA | J27: aaagcccgc attgttgtc gatactttg gtttgtatg
A28: TGGTCGGATAATGACAGTGAAGTGGAACTGCAAATATCGGACGTTGAGGAAGAAATTCAA | F28: TC002881 | G28: TC002881-RA | J28: ttcagccag tattgcaaa gaacctttt actgtggaa
A29: CCGGTGAAGAAAAGTAGCAAAAAGGTTGCTAAAACCAAAAAGAAGAAAGATCTGAGTGAG | F29: TC004599 | G29: TC004599-RA | J29: gcttgtgag gtgattacg gctgatggt gaatccata
A30: GAAGATGAAATCCTTGAGGAACCAGTTGAAGAGTCAGACAAAGAAGAACCTGACGAAATC | F30: TC003747 | G30: TC003747-RA | J30: acttacccc gacttaacg tatcgtaac gaagtgatc
A31: GCGGAAAAAGTATCAGAACTGCAAATAACTGAAGCTAAGAAGGAACCAGAAGAGAAGAAA | F31: TC007891 | G31: TC007891-RA | H31: GLEAN_07891 | J31: tcagccgat aaagccaat gctgtgata ggcatcagt
A32: CTCACCCACAAGGAGAAGAAAAAGCTGAAGAAGCAGCAAGAATACGAGAAACAAATGGAA | F32: TC006902 | G32: TC006902-RA | J32: gagtcaccg gaaagtatt acaaagctt ttaaataaa
A33: ACCCTCCTTAAAAAAGGTGGCCAAGGTCACTCAGACCTTGACAGTAACTTCACAGTCTCC | F33: TC007846 | G33: TC007846-RA | H33: GLEAN_07846 | J33: atgtgtttg aagtcggaa ctgacttct gacggaagc
A34: CAGTCGCAAAAAACCGCCGGACAATTGGCCCAATTAGAAAATGCCGTTGATATTAAAATC | F34: TC004949 | G34: TC004949-RA | J34: agtataaaa gtaacaatc ccacccaca agacatgac
A35: GAAAATTTCAGTATCTCGGCTAAAGGCAACGATTTATTCGTAAACGCGAATTTGTTAATC | F35: TC010405 | G35: TC010405-RA | H35: SRP | J35: attatccac ccttgcgac atctacgag gacgtggct
A36: GCCAACGGGCGTCATTACGGTCTTGTGGGGCCCAATGGTCACGGTAAAACAACACTTTTG | F36: TC011058 | G36: TC011058-RA | J36: atagctttc ggttataat aaaatcgtt cgcacttta
A37: CGTCATATTGCGCAACGGGCTTTCGCGATACCCCCAAATATCGATATTTTGTATTGTGAA | F37: TC009040 | G37: TC009040-RA | J37: cccaaaaca aacacaatc ggctcccaa aaccccatt
A38: CAAGAAGTGGTCGCTGATGATTTTTCAGCGGTTGAATCGGTGCTTAAATCGGATGTGAAA | F38: TC006375 | G38: TC006375-RA | J38: aacaaactg tcggatctt ttgcgagca ccgatcgcc
A39: CGGACTGAATTGTTAGAAGAATGTAAAAAATTAGAGGATGCGTTTAATACCGGGGATTTG | F39: TC010557 | G39: TC010557-RA | J39: caagctggt ttcaccgaa gctttgacc ttttctctg
A40: GGCGTTCAGGACCGGCTTAATGAAGTTTATGCCGAATTGAAGGCCATTGGGGCGGATTCG | F40: TC009010 | G40: TC009010-RA | J40: tgttcccga gacgacatt tcaaccaaa cttggccta
A41: GCCGAACCTAAGGCGAGGAGAATCTTAGCTGGTCTAGGATTCACTAAAGAAATGCAAGAT | F41: TC006982 | G41: TC006982-RA | J41: aaatcagtg gacgaagtc ccggctgtg cacatttca
A42: AGAGCAACTAAAAATTTTTCTGGTGGATGGAGAATGAGAGTGTCACTAGCCAGAGCGTTG | F42: TC011082 | G42: TC011082-RA | J42: aatccgaaa actctcgaa tttcaagtg tgccgcact
A43: TATATAGAACCCACTTTATTACTTCTTGATGAACCAACGAATCATTTAGATTTGAATGCA | F43: TC005869 | G43: TC005869-RA | J43: actttaatt cccgggatt ttgaaaaca atcgcagcc
A44: GTTATTTGGTTGGATAATTATTTGCAAGGGTGGAAAAAAACTCTACTTATCGTTTCACAC | F44: TC008263 | G44: TC008263-RA | H44: GLEAN_08263 | J44: aataaaaaa atgccgctg ccgcttaaa attttcgaa
A45: GACCAGTCATTCTTAGATAATGTTTGTAATGAAATTATCCATTTAGATAATCAAAAGTTG | F45: TC006281 | G45: TC006281-RA | J45: gtctcggac gtcgtcatc aaggaccca tccacagaa
A46: TATTATTACAAAGGGAATTACTCAATGTTTAAAAAAATGTACCAACAAAAACGCAAAGAA | F46: TC007640 | G46: TC007640-RA | H46: GLEAN_07640 | J46: gtcggggcg agaaacgag cgccggatt tgtgcagtg
A47: ATGATTAAAGAATACGAGAAGCAGGAAAAACGTTTGAAAGAGTTAAAGGCACACGGATCG | F47: TC009491 | G47: TC009491-RA | J47: aattgcaac aaaaacgcc ggttttgaa gtggtccac
A48: TCGAAAAAACAAGCCGAAAAGAAACAAAAAGAGGCTTTGACGCGAAAACAGGAGAAGAAC | F48: TC006253 | G48: TC006253-RA | J48: ggcctttta gacaagatt atgatgctg ttggaggtg
A49: AGAACGAAAATGCAGAAACAAGAGGACGAAACAGCCCCAACTGAACTTCTACAAAAACCG | F49: TC008407 | G49: TC008407-RA | H49: GLEAN_08407 | J49: ccctggaac ccgaataag acccccaaa gggtattat
A50: AAAGAATATTTCGTCAAATTTTCATTTCCGGAACCTCCGCCTCTACAACCCCCAATTTTG | F50: TC008190 | G50: TC008190-RA | H50: GLEAN_08190 | J50: ctgcaagcg tgtgaagat tcggctttt tttccaggc
A51: GGGCTTCATAACGTAACTTTTGCATATTCGGGCCAAAAACCCCTCTTCCGAAACACCGAC | F51: TC008671 | G51: TC008671-RA | J51: aggtgtgcc aaggtgatt tgtgacggg agcgaaatt
A52: TTCGGTATCGATATGAGCAGCAGAGTGGCAATAGTTGGTCCGAACGGAGTCGGAAAATCC | F52: TC008662 | G52: TC008662-RA | J52: gggaaaatc ggggttttg cacccgaat gttttgcat
A53: ACATTTTTGAAATTATTAACCGGTGATTTGGACCCGCAACAAGGGGAAGTCCGGAAAAAT | F53: TC006047 | G53: TC006047-RA | J53: aaatttgag ctaactaat ccttgctcg tgtgtcgag
A54: CATCGTTTGAGGATTGGTCGTTTTGATCAACATTCAGGTGAGCATTTAACGGCCGAAGAA | F54: TC010367 | G54: TC010367-RA | J54: attaatatc gagccgttt gtgtaggga taaggaata
A55: ACACCCGCTGAATATCTGATGCGATTGTTTGATCTGCCGTACGAAAAATCCCGAAAGCAA | F55: TC009191 | G55: TC009191-RA | J55: aatggaaat tgaaattaa ctgactttt tttaccctt
A56: TTGGGGACTTTTGGTCTAGCGAGTCATGCTCACACTATCAAAATGAAGGACTTGTCCGGG | F56: TC006679 | G56: TC006679-RA | J56: tccaccaaa ccatgtttt aatcaaata aaacatttc
A57: GGACAGAAAGCACGAGTGGCTTTAGCCGAATTGTGTCTTAACGCACCGGATGTTCTCATT | F57: TC007999 | G57: TC007999-RA | H57: GLEAN_07999 | J57: taacgtc
A58: TTGGATGAACCGACGAATAATTTAGATATTGAATCGATTGATGCACTAGCTGAGGCCATT | F58: TC005313 | G58: TC005313-RA
A59: AACGACTTCAGTGGAGGGGTTATTATAGTGAGCCACGACGAACGACTTATACGTGAAACT | F59: TC006514 | G59: TC006514-RA | J59: >TC033679 transcript1
A60: GATTGCGCCTTGTACGTAATAGAAGACCAGACCATAAACGAATTAGACGGCGACTTCGAC | F60: TC007510 | G60: TC007510-RA | H60: GLEAN_07510
A61: GACTACCGCAAAGAGCTCTTGGAGAGTCTGGGTGAAGTCATCAACAGCCCAAGTATTGCA | F61: TC011068 | G61: TC011068-RA | J61: aatttgaga ggtcctaaa ccatagttt tatttccac
A62: GCAAACGCTGCCATTGCTCAATAA | F62: TC009328 | G62: TC009328-RA | J62: tgtaatata cgcacacgg gacgatctc ttcccgttt
A63: >TC002933|TC002933-RA | F63: TC006188 | G63: TC006188-RA | J63: tagcaatta gtgcatttc cttttattt ttatttttt
A64: ATGACACAGTTTCTGCCACCGAACTTGCTCGCTTTATTCGCACCACGCGACCCCATTCCG | F64: TC015322 | G64: TC015322-RA | H64: GLEAN_15322 | J64: tagaatttt tgcttattt tgtttttgt ttttttttc
A65: TACCTGCCTCCGGTAGCAAAGCTACCCCATGAGAAGAAATCGAGGGGGTATCTGGGCGTT | F65: TC011725 | G65: TC011725-RA | J65: tcctttcac gtgtcccct accgcacta acttgtttt
A66: GGGGCGTTCCTCAAGGAGTTCGAGGACCCCAAAGACACTCCACCACCGACCAGGGTGGAA | F66: TC014785 | G66: TC014785-RA | J66: ctgttactt acttccttt tcctcgtcc tgaaattcc
A67: ACAAGGGAGGAGCGCATTGAGAGACGACGAAGGGAACGAGCGGAACAAGTTGCGTATAAA | F67: TC014109 | G67: TC014109-RA | J67: tcacacagc caaaggacg cacgaacat agagctgcg
A68: TTGGAGCAAGAGATCGCAGTCTGGGACCCCAATTCGGCCCCGAATATCACAGTGGACCCC | F68: TC015727 | G68: TC015727-RA | H68: GLEAN_15727 | J68: tgaacaatt catcctagc cgacggcgt atcgcaaac
A69: TTCAAAACGCTTTTTGTAGCTAGAATTAATTATGACACGTCGGAGTCGAAGTTGAGAAGA | F69: TC015014 | G69: TC015014-RA | H69: GLEAN_15014 | J69: tatgaccgc gttcaagcc caaaacatc ggcctccag
A70: GAATTCGAAGTGTATGGTCCGATCAAGAAGATTGTCTTGATTCACAATAGCGTCAATGGG | F70: TC014300 | G70: TC014300-RA | J70: tcccgcctc tggctcctc tgcatcatc actccgcac
A71: AAACCAAGGGGGTATGCTTTCATAGAATATGAACATGAAAGAGATATGCACTCTGCATAC | F71: TC013939 | G71: TC013939-RA | J71: tcctcaagg gccaatcac taaggtatt gcacaagag
A72: AAACATGCTGACGGAAAGAAAATTGACGGAAGACGGGTTTTAGTTGATGTGGAGAGAGCC | F72: TC014413 | G72: TC014413-RA | J72: caccctctt tgatccgga aaaagcatc gaaaatact
A73: CGTACCGTCAAGGGTTGGTTACCTCGGCGTTTAGGTGGTGGTCTTGGCGGGACCCGAAGA | F73: TC014931 | G73: TC014931-RA | H73: GLEAN_14931 | J73: atccttgtc ctcgatccc agtcggttg tggagtatt
A74: GGAGGTCCAGAGGTAAATATCAAACATTCAGGTCGCGAGGACAACGAGAGGGAGAGGGAA | F74: TC015935 | G74: TC015935-RA | J74: gttttcagt gcttttttc gagttgctc tatgtcttg
A75: AGGTACAGGTTAGAGCGCGAACGCGAAGAGAGGGGTGGTGGTAGGGAACGTGAAAGGGAG | F75: TC014730 | G75: TC014730-RA | J75: gtaatggta cgcttgtat acgtagtac agtagttgg
A76: CGCGATAGGGAAAGGGAACGTGGGGTGGCGTACGAAAGAAGACGCTCTAGGTCAAGGGAA | F76: TC030619 | G76: TC030619-RA | J76: ccaccagag ggtaaaggt aagtcggac ctcaggaga
A77: CGAAGAAGAAGAAGTCGCTCACGTTCGCCAAGACGAGAGAAAAGAAGACGCAGCAAGGAG | F77: TC012455 | G77: TC012455-RA | J77: tgaattttg tgaacgcga caacaacaa gggccgaag
A78: CGCGTTAGGGAAGAATTTGAGGAAACCTTTGACCGGCGGTCACGTGAGAAGGACAGGGGA | F78: TC011204 | G78: TC011204-RA | J78: cataaaaca aaatcgcct cacgttcat tcagcactc
A79: GATAGGGAACGTGACCGGGAAAGAGACCGCAAACGCAGACGTTCAAAATCCAGGGACAAA | F79: TC011120 | G79: TC011120-RA | H79: ROP | J79: gatgcttct tttttctgt tcgcaccat ctaaacgcg
A80: GACCGCGAACGCAAACGTGAGCGGCGAGAAAGACGTGAGCGAGAACGCGGTGAAAGACTT | F80: TC014294 | G80: TC014294-RA | J80: acgatcact attggatta tttcggaca cgctgtata
A81: GAATACATCAAAACTGATGATGGAGGGGAAGTCCGAATCAAAGAAGAACCCATTGATGAT | F81: TC013746 | G81: TC013746-RA | J81: tttctgaat gttggcatg tgctattgt ttagctcac
A82: TATCCAGAATACCCGCAATACCCTGCAGAAGCTTATGATCAGACTCGAGTCAAATATGAA | F82: TC016270 | G82: TC016270-RA | J82: gaacacttg gcggagttg atgcccata ttcgagcag
A83: GACGAGGATGAACAAAAATACGAACCAGACAATACAAACGGCAGTCGTCAGTATGACGAC | F83: TC013245 | G83: TC013245-RA | H83: FKH | J83: ctgagggcc aaaggagaa gtgggcaat gcgtaccct
A84: GAATATGAGGAGGGAGAAGCTTATTAA | F84: TC013003 | G84: TC013003-RA | J84: ttgcatgtc ggttctact gctggaccc accttacac
A85: >TC003405|TC003405-RA | F85: TC012723 | G85: TC012723-RA | J85: tgggctcct ctcaatatc aacaacact tgtcactgg
A86: ATGGGCCATCACGTGAACGGCTTAGAAATGGAAAAGAAGAATCCCAACGAAGAAGAGCCA | F86: TC011708 | G86: TC011708-RA | J86: gtaataata cacacagac actttgtgc atgtgcatg
A87: CCGCAAAGTGTGGAAAGTGTGGAATTGCTGCTTTTTCCACTAATTGGCGCAAATGTTGTA | F87: TC030579 | G87: TC030579-RA | J87: gtgtgtacg tctcttctc tcgtttttt ttgcaaaat
A88: AATAATCCATTGTTACCAGTTTATGTCCAAAAACGTGCCTCACCTGATTGGCATGCCATC | F88: TC030625 | G88: TC030625-RA | J88: catcattta tcgttaaat cgagtcgag tttcaatcg
A89: ATGTGTAAAGATTACCAAGTAGTCTTATCGGTTCGGTTCGTTGTCTTCCTGTTCAGTGAA | F89: TC030666 | G89: TC030666-RA | H89: GLEAN_15729-OG20814 | J89: taccgtttt tcttgtttt tataccagt cgctgttat
A90: ACTGATAAAAGTGACAACGAGCGTTCGGTCCCAACATTTCCCTCGAAAAACAACCGGCGG | F90: TC015321 | G90: TC015321-RA | H90: GLEAN_15321 | J90: cgggccgga aaaagacca ccacaaact tttgtacct
A91: AAAGTTAAAAACTGTGCTGTGCTCGTGTACGTGTCGGAGTTCCGCTATCGGCAAACACAA | F91: TC013571 | G91: TC013571-RA | J91: atcgcaagt accgatggt aggtatacc gcaggtaag
A92: ACCTATAATGAACGTTTGATTATGATTTGTATTTTCAAATCATTCCCCGATCGTTTAACG | F92: TC012381 | G92: TC012381-RA | J92: acgaataaa tcgctcatt acttttggt ctttctttc
A93: ATACTTTCGTCCCGAAAACGGAAGCGGCTCAACAACGTGACGAATGGGACCAGCAACAAC | F93: TC030708 | G93: TC030708-RA | J93: caaaatttc taaaaccgg cccaatttt tactaagat
A94: ACCAGATATACGGTCGTTTTCGACCAAGAGAACCTCAACAACACCGAAAAGAAAAAAACA | J94: cattttaac gttaccgga tgaggtaag acaggaaac
A95: GGATGGTTCGGCACGCGCCACTTTGTGACCTTCATGCTGTTCCTCGGAATGGCAAACGCC | J95: tgtaagtag cgttttgtt atgcaatca aggatcttc
A96: TATGTAATGAGGACCAACATGTCTATGGCCATCGTGGCAATGGTGAACCACACGGCAATC | J96: aatttacat tttttaatc acacacttg ttaacgtag
A97: GAAGCCTCACATTCGAACCACGACGAGCCGGTTGACACCGAATGCGGCGTGGATCTGCCC | J97: cgtcttgtc actgttatc taacacgaa gatcctttt
A98: CAGGCGAACAAATCGCACCAGGAAAACGACGGCGAATTTGTCTGGGAGACGGACATCCAG | J98: tttgtgggt gcacgactc gtatcaatt gttggccct
A99: GGCTACGTCCTCAGCTCCTTCTTCTACGGCTACGTCGTCACCCAGATCCCCTTCGGCATC | J99: taccaacaa ctggtactc ttccactca cccatcctt
A100: CTCTCCAAGCGCTACGGCAACATCTACTTCCTGGGCGTTGGCATGCTGATCAACTCCCTG | J100: actaaaaat tactgttta ggtgcgaga gcgttcagc
A101: TTCGGCCTCCTGGTGCCCGTCGCCGCCAACATGGGCATCTGGTGGCTGATAGCCGTGAGG | J101: aaggtcggt tccaatggg cagccttcc gcgcacttc
A102: TTCATTCAGGGCCTCGGTGAGGGCCCTATTGTCCCATGCACACACGCTCTTCTGGCAAAA | J102: caaatcctc cttatcagc ggggacccc cgactcgtt
A103: TGGATCCCTCCTAACGAGAGAAGTCGAATGGGTGCTTTCGTTTATGCAGGAGCGCAATTT | J103: atcagacaa cgaaagttc tgctttccg cacgcccag
A104: GGAACAGTCATTTCAATGCCGCTGAGTGGCCTTTTGTCGGCTTCGTCCGCCGGCTGGCCG | J104: aaaaccatc ttacaggtc aacgatgac cccaggagg
A105: TCCATTTTTTACGTTTTTGGGGCCGTTGGGACCGTCTGGTGCGTGGCCTTCCTGATCTTC | J105: gtctaggtc gaactcacg accggcgtc gcgaactgg
A106: GTCTACGAAGACCCGAGCACGAACCCCAAAATGAACATCGACGAGAAAAAATACATACAA | J106: cagcaggcc tggcagcaa acccccatc gagacatgg
A107: AAAGCCTTGGGGAACGTCAGCGGGGCACCTATTCCGCCAATCCCGTGGAAGTCGATCATC | J107: ttctaacct ctccctaga tagtacaga tgatggtac
A108: AAATCCCTGCCCTTCTGGGCCATTCTGCTGGCCCATATGGGCCATAACTACGGGTATGAG | J108: cccgtcgag gattccacg aaggacccc aacgtcaag
A109: ACCTTGATGACTGAGTTACCGACGTATATGAAACAAGTTCTACACTTCAGTATTAAAGAC | J109: tcgggtacc atcgacaac ttcttcttt gcggaggcc
A110: AATGGGTTTCTTTCGGCTCTACCTTACCTAGCCATGTGGTTGTTCTCGATCTTCATTAGT | J110: ccagaatgg caccgggtc ccggccgag gacacccac
A111: CACGTTGCTGATTGGTTGTTAACCAAACCGTGCTTCACACACACTATTGTGCGAAAGTTG | J111: ggggctcat ttcaccagc tagtccagc cggaaaatc
A112: ATCAACGGAATTGGCCAATATGGCCCTGCGATTGCGTTGGTGGCGGCGTCATTCACGGGC | J112: atcaggcat tccccgagc atcaagtat accaacact
A113: TGTGACCGATGGTTGACCGTGGCCATCCTCACCATCGGAGTGGGCCTGAACGGCGGTATC | J113: aacgtcagt taccacccc aaggagtac aagcaaacc
A114: TACTCTGGCTTCAAAGTCAACCACTTGGACATCTCCCCGCAATTCGCCGGGATCCTGATG | J114: acgacaagt gacaatcgg taacgctcc gacgctaag
A115: GCCTTCACCAACTGTTTGGCAAATCTTGCCGGATTGTTAGCCCCAATCTACGCTGGAAAC | J115: gacggcggc taggacacg aacaccatc cgggtctaa
A116: GTAGTTTTGGGAACGCCTAGTCAAGCGAAATGGCGCGTCGTCTTCGTCACGGCAGCGGGT | J116: cacacccgt tccgcccgg gcaacaaac cgccgcttc
A117: GTTTATGCTGCGTGTTGCACGTTCTATATTCTGTTCGGCTCAGGGGAGCGCCAGTCCTGG | J117: ccgccttct acgaaaacc atcgggagc gtccgacac
A118: GATCAGCAGGAGGATCCCGACAAGAAGAAGGAGGCAGACAGTGACCCGGAGATTGTGACA | J118: gccaacagg gcaagcgaa gaaaacaac aaaggaacg
A119: ACACGTGCTTGA | J119: ggagccttt tagacttta attaattat gagattaac
A120: >TC000165|TC000165-RA | J120: ttattccaa gattaacga atgactgac agtagggtt
A121: ATGTTGGATCTTTTTAGGGCTTCCCTCTTGGTAATATTGCTCGTATCGGTGGAAGCTCGA | J121: attgtgttt ttgtttaaa ttgttcata tttttgtat
A122: ACTCGCCGTAGCATAGATTTAATCGCAGCTCACAGTTTAATCTCCGACACACGGCTTCCT | J122: aaaagattt atttatgaa gcggccccg gaaacgcca
A123: CGTGAAGTCACCCCAAACTTTTACGACTTACAACTCGAACCGCGACCAAATGAAGGTACT | J123: gttccggag ttgaattat tgtgtgagt cacaatacg
A124: TTTGAAGGCCGAGTTCGAATCAATGTCACTTGGCAAGAACCAACTGACAAAATTACGCTA | J124: taactgcgt taagttgcc ataaattgc aaaattatt
A125: CATGCACACGAAGATTTGGACATTTTTAAAATCATCGTCACACAATTTGCACCAGATGAT | J125: ttcgtgagg tgatttttg tattatttt ttgggtatc
A126: GAAACCGAGAAAGCATCATCGACTCCTCTACCACCAACTGAAGTGAGGGTAATGAGGATC | J126: agtgggacc attttgtgg cgatttgct ttgtttagt
A127: GAAAGAGTGCCAAAAAAACCGCTCTATATCATCCATTTAGAGAAAACTGCAAATAGAGGG | J127: ggacgttta tttgattta tcctactaa cttacttat
A128: ACCCAGTGCATCGTGGACCTTACTTTCAAGGGAAATATTAGTAATGACACAAGTGAGGGC | J128: tttatcctt aataattta gatactaaa gcgccgcta
A129: ATTTTCAGGAGTAGTTATGTGGATCCAGAGACCAAAAACCGAAAGTGGTTTGTTGCGACA | J129: atactcgta gttgtgtga ttaccagaa acgcctttc
A130: CATTTAAGACCAAATTTGGCACGAAAAGTGTTTCCTTGTTTCGACGAACCCGCTTATAAA | J130: ttttatatc gccagtatg aaagaacgg atcagtcaa
A131: GTCCCTTTTGTGATTACAGTAGCAAGGCAAAAAAATATGGTAGCTCTCTCGAACATGCCT | J131: tattgtaac tattactat atttaattt gttatgtat
A132: TTGAAAAATAGCGAACAAATGAAAGAGAAAAGTGATTGGGTTTGGGATCAGTTCCAGCAA | J132: taaaacaat aaactaaat tttttaag
A133: ACACCTCCAATATCCACATTTTCAGTTGGTATTGTCGTATCCGAATTCAGCAACACTGAC
A134: TATAACACAACTGACGAAGACAACAATTGGAACTACGAAATTCGGGTCTGGGCCAGGCCT | J134: >TC031473 transcript1
A135: GACTTTATCACAGCTTTGGCCAATGTCACTGATAAGATTCGAAAGTCGGTTAAAATCCTA
A136: GAAGAGTTCTGGGGGTGTCCTTATCCGCTCCCAAAACTCGATGTTTTAGCCCTTCCGAAT | J136: tgtcctttc ttacaggaa ttttcgtat ggtttgtgg
A137: TATCAAGCGACAAGGCCTGCCGATAACTGGGGTTTACTCCTTTTCAAGGAAAGTGAGTTA | J137: gaaaattat tttcgagta aatcgcttc acttgggtc
A138: AGTGGTCGTGGCTCTTGGCACATTTCGCAAGAATTGACCTATCAGTGGTTAGGCTCTCTT | J138: gtttcggtg cccccattg ctctgctta acaatcagt
A139: GCAACGCCTTTTTGGTGGAGTGATGCTCATATTAATAATGCGCTGGTTAGATATGTGACA | J139: gtgaatctt tcgcgacaa tttccaatt tagcgcgta
A140: GCCTATACAACCCTCAAAATGGAAACGAACGAATCGTTCAACAATTGGCCAATGACAATG | J140: agtttgcag aattgtggg agtgcgtga atcacgcat
A141: TTATACTCAATTTATTACGAGTTCAGTAAACGTTACCCACATGGCAAAAGTACTGCAATC | J141: tccggcatg cgcattcgg cccgtggtc tctttgttc
A142: AAACAAGACTCAACATCGGCCAAAACTGAGCTAGTTTTCCGCATGTTAAACTACACCCTT | J142: gttcgttgt gcgccttca gccagcgtt gtgtctaaa
A143: GGCGAACGCACATTCAAACACGGATTGCAAAAATTCATGGCTGATCGACAGTACAAGACG | J143: tccaagtga aaaaaccgg ccaattgac attgctata
A144: TTCTTTGGTGATGATATTTGGAACGCTTTGACCGAACAAGCAAAATTCGACAATACTTTA | J144: tggttatca gcgcgcaaa ttcctcgat tgacccgca
A145: AACGAATCAACAGTCAACGCAATTGCAGCTTCGTGGATCACAAAAGACCGACTACCTGTT | J145: actaatcaa actgtgtcc tttcgtgtc cgatgtcta
A146: GTAAACGTTACGCGAAACTATAAAGAAAAATCGGCGAAAATCAGCCAAAGGGTTTACTTG | J146: gtgctgaaa tcgccgaag gctccgtcg atcccccaa
A147: AGAGAGCGTCCACATGACGTTCCCGATAAGGAAAAATTTGTTTGGTGGATTCCTGTGATT | J147: ctaagaagc ggaagcttg actcgtgcc cgatttcaa
A148: TTAATCCGTCAAGACAGTCTCAATTTTTCCAACACGAAGCCAATTGTTTGGATGAAAAAA | J148: ccgacatgg cgaacaacg gcgcttccg gatcgtctc
A149: GAGAAAGAAATCACCCTTGAAAATCTACCAGAGGCAAACCAGTTTATTATAGTTAATCCG | J149: agcaggaca tcgacgagg gtctgtact cgcgccagc
A150: GAGGAAATCGGTCCGTTTCCGGTCAATTACGACGTGCAAAATTGGAACATGTTGGCACAG | J150: tctacgtcc tggggcacg acgccatgc ggcgcatgg
A151: TTTTTGTGTTCCGAAAACCGGGCGAAAATCCCGGTGAATACCCGGGCTAAACTTTTACAC | J151: cctccagcg acgtgctgg tctcaggcc tgggcgggc
A152: GATGCTTGGAATTTGGCCTATGCTGGAGACTTGAGCTTTGCTACAGCTTTAAACATGACA | J152: tcggcgtcg aggtggcca agaacgtca tcctcggcg
A153: CTGTTTCTCAAAAATGAAAGAGAATATTTGGCTTGGGACCCAGTTTTTACTCTCATTGAT | J153: gggtcaagt ccgtcacgt tgcatgacg aagccgttt
A154: CACATTGGACGACATATCGACAGTTCCGCAGTTCATAAAAAATTCCAAACTTATGTGAGA | J154: gcagcgtcg ccgacctct cgtcgcagt tctacttca
A155: TTGTTGTTAACTCCATTGTACGAAGAGTTGGGTGAGGAGCCTCAAGAGGGTGAAAGTGAA | J155: ccgaagccg acgtgggca agaacaggg ccgaggtct
A156: GGTAAGGCACACTTGAGGAGCTCCTCAAAAGTGTTCTTGTGCCAAGCTGGGTATAAACCA | J156: gctgcaagc agctggcgg agctcaaca cctacgtcc
A157: TGCATTGAGGAAGCACAAGCTGCCTTCAGGAAGTGGATGGAGAGTGAAAACCCAGATGAA | J157: ccacgaagg cctacacgg gccccctga cgccggact
A158: GGCAATCCTGTTTCGAATCAGTACATTTGTCCAGTGTTTAAATGGGGCACTAGTGAGGAA | J158: tcatccgca agttccgag tcgttgtcc tgaccaata
A159: TGGGAGTTTGGTTTGCAACGTGTTATTAAATTCCCAGCCAACAGGAAGCAAAACGAGCGC | J159: gttgtctcg ctgagcaga tgcaaatca gcgaaatca
A160: ACTTATTTGCTCAAAACTTTAGCAGGATGTCCTAATGAAGCTGAGAAAATTGAAAGATTG | J160: cacatgcca gtaacattg cgctcattg tggccgata
A161: CTCAATATTACGATTTTGGAGCAAAACGGAAACTTTACGGACAACGATATTTATCTCATT | J161: cgagggggc tctttgccc aagtgttct gtgatttcg
A162: TTTAGTATGTTGACAGGAAGTGCAAATGGCTATACCACACTATTCAATTTCTTGAAGAAG | J162: gggatgctt tcacggtcg ttgacacca acggggagt
A163: AATTGGGATACGATTAAAGAGAGATTCGAGGGCAAACTTCACTTGTGGAACAGTCTGATA | J163: cgccggtct cggcgatga tcgctgata tttccaccg
A164: ACATCAGCAACGACAGTTTTCAAAACACAGGAAGGTCTTGATATGGTTTCGGAATTGTAC | J164: ataaagaag gcattgtga cctgcattg acgacaccc
A165: GTTGAACGACAAACCGAATTCGGAACAGCGGACTTTGTCATCGAAAAGGCCTTAAAGAAC | J165: gccatggca tggaagacg gcgaccacg tcacatttt
A166: ATCAAAGAAGAGACGAAATGGAGCAACGATAACCTCCCTGTTATCGAAAAATGGTTAGAC | J166: ccgaagtcc aaggaatga ccgaactga acaattgca
A167: GAGTATTTAGCCAACAACTCGAAATAA | J167: agccgatta aaatcaaag tgttaggcc cttacacgt
A168: >TC000040|TC000040-RA | J168: tcagcatcg gcgatacga ccaactttt cgaaatacg
A169: ATGGCAGCGAATGTTGACGAAGAACAATCACTGCGCGAATGTGAGGCTTATGTTCAAACT | J169: agcgtggcg gtattgcca ctcaagtga aaatgccca
A170: CATAATATCCAACAAATTCTGAAAGATTGTATTGTTCAATTATGTGTAAACCGTCCAGCC | J170: aaaccttgt cgtttaaat cactcaaag actcgctaa
A171: AATCCCATTGCGTTTTTACGGGAACATTTTCAAAAATTGGAACGGGAGCAAGCTCTAGAT | J171: aatcgcccg aatttttga tgaccgatt tcgcgaaat
A172: GCCAAACAACAAGTGACTTCACCGGAAGACACCGAAGACCTCTCCCCCTTGCCCACCCAC | J172: tcgatcatc cacagcagc tccacgtgg cttttcaag
A173: ACCCAGCAACCTGTTCGTCGCCGTGGCGGCATCTCCGCCGAGCCGGTGTCTGAGGAAGAT | J173: cgttgcaca aatacgtcg aaaagcacg gccgtgtac
A174: GCCACCAGTTATGTCAAAAAAGTCGTCCCCAAGGACTACAAAACGATGGCAGCATTGTCG | J174: caaaaccgt ggaacaacg aagacgcat ccgaatttc
A175: AAAGCCATCGCTAAAAACGTCCTCTTTTCACATCTCGACGAAAACGAACGTTCGGACATT | J175: tgtccattg ctaaatctt tggccgtgg acggcggaa
A176: TTCGATGCCATGTTTCCAGTGACATGTCTACCGGGCGAAGCCATTATCCAGCAAGGTGAC | J176: acgataccg aagtgaaca ctaacttgt tagaaacgt
A177: GAAGGCGATAATTTCTACGTCATCGACCAAGGCGAAGTCGAGGTGTACGTTAATAACGAA | J177: ttgcgaaag tgtgcgcgg gtgatttga atccgatta
A178: CTAGTGACCACTATAGGCGATGGTGGCAGTTTCGGCGAACTTGCCCTCATTTATGGTACG | J178: atgcgacta tcggtggta tcgtggcgc aggaagtta
A179: CCACGTGCGGCAACGGTCAAAGCGAAAACCGATGTTAAACTTTGGGGGATTGACCGAGAT | J179: tgaaagctt gttcgggga aatttcacc cgatttatc
A180: TCGTACAGGAGGATTCTGATGGGTTCGACGATACGTAAGCGCAAAATGTACGAAGAGTTT | J180: agtggttgt atttcgatg cgattgaat gtttgccca
A181: TTGTCAAGAGTGTCAATATTGGAGAATCTTGACAAGTGGGAGCGTCTCACAGTGGCTGAT | J181: cggaagctg gggaaatta ccgaagagt cggcggcac
A182: GCACTAGAACCGGTGGGTTTTGAAGATGGTGAGACGATTGTGAGACAGGGGGAGCCAGGA | J182: cgaaaggca cacgctatg atggacaaa ttgcggtct
A183: GACGATTTTTATATCATCGTCGAAGGTACAGCGATTGTTAAACAGAACAGAGCGGAAGGG | J183: tcggaagcg aattccaga agaaattag gcggtttga
A184: GAAGAACCGACGGAAGTTGGGAGATTGGGACCAAGCGATTATTTCGGCGAAATTGCCCTT | J184: aatatttcg tagtaggtg ctggagcga tcggttgcg
A185: TTGCTGGATAGGCCACGAGCCGCCACTGTTGTCGCTTGTGGACCTTTGAAATGCGTCAAA | J185: aattactta aaaatttcg ctatgatgg gaattggtg
A186: CTAGATAGAGCAAGGTTTGAGCGAGTCCTGGGCCTGTGTGCGGACATTTTGAAGAGGAAT | J186: gtgaaggtg gacaaatca ccgtcactg atatggatc
A187: ATCACACAGTATAACAGCTTCGTGTCACTTTCGGTTTAA | J187: ttattgaaa aatctaatc tcaatcgac agtttttgt
A188: >TC004683|TC004683-RA | J188: tcagaccac atgatgttc agcgtccca aatctggaa
A189: ATGGCACCGCCCCCTGTTGTAACAGGGCTGAGCCCTAACGAGGGGCTTCCAGGGACTAGG | J189: cggcagcaa aggtgatca agaaaatga acccgagca
A190: ATTACAATACGAGGGGAGAATTTCGGGTCAAAACCCACCGATTTGATAGGTTTGTCAATT | J190: taaacatag tcgcccatg aaaatcgcg tgggccccg
A191: TGCGGCTTTGATTGTCTTTTGTCGGCCGAGTGGAAATCCCCCAATAAAATAATCGCGATT | J191: agtctgaaa acatgtacg atgacactt tcttcgagt
A192: TCGGGGCCCGTGAAGGGCAAAGGTGATGTGATAGTGACGACAAGACTGGGGGGCGTAGGC | J192: cgttagacg gcgtagcta acgctttag ataacgttg
A193: ACTTGTAACGTCACATTTAAAGGGTACCACGAGACCATCGGTCCAATGAAAGAGAGTGCG | J193: acgctcgta tctacatgg accgtcgat gtgtctatt
A194: GTTTGGGTAGAAGAAACCACCCCCTTGTTTGTATGGGGGCGCCACTCCTTGTCCCCCAGT | J194: accgaaaac ctctactag aatccggaa ccttgggta
A195: AGTTACCAACAGGAGGACCCGTTAGGTCTCTCCGTTGAAGGCAATGACAAAAAATTCCCC | J195: caaaaggca acacccagg tcgtagtgc ctttcctca
A196: GAAGATGATTTAATGACATACTTTCCCGATAAATCGGGCGACATTGCCTCTGGAAATTTT | J196: ccgaatcct acagttcgt cacaggacc ctcccgaga
A197: TCACCAGGGTGGTTCCTTCTGGAAAATCATCACGCAACGTCGTTCAATGATCTACAGGCC | J197: agagcatcc cgatttgta cccttaaaa atttcccca
A198: GGGTTGAATTTTTTGAGGCGCAAGGTGGAAGGGCAGAAAGAGGGCCAATTGTCGTTTTTG | J198: acgccatcg aacacactc tccaatggg ctcgtgata
A199: AAGGCAAATATTGGCTCGGTTATGGACCAAATTGACACTCTTGTCAATTTAAAGGAGAAA | J199: atttcgaag gccttttca gacagagtg ctgaaaacg
A200: ATTGAGGGCGATGTCGCCAAATTCGGGACCGAGCCAACGCTCAAGCTCGAAAAATCAATA | J200: catcgcaat atctcaccg atcctgaat ttttggaac
... 2850 more rows

Sheet Tabelle2
A1: Top 40 RNAi target genes
A2: Symbol | B2: iB | C2: Tc gene | D2: Dm gene | E2: Dm gene name
A3: control | B3: iB_05139 | C3: TC011976 | D3: CG3331 | E3: ebony
A4: L2 | B4: iB_00004 | C4: TC000040 | D4: CG42341 | E4: Pka-R1
A5: L3 | B5: iB_00011 | C5: TC000069 | D5: CG4097 | E5: Prosβ6
A6: L5 | B6: iB_00029 | C6: TC000161 | D6: CG6202 | E6: Surf4
A7: L7 | B7: iB_00053 | C7: TC000258 | D7: CG4904 | E7: Prosα6
A8: L9 | B8: iB_00141 | C8: TC000614 | D8: CG18495 | E8: Prosα1
A9: L10 | B9: iB_00322 | C9: TC002003 | D9: CG5848 | E9: cact
A10: L11 | B10: iB_00404 | C10: TC002574 | D10: CG4659 | E10: Srp54k
A11: L14 | B11: iB_00472 | C11: TC002933 | D11: CG8749 | E11: snRNP-U1-70K
A12: L17 | B12: iB_00606 | C12: TC003747 | D12: CG2063 | E12: -
A13: L25 | B13: iB_00950 | C13: TC005869 | D13: CG18174 | E13: Rpn11
A14: L27 | B14: iB_01026 | C14: TC006281 | D14: CG17332 | E14: VhaSFD
A15: L32 | B15: iB_01280 | C15: TC007891 | D15: CG4157 | E15: Rpn12
A16: L37 | B16: iB_01493 | C16: TC009191 | D16: CG1250 | E16: Sec23
A17: L39 | B17: iB_01562 | C17: TC009491 | D17: CG2910 | E17: nito
A18: L42 | B18: iB_01709 | C18: TC010557 | D18: CG9539 | E18: Sec61α
A19: L43 | B19: iB_01800 | C19: TC011082 | D19: CG2674 | E19: Sam-S
A20: L44 | B20: iB_01807 | C20: TC011120 | D20: CG15811 | E20: Rop
A21: L47 | B21: iB_02161 | C21: TC013571 | D21: CG6625 | E21: alpha snap
A22: L50 | B22: iB_01793 | C22: TC011058 | D22: CG18102 | E22: shi
A23: L52 | B23: iB_01857 | C23: TC031473 | D23: CG1782 | E23: Uba1
A24: L54 | B24: iB_02377 | C24: TC015014 | D24: CG9012 | E24: Chc
A25: L55 | B25: iB_02456 | C25: TC015321 | D25: CG6593 | E25: pp1alpha-96a
A26: L56 | B26: iB_02457 | C26: TC015322 | D26: CG11154 | E26: ATPsyn-β
A27: L58 | B27: iB_02531 | C27: TC015935 | D27: CG13281 | E27: Cas
A28: L61 | B28: iB_02601 | C28: TC030625 | D28: CG12323 | E28: Prosβ5
A29: L62 | B29: iB_02611 | C29: TC030666 | D29: CG11522 | E29: RpL6
A30: L63 | B30: iB_02644 | C30: TC000801 | D30: CG2503 | E30: atms
A31: L64 | B31: iB_02646 | C31: TC030619 | D31: CG8118 | E31: mam
A32: L67 | B32: iB_02771 | C32: TC008263 | D32: CG10228 | E32: inr-a
A33: L76 | B33: iB_03754 | C33: TC004425 | D33: CG4147 | E33: hsc70-3
A34: L79 | B34: iB_04099 | C34: TC006253 | D34: CG8566 | E34: unc-104
A35: L80 | B35: iB_04125 | C35: TC006375 | D35: CG5378 | E35: Rpn7
A36: L82 | B36: iB_04192 | C36: TC006679 | D36: CG31992 | E36: gw
A37: L84 | B37: iB_04411 | C37: TC007999 | D37: CG16916 | E37: Rpt3
A38: L88 | B38: iB_05303 | C38: TC012723 | D38: CG12104 | E38: -
A39: L90 | B39: iB_05404 | C39: TC013245 | D39: CG10002 | E39: fkh
A40: L93 | B40: iB_05604 | C40: TC014294 | D40: CG1828 | E40: dre4
A41: L94 | B41: iB_05628 | C41: TC014413 | D41: CG7269 | E41: Hel25E
A42: L95 | B42: iB_05683 | C42: TC014730 | D42: CG12245 | E42: gcm
A43: L100 | B43: iB_06050 | C43: TC030708 | D43: CG2252 | E43: fs(1)h

Sheet Tabelle3
A1: Injection of non-overlapping dsRNA fragments | G1: The lethality of the top 40 RNAi target genes was confirmed by repeating the experiment using non-overlapping dsRNA fragments with a total dsRNA concentration of 1 µg/µl. DsRNA injections were done into 10 Tribolium larvae, respectively, and the survival animals were counted every second day. Tc-ebony was used as negative control.
A2: Tc-ebony | B2: d2 | C2: d4 | D2: d6 | E2: d8 | F2: d10
A3: 1000ng/µl | B3: 10 | C3: 10 | D3: 9 | E3: 9 | F3: 9
A4: L2 | B4: d2 | C4: d4 | D4: d6 | E4: d8 | F4: d10
A5: L2_2 1000ng/µl | B5: 6 | C5: 2 | D5: 2 | E5: 0 | F5: 0
A6: L3 | B6: d2 | C6: d4 | D6: d6 | E6: d8 | F6: d10
A7: L3_2 1000ng/µl | B7: 9 | C7: 4 | D7: 0 | E7: 0 | F7: 0
A8: L5 | B8: d2 | C8: d4 | D8: d6 | E8: d8 | F8: d10
A9: L5_2 1000ng/µl | B9: 8 | C9: 0 | D9: 0 | E9: 0 | F9: 0
A10: L7 | B10: d2 | C10: d4 | D10: d6 | E10: d8 | F10: d10
A11: L7_2 1000ng/µl | B11: 9 | C11: 6 | D11: 0 | E11: 0 | F11: 0
A12: L9 | B12: d2 | C12: d4 | D12: d6 | E12: d8 | F12: d10
A13: L9_2 1000ng/µl | B13: 7 | C13: 6 | D13: 0 | E13: 0 | F13: 0
A14: L10 | B14: d2 | C14: d4 | D14: d6 | E14: d8 | F14: d10
A15: L10_2 1000ng/µl | B15: 6 | C15: 0 | D15: 0 | E15: 0 | F15: 0
A16: L11 | B16: d2 | C16: d4 | D16: d6 | E16: d8 | F16: d10
A17: L11_2 1000ng/µl | B17: 10 | C17: 1 | D17: 0 | E17: 0 | F17: 0
A18: L14 | B18: d2 | C18: d4 | D18: d6 | E18: d8 | F18: d10
A19: L14_2 1000ng/µl | B19: 6 | C19: 5 | D19: 3 | E19: 0 | F19: 0
A20: L17 | B20: d2 | C20: d4 | D20: d6 | E20: d8 | F20: d10
A21: L17_2 1000ng/µl | B21: 7 | C21: 3 | D21: 2 | E21: 0 | F21: 0
A22: L25 | B22: d2 | C22: d4 | D22: d6 | E22: d8 | F22: d10
A23: L25_2 1000ng/µl | B23: 8 | C23: 5 | D23: 0 | E23: 0 | F23: 0
A24: L27 | B24: d2 | C24: d4 | D24: d6 | E24: d8 | F24: d10
A25: L27_2 1000ng/µl | B25: 10 | C25: 5 | D25: 0 | E25: 0 | F25: 0
A26: L30 | B26: d2 | C26: d4 | D26: d6 | E26: d8 | F26: d10
A27: L30_2 1000ng/µl | B27: 7 | C27: 4 | D27: 2 | E27: 0 | F27: 0
A28: L32 | B28: d2 | C28: d4 | D28: d6 | E28: d8 | F28: d10
A29: L32_2 1000ng/µl | B29: 7 | C29: 4 | D29: 4 | E29: 0 | F29: 0
A30: L37 | B30: d2 | C30: d4 | D30: d6 | E30: d8 | F30: d10
A31: L37_2 1000ng/µl | B31: 9 | C31: 6 | D31: 1 | E31: 0 | F31: 0
A32: L39 | B32: d2 | C32: d4 | D32: d6 | E32: d8 | F32: d10
A33: L39_2 1000ng/µl | B33: 10 | C33: 4 | D33: 2 | E33: 0 | F33: 0
A34: L42 | B34: d2 | C34: d4 | D34: d6 | E34: d8 | F34: d10
A35: L42_2 1000ng/µl | B35: 7 | C35: 4 | D35: 1 | E35: 0 | F35: 0
A36: L43 | B36: d2 | C36: d4 | D36: d6 | E36: d8 | F36: d10
A37: L43_2 1000ng/µl | B37: 10 | C37: 7 | D37: 2 | E37: 0 | F37: 0
A38: L44 | B38: d2 | C38: d4 | D38: d6 | E38: d8 | F38: d10
A39: L44_2 1000ng/µl | B39: 7 | C39: 1 | D39: 0 | E39: 0 | F39: 0
A40: L47 | B40: d2 | C40: d4 | D40: d6 | E40: d8 | F40: d10
A41: L47_2 1000ng/µl | B41: 10 | C41: 2 | D41: 0 | E41: 0 | F41: 0
A42: L50 | B42: d2 | C42: d4 | D42: d6 | E42: d8 | F42: d10
A43: L50_2 1000ng/µl | B43: 10 | C43: 2 | D43: 0 | E43: 0 | F43: 0
A44: L52 | B44: d2 | C44: d4 | D44: d6 | E44: d8 | F44: d10
A45: L52_2 1000ng/µl | B45: 8 | C45: 4 | D45: 0 | E45: 0 | F45: 0
A46: L54 | B46: d2 | C46: d4 | D46: d6 | E46: d8 | F46: d10
A47: L54_2 1000ng/µl | B47: 9 | C47: 3 | D47: 0 | E47: 0 | F47: 0
A48: L55 | B48: d2 | C48: d4 | D48: d6 | E48: d8 | F48: d10
A49: L55_2 1000ng/µl | B49: 10 | C49: 4 | D49: 0 | E49: 0 | F49: 0
A50: L56 | B50: d2 | C50: d4 | D50: d6 | E50: d8 | F50: d10
A51: L56_2 1000ng/µl | B51: 10 | C51: 3 | D51: 0 | E51: 0 | F51: 0
A52: L58 | B52: d2 | C52: d4 | D52: d6 | E52: d8 | F52: d10
A53: L58_2 1000ng/µl | B53: 10 | C53: 6 | D53: 5 | E53: 0 | F53: 0
A54: L61 | B54: d2 | C54: d4 | D54: d6 | E54: d8 | F54: d10
A55: L61_2 1000ng/µl | B55: 10 | C55: 3 | D55: 0 | E55: 0 | F55: 0
A56: L61_3 1000ng/µl | B56: 9 | C56: 2 | D56: 0 | E56: 0 | F56: 0
A57: L62 | B57: d2 | C57: d4 | D57: d6 | E57: d8 | F57: d10
A58: L62_2 1000ng/µl | B58: 9 | C58: 3 | D58: 1 | E58: 0 | F58: 0
A59: L62_3 1000ng/µl | B59: 10 | C59: 3 | D59: 0 | E59: 0 | F59: 0
A60: L63 | B60: d2 | C60: d4 | D60: d6 | E60: d8 | F60: d10
A61: L63_2 1000ng/µl | B61: 10 | C61: 9 | D61: 5 | E61: 0 | F61: 0
A62: L64 | B62: d2 | C62: d4 | D62: d6 | E62: d8 | F62: d10
A63: L64_2 1000ng/µl | B63: 10 | C63: 9 | D63: 8 | E63: 0 | F63: 0
A64: L67 | B64: d2 | C64: d4 | D64: d6 | E64: d8 | F64: d10
A65: L67_2 1000ng/µl | B65: 8 | C65: 0 | D65: 0 | E65: 0 | F65: 0
A66: L76 | B66: d2 | C66: d4 | D66: d6 | E66: d8 | F66: d10
A67: L76_2 1000ng/µl | B67: 10 | C67: 5 | D67: 0 | E67: 0 | F67: 0
A68: L79 | B68: d2 | C68: d4 | D68: d6 | E68: d8 | F68: d10
A69: L79_2 1000ng/µl | B69: 10 | C69: 2 | D69: 0 | E69: 0 | F69: 0
A70: L80 | B70: d2 | C70: d4 | D70: d6 | E70: d8 | F70: d10
A71: L80_2 1000ng/µl | B71: 10 | C71: 0 | D71: 0 | E71: 0 | F71: 0
A72: L82 | B72: d2 | C72: d4 | D72: d6 | E72: d8 | F72: d10
A73: L82_2 1000ng/µl | B73: 10 | C73: 1 | D73: 0 | E73: 0 | F73: 0
A74: L84 | B74: d2 | C74: d4 | D74: d6 | E74: d8 | F74: d10
A75: L84_2 1000ng/µl | B75: 10 | C75: 1 | D75: 0 | E75: 0 | F75: 0
A76: L88 | B76: d2 | C76: d4 | D76: d6 | E76: d8 | F76: d10
A77: L88_2 1000ng/µl | B77: 10 | C77: 9 | D77: 5 | E77: 2 | F77: 0
A78: L90 | B78: d2 | C78: d4 | D78: d6 | E78: d8 | F78: d10
A79: L90_2 1000ng/µl | B79: 10 | C79: 6 | D79: 1 | E79: 0 | F79: 0
A80: L90_3 1000ng/µl | B80: 10 | C80: 7 | D80: 0 | E80: 0 | F80: 0
A81: L93 | B81: d2 | C81: d4 | D81: d6 | E81: d8 | F81: d10
A82: L93_2 1000ng/µl | B82: 7 | C82: 1 | D82: 0 | E82: 0 | F82: 0
A83: L94 | B83: d2 | C83: d4 | D83: d6 | E83: d8 | F83: d10
A84: L94_2 1000ng/µl | B84: 10 | C84: 1 | D84: 0 | E84: 0 | F84: 0
A85: L95 | B85: d2 | C85: d4 | D85: d6 | E85: d8 | F85: d10
A86: L95_2 1000ng/µl | B86: 10 | C86: 0 | D86: 0 | E86: 0 | F86: 0
A87: L100 | B87: d2 | C87: d4 | D87: d6 | E87: d8 | F87: d10
A88: L100_2 1000ng/µl | B88: 10 | C88: 5 | D88: 0 | E88: 0 | F88: 0

Sheet Tabelle4
A1: Single and double RNAi treatments with a total dsRNA concentration of 0,5 ng/µl | G1: Single and double RNAi treatments were performed in 10 Tribolium larvae, respectively, and the number of surviving animals at different days post injection was documented. For every target gene, 10 different pairwise combinations were injected with a total dsRNA concentration of 0,5ng/µl and compared to the single injections (0,5ng/ul total concentration).
B2: d2 | C2: d4 | D2: d6 | E2: d8 | F2: d10
A3: L11 | B3: 9 | C3: 9 | D3: 7 | E3: 7 | F3: 5
A4: L11+10 | B4: 10 | C4: 8 | D4: 8 | E4: 6 | F4: 2
A5: L11+44 | B5: 10 | C5: 10 | D5: 9 | E5: 8 | F5: 4
A6: L11+47 | B6: 10 | C6: 8 | D6: 8 | E6: 6 | F6: 3
A7: L11+50 | B7: 10 | C7: 9 | D7: 5 | E7: 2 | F7: 2
A8: L11+55 | B8: 10 | C8: 10 | D8: 10 | E8: 9 | F8: 8
A9: L11+67 | B9: 10 | C9: 7 | D9: 5 | E9: 4 | F9: 2
A10: L11+76 | B10: 10 | C10: 10 | D10: 10 | E10: 9 | F10: 2
A11: L11+80 | B11: 10 | C11: 9 | D11: 8 | E11: 7 | F11: 5
A12: L11+82 | B12: 10 | C12: 10 | D12: 9 | E12: 4 | F12: 3
A13: L11+84 | B13: 10 | C13: 10 | D13: 10 | E13: 7 | F13: 2
A14: L50 | B14: 10 | C14: 9 | D14: 9 | E14: 7 | F14: 5
A15: L50+10 | B15: 10 | C15: 8 | D15: 6 | E15: 5 | F15: 5
A16: L50+44 | B16: 10 | C16: 10 | D16: 10 | E16: 10 | F16: 3
A17: L50+47 | B17: 10 | C17: 8 | D17: 5 | E17: 2 | F17: 0
A18: L50+55 | B18: 8 | C18: 7 | D18: 7 | E18: 4 | F18: 3
A19: L50+67 | B19: 10 | C19: 9 | D19: 8 | E19: 6 | F19: 3
A20: L50+76 | B20: 10 | C20: 10 | D20: 7 | E20: 5 | F20: 3
A21: L50+80 | B21: 9 | C21: 9 | D21: 9 | E21: 7 | F21: 5
A22: L50+82 | B22: 10 | C22: 10 | D22: 6 | E22: 6 | F22: 4
A23: L50+84 | B23: 8 | C23: 8 | D23: 7 | E23: 5 | F23: 3
A24: L67 | B24: 10 | C24: 8 | D24: 6 | E24: 4 | F24: 0
A25: L67+10 | B25: 10 | C25: 10 | D25: 5 | E25: 5 | F25: 4
A26: L67+44 | B26: 10 | C26: 9 | D26: 9 | E26: 9 | F26: 4
A27: L67+47 | B27: 10 | C27: 8 | D27: 7 | E27: 3 | F27: 1
A28: L67+55 | B28: 10 | C28: 9 | D28: 5 | E28: 4 | F28: 3
A29: L67+76 | B29: 10 | C29: 6 | D29: 5 | E29: 3 | F29: 1
A30: L67+80 | B30: 9 | C30: 9 | D30: 9 | E30: 9 | F30: 7
A31: L67+82 | B31: 10 | C31: 8 | D31: 6 | E31: 2 | F31: 0
A32: L67+84 | B32: 10 | C32: 8 | D32: 7 | E32: 5 | F32: 3
A33: L76 | B33: 10 | C33: 9 | D33: 5 | E33: 1 | F33: 0
A34: L76+10 | B34: 9 | C34: 8 | D34: 8 | E34: 5 | F34: 3
A35: L76+44 | B35: 10 | C35: 5 | D35: 5 | E35: 4 | F35: 4
A36: L76+47 | B36: 9 | C36: 6 | D36: 5 | E36: 3 | F36: 0
A37: L76+55 | B37: 10 | C37: 9 | D37: 7 | E37: 7 | F37: 4
A38: L76+80 | B38: 10 | C38: 9 | D38: 8 | E38: 5 | F38: 3
A39: L76+82 | B39: 10 | C39: 9 | D39: 9 | E39: 6 | F39: 3
A40: L76+84 | B40: 10 | C40: 10 | D40: 10 | E40: 6 | F40: 4
A41: L84 | B41: 10 | C41: 9 | D41: 6 | E41: 3 | F41: 1
A42: L84+10 | B42: 10 | C42: 10 | D42: 10 | E42: 7 | F42: 7
A43: L84+44 | B43: 10 | C43: 9 | D43: 9 | E43: 8 | F43: 3
A44: L84+47 | B44: 10 | C44: 5 | D44: 5 | E44: 3 | F44: 0
A45: L84+55 | B45: 10 | C45: 10 | D45: 10 | E45: 9 | F45: 7
A46: L84+80 | B46: 9 | C46: 7 | D46: 7 | E46: 7 | F46: 3
A47: L84+82 | B47: 10 | C47: 7 | D47: 7 | E47: 3 | F47: 2
A48: L55 | B48: 10 | C48: 10 | D48: 10 | E48: 10 | F48: 8
A49: L55+10 | B49: 10 | C49: 10 | D49: 9 | E49: 6 | F49: 7
A50: L55+44 | B50: 9 | C50: 8 | D50: 8 | E50: 3 | F50: 2
A51: L55+47 | B51: 10 | C51: 10 | D51: 6 | E51: 4 | F51: 1
A52: L55+80 | B52: 10 | C52: 10 | D52: 10 | E52: 9 | F52: 8
A53: L55+82 | B53: 9 | C53: 9 | D53: 9 | E53: 4 | F53: 1
A54: L80 | B54: 9 | C54: 6 | D54: 5 | E54: 2 | F54: 1
A55: L80+10 | B55: 10 | C55: 8 | D55: 8 | E55: 7 | F55: 6
A56: L80+44 | B56: 9 | C56: 8 | D56: 8 | E56: 6 | F56: 2
A57: L80+47 | B57: 10 | C57: 10 | D57: 9 | E57: 7 | F57: 1
A58: L80+82 | B58: 10 | C58: 9 | D58: 8 | E58: 7 | F58: 2
A59: L82 | B59: 10 | C59: 8 | D59: 7 | E59: 2 | F59: 0
A60: L82+10 | B60: 10 | C60: 8 | D60: 7 | E60: 5 | F60: 3
A61: L82+44 | B61: 10 | C61: 9 | D61: 9 | E61: 5 | F61: 2
A62: L82+47 | B62: 10 | C62: 7 | D62: 7 | E62: 2 | F62: 0
A63: L44 | B63: 9 | C63: 8 | D63: 8 | E63: 7 | F63: 0
A64: L44+10 | B64: 10 | C64: 8 | D64: 8 | E64: 6 | F64: 4
A65: L44+47 | B65: 10 | C65: 8 | D65: 6 | E65: 3 | F65: 0
A66: L47 | B66: 10 | C66: 6 | D66: 5 | E66: 3 | F66: 1
A67: L47+10 | B67: 10 | C67: 4 | D67: 4 | E67: 2 | F67: 1
A68: L10 | B68: 10 | C68: 5 | D68: 2 | E68: 2 | F68: 0
A69: Ebony | B69: 10 | C69: 9 | D69: 9 | E69: 9 | F69: 9

Sheet Tabelle5
A1: Gene sequences of the orthologous RNAi target genes published by Baum et al., 2007.
A2: TC013867/copi coatomer | B2: ATGCCCCTCCGTCTGGACATCAAACGCAAACTTACGGCGCGTTCCGACCGTGTAAAATGCGTCGACTTGCACCCGACCGAGCCCTGGATGCTCTGCTCGCTATACAGCGGCAATATAAACGTCTGGAATCACGAAAATCAACAACTAGTCAAAACCTTTGAAGTTTGTGATTTACCAGTACGTGCCGCAAAATTCGTACCCCGCAAGAACTGGGTGATTGCCGGCTCGGACGACATGCAAATTCGTGTTTTTAACTATAATACACTGGATCGTGTACATGCTTTTGAGGCCCATTCGGATTATGTGCGGTGTATTGTGATCCACCCCACACAGCCTTACATCCTCACAGGGAGCGATGACATGCTTATCAAATTATGGAACTGGGAGAAAGCCTGGGCCTGTCAACAAGTCTTCGAAGGCCACTCTCACTACGTAATGCAAATCGCAATCAACCCCAAAGACAACAACACGTTCGTAAGCGCGTCCCTCGACCGCACATTGAAAGTGTGGCAACTGGGTGCTTCCACCCCCAATTTCACGCTCGAAGGCCACGAGAAGGGGGTCAATTGCGTCGATTATTACCACGGGGGCGACAAACCCTACATCATTTCAGGCGCCGACGACCGTCTTGTCAAAATCTGGGACTACCAGAACAAAACATGCGTCCAAACCCTCGAAGGCCACACTCAAAACATCAGCTCGGTGTGTTTCCACCCTGAACTCCCAATCGTCCTGACAGGGAGCGAAGACGGCACTGTCAAAGTCTGGCACGCTAACACACACCGTCTTGAAAGTAGCCTCAACTACGGCTTCGAACGCGTTTGGACGATTTGCTGCCTCAAAGGCTCAAACAACGTAGTTTTCGGGTATGATGAGGGCAGTATTTTGGTCAAAATCGGGCGAGAGGAGCCGGCAGTTAGCATGGACGCCACTGGGGGCAAAATAATCTGGGCCAGACATTCGGAGCTGCAGCAAGCCAATCTGAAGGCTTTGCCCGAGGGGGCCGAGGTCAGAGACGGGGAGCGGCTCCCAGTGGCTGTGAAAGACATGGGGGCCTGCGAGATCTACCCCCAGACGATCCAACACAACCCCAACGGCCGGTTTGTTGTTGTGTGCGGCGATGGGGAGTATATTATTTACACGGCGATGGCGTTGCGGAACAAGGCCTTTGGGGCGGCTCAGGAGTTCGTTTGGGCGCAAGATTCGAGCGAATATGCGATTAGGGAAGCGGGGTCTACGGTCCGTATTTATAAAAACTTCAAAGAGAAGAAGAATTTTAAACCGGATTTTGGGGCCGAAGGGATTTTCGGGGGGTGGTTACTTGGGGTTAAGTCAGTGGCGGGGTTGACGTTCTACGATTGGGATAGTTTGGATTTAATCCGAAGGATTGAAATCCAGCCAAGGGCGATCTACTGGTCCGATAACGGCAAATTGGTGTGTCTTGCGACCGAAGATAGTTATTATATCTTATCGTACGATTCGGACCAAGTCCAGAAGGCTAAGGACGAGGGACAGGTGGCTGAGGACGGGGTTGAGTCAGCGTTTGAGGTCCTGGGGGAAGTGAACGAGACAGTTCGGACGGGGTTGTGGGTCGGCGATTGTTTCATTTACACGAATGCCGTCAACCGAATTAATTATTTCGTTGGGGGTGAGCTTGTAACCATAGCTCACTTGGACCGGCCTTTGTACGTCCTCGGCTATGTCCCGCGTGACGATCGGCTCTACCTCGCTGATAAGGAGTTAGGGGTTGTCAGTTATCAGTTATTATTGTCGGTACTCGAGTATCAAACTGCAGTAATGCGTCGTGACTTTACCACAGCCGATAGAGTATTACCCTCGATTCCGAAGGAACACCGGACTCGAGTGGCCCACTTTTTGGAAAAACAAGGCTTCAAAAAACAGGCCCTTGCTGTGAGCACGGACCCCGAACACAAATTCGAACTAGCCTTAGCCTTGGAGGACTTAAACACCGCTCGAACTCTGGCCCAAGAAGCGAACAATCCGCAAAAGTGGAGCCAATTGGGTGAATTAGCCGCTTCGACTAACAACCTCCAACTAGCCAAGGAGTGCATGCAAAGGGCGCAGGACTATGGGGGCCTCCTTCTCCTGGCTACGAGTTCCGGTGACGAAAAACTTGTGAAAACACTGGGCGAAAATACACACTCTGAAGGCAAACACAACTTGGCTTTCTTGTCGTTTTTCCTTTTGGGAGATTTGGACAAGTGTCTGGAGATTTTGATTTCGACGGGGCGTTTGCCCGAAGCCGCGTTTTTCGCTAGGTCGTACTTGCCCGATAAGATATCCGAAGTTGTGTCCTTGTGGAAGGCGAAGTTGTCGACGACGAATGAAAAGGCGGGGCAGAGTTTAGCCGATCCGAAGGATTACGAAAATTTGTTCCCGGGTTTGAATGATGCGATTGCTGCTCAACATTTTTATAGTATGGGGAGGAAAGGGTTACCGTTGGCCAAAGATGCGAAGAAAATTACGCCGAATCATGAGAGAAATGTTGTGCAAGAGATGAAGGCGCAAGGGGGCGAAGGGTTCAGTGTGCCAGTGGCGCAGACTAGCCAACCGGTTCAGAGTGAAATGAAAGCGCCGCCCAGATTGCAGCAAGAGGATGAAGATGATCTTGATCTGGATTTGGAGGGAGTTAACATTGATGATAATATAGACACCACGGATATCAATATTGATGATGATTTGTTAAGTGATTAA
A3: TC013357/vATPase d | B3: ATGAAGGGCTGCTTGTTCAACATCGACGCCGGTTACTTGGAGGGATTATGTCGGGGCTTCAAGTGCGGTATTTTGAAGCAATCCGATTACCTGAATTTGGTTCAGTGTGAAACCCTGGAAGATCTCAAACTGCACTTGCAAGGGACGGATTACGGGTCTTTTCTTGCCAACGAACCCTCCCCATTGGCCGTTTCGACCATTGATAATAAATTGAGGGAGAAGTTGGTCATAGAGTTCCAACATATGAGGAATCAGGCGGTTGAGCCCCTGTCTACGTTTTTGGATTTTATCACTTACAGTTACATGATTGATAATATTATTTTACTGATTACGGGGACGTTGCACCAGCGCCCCATTGGGGAGCTGATCCCGAAATGCCACCCCTTGGGGAGCTTTGAGCAGATGGAGGCTATTCATGTGGCCTCCACGCCCGCCGAGTTGTACAATGCTGTGCTCGTGGACACTCCACTGGCCCCCTTCTTCGTTGATTGTATCAGCGAGCAGGACTTAGACGAGATGAATATTGAGATTATACGTAACACTTTGTATAAGGCGTATTTGGAGGCGTTCTATGCCTTCTGTAAGGAAATCGGAGGGACTACGGCCGACTGCATGTGCGAAATTTTGGCGTTTGAGGCCGACCGTCGTGCGATTATAATCACAATCAATTCCTTTGGCACCGAATTGAGTAAAGACGATCGTGCGAAATTGTACCCACGATGTGGGAAACTCAACCCTGATGGGTTGGCCGCCCTGGTACGTGCGGAAGATTACGACCAGGTCAAAGCCGTGGCCGAGTATTATGCCGAGTATTCGAAACTTTTTGAAGGGGCGGGAAGTAATCCCGGGGATAAAACTTTGGAGGATAAGTTTTTCGAACACGAGGTGCGTTTGAACGTCCACGCGTTCTTACAACAGTTTCATTTCGGAGTTTTCTACTCCTACTTGAAACTGAAGGAGCAGGAATGTCGCAATATCGTATGGATTGCTGAATGTGTGGCGCAAAAACATCGAGCCAAGATTGATAATTACATACCGATTTTCTAA
A4: TC008354/vATPase a | B4: ATGACCTCTCTACCGAAGATGGGTGATGAAGAGCGCGAGAACAAATTCGGATACGTGTTCGCGGTATCCGGTCCTGTCGTTACGGCCGAGAAAATGAGCGGAGCGGCTATGTACGAGCTGGTGCGTGTGGGGTACTCCGAACTGGTCGGGGAAATTATTCGTCTGGAGGGCGAAATGGCCACTATCCAGGTATACGAAGAAACTTCAGGTGTTACGGTGGGTGATCCAGTCTTACGAACTGGTAAACCCTTGTCGGTGGAGCTGGGCCCAGGTATTATGGGTTCGATTTTTGACGGTATCCAGAGACCGCTGAAGGACATCAACGAGCTCACGCAAAGTATTTACATTCCTAAGGGTGTTAATGTGCCATCGTTGTCGCGTACGACTAAGTGGGAGTTTGCCCCATTGAATATCAAGTTGGGGTCACATCTGACAGGCGGTGATATTTACGGGATCGTCCATGAAAACACTCTCGTCAAGCATAAAATGCTGCTGCCGCCCAAAGCCAAGGGGACTGTCACATACGTCGCCGATCCCGGAAATTACACAGTCGATGAAGTCGTCTTGGAGACGGAATTCGACGGCGAGAGGACCAAATACACCATGTTGCAAGTGTGGCCTGTGCGTCAGCCCCGCCCTGTCAGCGAGAAATTGCCAGCCAATCACCCCCTATTAACTGGTCAACGCGTACTCGACTCACTTTTCCCGTGCGTCCAAGGGGGTACCACCGCCATTCCCGGAGCTTTCGGTTGCGGTAAGACCGTAATCTCGCAATCTCTCTCCAAATATTCCAACTCTGACGTTATCATTTACGTCGGTTGCGGGGAGCGTGGTAACGAAATGTCTGAAGTATTGCGGGACTTCCCCGAACTGACAGTCGAAATCGAAGGCCAAACAGAGTCTATCATGAAACGTACCGCTCTTGTCGCCAACACCTCTAACATGCCTGTAGCCGCCCGTGAGGCTTCAATTTACACCGGTATTACACTGTCTGAGTATTTCCGTGATATGGGTTACAACGTGTCGATGATGGCCGATTCCACCTCGCGTTGGGCCGAAGCTTTGAGAGAAATTTCCGGTCGTTTAGCTGAAATGCCCGCCGATTCTGGGTACCCCGCGTATTTGGGGGCCCGTTTGGCTTCGTTTTACGAGCGTGCAGGGCGTGTTAAATGCTTGGGTAACCCTGATCGTGAAGGTTCCGTTTCTATTGTCGGGGCCGTATCGCCCCCTGGTGGTGATTTCTCTGATCCCGTCACCTCAGCTACCTTGGGTATCGTACAAGTGTTCTGGGGGTTGGATAAAAAACTAGCCCAACGTAAACATTTCCCTTCGATCAATTGGCTGATTTCCTACTCTAAATACACGCGCGCTTTGGACGATTTCTACGATAAAAACTTCCAAGAGTTTGTCGCGTTGCGTACTAAGGTCAAGGAGATCTTGCAAGAAGAAGAAGACTTGTCCGAAATCGTGCAACTGGTCGGTAAAGCCTCCCTAGCCGAGACCGATAAAATCACTCTTGAGATTGCCAAGTTGCTTAAGGAAGATTTCTTGCAACAGAATTCGTACTCGTCGTACGATAGGTTCTGTCCGTTCTACAAGACGGTGGGTATGTTGAAAAATATGATCGGTTTGTACGATATGTCGCGACATGCTGTTGAAAGCACCGCGCAGTCTGAAAATAAGATCACGTGGACCGTGATCAGGGATTCCATGAGCAATATTTTGTACCAGTTGAGCAGTATGAAGTTCAAGGACCCAGTTAAAGACGGCGAGGCGAAAATCAAAGCCGATTTTGACCAGTTGTACGAGGATATTCAACAAGCCTTCAGGAACTTGGAGGATTAA
A5: TC004873/alpha tubulin | B5: ATGCGTGAATGTATCTCAGTTCATGTCGGCCAAGCCGGAGTCCAGATCGGCAACGCCTGTTGGGAATTGTACTGTTTGGAACATGGAATCCAACCCGACGGCCAAATGCCCTCTGATAAAACTGTCGGGGGCGGTGACGACAGTTTCAACACCTTCTTCAGCGAGACCGGTGCTGGAAAGCACGTCCCGAGGGCCGTCTTCGTCGACTTGGAACCCACTGTCGTCGATGAGGTCCGCACCGGGACTTACCGCCAGTTGTTCCACCCCGAACAATTGATCACTGGCAAAGAAGACGCCGCCAATAACTACGCCAGAGGCCACTACACCATTGGCAAGGAAATCGTCGACTTGGTTTTGGACCGCATCCGTAAATTGGCCGATCAATGCACGGGGCTCCAAGGTTTCTTGATTTTCCACTCGTTCGGTGGAGGCACCGGCTCAGGGTTCACTTCCTTGTTGATGGAAAGATTGTCGGTTGATTACGGCAAAAAATCGAAATTAGAATTCGCTATTTACCCCGCACCTCAGGTTTCTACAGCCGTTGTGGAGCCGTACAACTCGATCTTGACCACTCACACCACTTTGGAGCATTCTGACTGTGCCTTCATGGTCGACAATGAGGCGATCTACGATATTTGTCGCCGAAACTTGGACATCGAACGCCCGACTTACACCAACTTGAACAGATTGATCGGCCAAATTGTCTCCTCAATCACCGCTTCGTTGCGATTCGATGGGGCTTTGAACGTTGACTTGACCGAATTCCAGACCAACTTGGTACCTTACCCACGTATCCACTTCCCTCTAGTCACCTACGCCCCAGTCATTTCCGCCGAGAAGGCCTACCATGAACAATTATCCGTTGCGGAAATCACCAACGCCTGCTTCGAGCCCGCCAACCAGATGGTCAAATGCGACCCACGTCATGGTAAATACATGGCTTGCTGCATGTTGTACCGTGGAGATGTTGTCCCCAAGGATGTCAACGCGGCTATTGCCACCATCAAGACCAAACGTACCATTCAATTCGTTGACTGGTGTCCAACTGGGTTCAAAGTTGGTATCAACTACCAACCACCCACCGTCGTGCCAGGAGGTGACTTGGCCAAGGTACAACGTGCTGTTTGCATGTTGTCCAATACCACTGCTATCGCCGAAGCTTGGGCTCGTTTGGATCATAAATTCGACTTGATGTACGCCAAACGTGCTTTCGTCCACTGGTATGTGGGTGAAGGTATGGAAGAAGGTGAATTCTCTGAAGCTCGTGAAGATTTGGCCGCTTTGGAAAAGGATTACGAAGAGGTCGGCATGGACTCCGGAGAAGGAGAAGGCGAAGGTGGCGAAGAGTATTAA
A6: TC009589/beta tubulin | B6: ATGAGGGAAATCGTTCATATCCAAGCCGGCCAATGCGGCAACCAGATTGGAGCCAAATTCTGGGAAATCATCTCAGACGAGCACGGCATCGACCCCACCGGCGCCTACCACGGCGACTCCGACTTGCAATTGGAGCGCATCAACGTCTACTACAATGAAGCCTCCGGTGGCAAATACGTCCCCCGTGCCATCCTCGTGGACTTGGAGCCCGGCACCATGGACTCAGTCCGTTCCGGTCCTTTCGGCCAGATTTTCCGCCCCGACAACTTCGTCTTCGGCCAGTCCGGAGCCGGAAACAACTGGGCCAAGGGCCACTACACAGAAGGCGCCGAACTAGTCGACTCAGTCTTGGACGTGGTGCGCAAAGAGGCCGAGTCCTGCGACTGCCTCCAAGGCTTCCAGTTGACACACTCGCTTGGGGGCGGCACCGGCTCCGGCATGGGCACTCTACTCATCTCCAAAATCAGGGAGGAGTATCCCGATAGGATCATGAACACGTATTCAGTAGTACCTTCACCTAAAGTTTCCGACACGGTCGTGGAACCGTACAATGCCACGTTGTCAGTCCACCAGCTTGTAGAAAACACTGATGAGACCTATTGTATCGATAACGAAGCTCTCTATGACATCTGCTTCAGAACGTTGAAACTCACAACACCGACCTACGGTGACTTGAACCATTTGGTGTCGTTGACAATGTCGGGAGTCACGACTTGTCTGCGATTCCCCGGTCAATTGAACGCAGATCTGCGCAAATTGGCGGTCAATATGGTACCATTCCCGCGTTTGCACTTCTTCATGCCTGGTTTTGCGCCCTTGACATCGAGGGGAAGTCAGCAATACCGTGCGTTGACTGTTCCCGAGCTCACGCAGCAAATGTTCGATGCTAAGAACATGATGGCGGCGTGTGACCCCAGACATGGGAGGTACTTGACAGTGGCTGCTGTTTTCCGAGGAAGGATGTCGATGAAGGAAGTTGACGAGCAAATGCTCAACATCCAGAACAAAAACAGCAGCTACTTCGTTGAGTGGATCCCCAACAATGTCAAGACGGCCGTTTGTGACATTCCCCCACGTGGTCTCAAAATGTCGGCCACTTTCATCGGCAACTCCACCGCCATCCAAGAGCTCTTCAAGCGCATCTCTGAACAGTTCACTGCTATGTTCAGACGTAAGGCTTTCTTGCATTGGTACACCGGCGAAGGTATGGACGAGATGGAATTCACTGAAGCCGAATCAAACATGAATGACTTGGTCTCCGAGTACCAGCAGTACCAGGAGGCGACCGCCGATGAAGACGCCGAATTCGACGAGGAACAAGAAGCCGAAGTTGACGAGAACTAA
